Body Name,Date Paid,Transaction Number,Amount,Supplier Name,Supplier Type,Expense Area,Cost Centre Description,Expense Type
Cambridgeshire County Council,27-Jun-18,65300009657,-28740,THOUGHTS OF OTHERS LTD#1,TRADE SUPPLIER,LAC Placements,Placements - residential homes,Agency Placements - Out of County
Cambridgeshire County Council,12-Jun-18,51300002742,-20297.32,WSP UK LTD T/A WSP INTEGRATED BUILDING SERVICES#3,TRADE SUPPLIER,Control Accounts,Control Accounts - Payables,Migration Only - Marked as Do Not Use
Cambridgeshire County Council,06-Jun-18,51300053190,-20000,BLACKBERRY HOUSE DAY NURSERY (WISBECH),NURSERY,Nursery Schools,Early Years - Funded 3s/4s,Care & Ed Childcare Settings
Cambridgeshire County Council,07-Jun-18,51300153878,-4655,BROOKDALE HEALTHCARE LIMITED#1,CARE ESTABLISHMENT,LD - Hunts Locality,LD - Huntigndonshire - Special Needs,Rehabilitation And Respite Care
Cambridgeshire County Council,07-Jun-18,51300153873,-4655,BROOKDALE HEALTHCARE LIMITED#1,CARE ESTABLISHMENT,LD - Hunts Locality,LD - Huntigndonshire - Special Needs,Rehabilitation And Respite Care
Cambridgeshire County Council,07-Jun-18,51300153869,-4655,BROOKDALE HEALTHCARE LIMITED#1,CARE ESTABLISHMENT,LD - Hunts Locality,LD - Huntigndonshire - Special Needs,Rehabilitation And Respite Care
Cambridgeshire County Council,07-Jun-18,51300153882,-4655,BROOKDALE HEALTHCARE LIMITED#1,CARE ESTABLISHMENT,LD - Hunts Locality,LD - Huntigndonshire - Care,Rehabilitation And Respite Care
Cambridgeshire County Council,07-Jun-18,51300153877,-4655,BROOKDALE HEALTHCARE LIMITED#1,CARE ESTABLISHMENT,LD - Hunts Locality,LD - Huntigndonshire - Care,Rehabilitation And Respite Care
Cambridgeshire County Council,07-Jun-18,51300163944,-4655,BROOKDALE HEALTHCARE LIMITED#1,CARE ESTABLISHMENT,LD - Hunts Locality,LD - Huntigndonshire - Care,Rehabilitation And Respite Care
Cambridgeshire County Council,07-Jun-18,51300163946,-4655,BROOKDALE HEALTHCARE LIMITED#1,CARE ESTABLISHMENT,LD - Hunts Locality,LD - Huntigndonshire - Care,Rehabilitation And Respite Care
Cambridgeshire County Council,07-Jun-18,51300153867,-4655,BROOKDALE HEALTHCARE LIMITED#1,CARE ESTABLISHMENT,LD - Hunts Locality,LD - Huntigndonshire - Care,Rehabilitation And Respite Care
Cambridgeshire County Council,07-Jun-18,51300163933,-4655,BROOKDALE HEALTHCARE LIMITED#1,CARE ESTABLISHMENT,LD - Hunts Locality,LD - Huntigndonshire - Care,Rehabilitation And Respite Care
Cambridgeshire County Council,07-Jun-18,51300163931,-4655,BROOKDALE HEALTHCARE LIMITED#1,CARE ESTABLISHMENT,LD - Hunts Locality,LD - Huntigndonshire - Care,Rehabilitation And Respite Care
Cambridgeshire County Council,07-Jun-18,51300163935,-4655,BROOKDALE HEALTHCARE LIMITED#1,CARE ESTABLISHMENT,LD - Hunts Locality,LD - Huntigndonshire - Care,Rehabilitation And Respite Care
Cambridgeshire County Council,07-Jun-18,51300153875,-4655,BROOKDALE HEALTHCARE LIMITED#1,CARE ESTABLISHMENT,LD - Hunts Locality,LD - Huntigndonshire - Special Needs,Rehabilitation And Respite Care
Cambridgeshire County Council,07-Jun-18,51300163927,-4655,BROOKDALE HEALTHCARE LIMITED#1,CARE ESTABLISHMENT,LD - Hunts Locality,LD - Huntigndonshire - Special Needs,Rehabilitation And Respite Care
Cambridgeshire County Council,07-Jun-18,51300153864,-4655,BROOKDALE HEALTHCARE LIMITED#1,CARE ESTABLISHMENT,LD - Hunts Locality,LD - Huntigndonshire - Special Needs,Rehabilitation And Respite Care
Cambridgeshire County Council,07-Jun-18,51300153871,-4655,BROOKDALE HEALTHCARE LIMITED#1,CARE ESTABLISHMENT,LD - Hunts Locality,LD - Huntigndonshire - Special Needs,Rehabilitation And Respite Care
Cambridgeshire County Council,07-Jun-18,51300163941,-4655,BROOKDALE HEALTHCARE LIMITED#1,CARE ESTABLISHMENT,LD - Hunts Locality,LD - Huntigndonshire - Special Needs,Rehabilitation And Respite Care
Cambridgeshire County Council,07-Jun-18,51300163928,-4655,BROOKDALE HEALTHCARE LIMITED#1,CARE ESTABLISHMENT,LD - Hunts Locality,LD - Huntigndonshire - Special Needs,Rehabilitation And Respite Care
Cambridgeshire County Council,07-Jun-18,51300163939,-4655,BROOKDALE HEALTHCARE LIMITED#1,CARE ESTABLISHMENT,LD - Hunts Locality,LD - Huntigndonshire - Special Needs,Rehabilitation And Respite Care
Cambridgeshire County Council,22-Jun-18,51300200547,-4655,BROOKDALE HEALTHCARE LIMITED#1,CARE ESTABLISHMENT,LD - Hunts Locality,LD - Huntigndonshire - Special Needs,Rehabilitation And Respite Care
Cambridgeshire County Council,22-Jun-18,51300174647,-4655,BROOKDALE HEALTHCARE LIMITED#1,CARE ESTABLISHMENT,LD - Hunts Locality,LD - Huntigndonshire - Special Needs,Rehabilitation And Respite Care
Cambridgeshire County Council,22-Jun-18,51300200535,-4655,BROOKDALE HEALTHCARE LIMITED#1,CARE ESTABLISHMENT,LD - Hunts Locality,LD - Huntigndonshire - Care,Rehabilitation And Respite Care
Cambridgeshire County Council,22-Jun-18,51300200503,-4655,BROOKDALE HEALTHCARE LIMITED#1,CARE ESTABLISHMENT,LD - Hunts Locality,LD - Huntigndonshire - Care,Rehabilitation And Respite Care
Cambridgeshire County Council,22-Jun-18,51300200533,-4655,BROOKDALE HEALTHCARE LIMITED#1,CARE ESTABLISHMENT,LD - Hunts Locality,LD - Huntigndonshire - Care,Rehabilitation And Respite Care
Cambridgeshire County Council,22-Jun-18,51300200549,-4655,BROOKDALE HEALTHCARE LIMITED#1,CARE ESTABLISHMENT,LD - Hunts Locality,LD - Huntigndonshire - Care,Rehabilitation And Respite Care
Cambridgeshire County Council,22-Jun-18,51300200548,-4655,BROOKDALE HEALTHCARE LIMITED#1,CARE ESTABLISHMENT,LD - Hunts Locality,LD - Huntigndonshire - Care,Rehabilitation And Respite Care
Cambridgeshire County Council,22-Jun-18,51300174646,-4655,BROOKDALE HEALTHCARE LIMITED#1,CARE ESTABLISHMENT,LD - Hunts Locality,LD - Huntigndonshire - Care,Rehabilitation And Respite Care
Cambridgeshire County Council,22-Jun-18,51300174640,-4655,BROOKDALE HEALTHCARE LIMITED#1,CARE ESTABLISHMENT,LD - Hunts Locality,LD - Huntigndonshire - Care,Rehabilitation And Respite Care
Cambridgeshire County Council,22-Jun-18,51300174649,-4655,BROOKDALE HEALTHCARE LIMITED#1,CARE ESTABLISHMENT,LD - Hunts Locality,LD - Huntigndonshire - Care,Rehabilitation And Respite Care
Cambridgeshire County Council,22-Jun-18,51300174651,-4655,BROOKDALE HEALTHCARE LIMITED#1,CARE ESTABLISHMENT,LD - Hunts Locality,LD - Huntigndonshire - Special Needs,Rehabilitation And Respite Care
Cambridgeshire County Council,22-Jun-18,51300200544,-4655,BROOKDALE HEALTHCARE LIMITED#1,CARE ESTABLISHMENT,LD - Hunts Locality,LD - Huntigndonshire - Special Needs,Rehabilitation And Respite Care
Cambridgeshire County Council,22-Jun-18,51300174639,-4655,BROOKDALE HEALTHCARE LIMITED#1,CARE ESTABLISHMENT,LD - Hunts Locality,LD - Huntigndonshire - Special Needs,Rehabilitation And Respite Care
Cambridgeshire County Council,22-Jun-18,51300174652,-4655,BROOKDALE HEALTHCARE LIMITED#1,CARE ESTABLISHMENT,LD - Hunts Locality,LD - Huntigndonshire - Special Needs,Rehabilitation And Respite Care
Cambridgeshire County Council,22-Jun-18,51300174643,-4655,BROOKDALE HEALTHCARE LIMITED#1,CARE ESTABLISHMENT,LD - Hunts Locality,LD - Huntigndonshire - Special Needs,Rehabilitation And Respite Care
Cambridgeshire County Council,22-Jun-18,51300200550,-4655,BROOKDALE HEALTHCARE LIMITED#1,CARE ESTABLISHMENT,LD - Hunts Locality,LD - Huntigndonshire - Special Needs,Rehabilitation And Respite Care
Cambridgeshire County Council,22-Jun-18,51300174642,-4655,BROOKDALE HEALTHCARE LIMITED#1,CARE ESTABLISHMENT,LD - Hunts Locality,LD - Huntigndonshire - Special Needs,Rehabilitation And Respite Care
Cambridgeshire County Council,22-Jun-18,51300200506,-4655,BROOKDALE HEALTHCARE LIMITED#1,CARE ESTABLISHMENT,LD - Hunts Locality,LD - Huntigndonshire - Special Needs,Rehabilitation And Respite Care
Cambridgeshire County Council,18-Jun-18,51300175878,-4622.77,JACKSON FRAMEWORKS LTD,COMPANY,Carriageway & Footway Maintenance including Cycle Paths,Carriageway & Footway Maintenance including Cycle Paths,Construction - External Professional Fees
Cambridgeshire County Council,06-Jun-18,65300009341,-4305.02,The Woodland Rose Day Nursery,NURSERY,Nursery Schools,Early Years - Funded 3s/4s,Care & Ed Childcare Settings
Cambridgeshire County Council,07-Jun-18,51300163936,-3325,BROOKDALE HEALTHCARE LIMITED#1,CARE ESTABLISHMENT,LD - Hunts Locality,LD - Huntigndonshire - Special Needs,Rehabilitation And Respite Care
Cambridgeshire County Council,07-Jun-18,51300153874,-3325,BROOKDALE HEALTHCARE LIMITED#1,CARE ESTABLISHMENT,LD - Hunts Locality,LD - Huntigndonshire - Care,Rehabilitation And Respite Care
Cambridgeshire County Council,22-Jun-18,51300174654,-3325,BROOKDALE HEALTHCARE LIMITED#1,CARE ESTABLISHMENT,LD - Hunts Locality,LD - Huntigndonshire - Care,Rehabilitation And Respite Care
Cambridgeshire County Council,22-Jun-18,51300200526,-3325,BROOKDALE HEALTHCARE LIMITED#1,CARE ESTABLISHMENT,LD - Hunts Locality,LD - Huntigndonshire - Special Needs,Rehabilitation And Respite Care
Cambridgeshire County Council,07-Jun-18,51300148354,-2977.44,DECOY FARM,CARE ESTABLISHMENT,LD - East Locality,LD - East Cambs - Special Needs,Residential Care
Cambridgeshire County Council,07-Jun-18,51300158096,-2977.44,DECOY FARM,CARE ESTABLISHMENT,LD - East Locality,LD - East Cambs - Special Needs,Residential Care
Cambridgeshire County Council,07-Jun-18,51300145340,-2977.44,DECOY FARM,CARE ESTABLISHMENT,LD - East Locality,LD - East Cambs - Special Needs,Residential Care
Cambridgeshire County Council,07-Jun-18,51300120145,-2977.44,DECOY FARM,CARE ESTABLISHMENT,LD - East Locality,LD - East Cambs - Special Needs,Residential Care
Cambridgeshire County Council,07-Jun-18,51300120136,-2977.44,DECOY FARM,CARE ESTABLISHMENT,LD - East Locality,LD - East Cambs - Special Needs,Residential Care
Cambridgeshire County Council,07-Jun-18,51300158107,-2977.44,DECOY FARM,CARE ESTABLISHMENT,LD - East Locality,LD - East Cambs - Special Needs,Residential Care
Cambridgeshire County Council,07-Jun-18,51300148384,-2977.44,DECOY FARM,CARE ESTABLISHMENT,LD - East Locality,LD - East Cambs - Special Needs,Residential Care
Cambridgeshire County Council,07-Jun-18,51300158068,-2977.44,DECOY FARM,CARE ESTABLISHMENT,LD - East Locality,LD - East Cambs - Special Needs,Residential Care
Cambridgeshire County Council,07-Jun-18,51300148333,-2977.44,DECOY FARM,CARE ESTABLISHMENT,LD - East Locality,LD - East Cambs - Special Needs,Residential Care
Cambridgeshire County Council,07-Jun-18,51300148324,-2977.44,DECOY FARM,CARE ESTABLISHMENT,LD - East Locality,LD - East Cambs - Special Needs,Residential Care
Cambridgeshire County Council,07-Jun-18,51300158016,-2977.44,DECOY FARM,CARE ESTABLISHMENT,LD - East Locality,LD - East Cambs - Special Needs,Residential Care
Cambridgeshire County Council,07-Jun-18,51300120188,-2977.44,DECOY FARM,CARE ESTABLISHMENT,LD - East Locality,LD - East Cambs - Special Needs,Residential Care
Cambridgeshire County Council,07-Jun-18,51300158101,-2977.44,DECOY FARM,CARE ESTABLISHMENT,LD - East Locality,LD - East Cambs - Special Needs,Residential Care
Cambridgeshire County Council,07-Jun-18,51300120180,-2977.44,DECOY FARM,CARE ESTABLISHMENT,LD - East Locality,LD - East Cambs - Special Needs,Residential Care
Cambridgeshire County Council,07-Jun-18,51300157998,-2977.44,DECOY FARM,CARE ESTABLISHMENT,LD - East Locality,LD - East Cambs - Special Needs,Residential Care
Cambridgeshire County Council,07-Jun-18,51300120124,-2977.44,DECOY FARM,CARE ESTABLISHMENT,LD - East Locality,LD - East Cambs - Special Needs,Residential Care
Cambridgeshire County Council,07-Jun-18,51300148239,-2977.44,DECOY FARM,CARE ESTABLISHMENT,LD - East Locality,LD - East Cambs - Special Needs,Residential Care
Cambridgeshire County Council,07-Jun-18,51300158127,-2977.44,DECOY FARM,CARE ESTABLISHMENT,LD - East Locality,LD - East Cambs - Special Needs,Residential Care
Cambridgeshire County Council,07-Jun-18,51300148303,-2977.44,DECOY FARM,CARE ESTABLISHMENT,LD - East Locality,LD - East Cambs - Special Needs,Residential Care
Cambridgeshire County Council,07-Jun-18,51300158027,-2977.44,DECOY FARM,CARE ESTABLISHMENT,LD - East Locality,LD - East Cambs - Special Needs,Residential Care
Cambridgeshire County Council,07-Jun-18,51300148365,-2977.44,DECOY FARM,CARE ESTABLISHMENT,LD - East Locality,LD - East Cambs - Special Needs,Residential Care
Cambridgeshire County Council,07-Jun-18,51300158042,-2977.44,DECOY FARM,CARE ESTABLISHMENT,LD - East Locality,LD - East Cambs - Special Needs,Residential Care
Cambridgeshire County Council,07-Jun-18,51300148380,-2977.44,DECOY FARM,CARE ESTABLISHMENT,LD - East Locality,LD - East Cambs - Special Needs,Residential Care
Cambridgeshire County Council,07-Jun-18,51300148309,-2977.44,DECOY FARM,CARE ESTABLISHMENT,LD - East Locality,LD - East Cambs - Special Needs,Residential Care
Cambridgeshire County Council,07-Jun-18,51300148318,-2977.44,DECOY FARM,CARE ESTABLISHMENT,LD - East Locality,LD - East Cambs - Special Needs,Residential Care
Cambridgeshire County Council,07-Jun-18,51300158019,-2977.44,DECOY FARM,CARE ESTABLISHMENT,LD - East Locality,LD - East Cambs - Special Needs,Residential Care
Cambridgeshire County Council,07-Jun-18,51300120159,-2977.44,DECOY FARM,CARE ESTABLISHMENT,LD - East Locality,LD - East Cambs - Special Needs,Residential Care
Cambridgeshire County Council,07-Jun-18,51300148242,-2977.44,DECOY FARM,CARE ESTABLISHMENT,LD - East Locality,LD - East Cambs - Special Needs,Residential Care
Cambridgeshire County Council,07-Jun-18,51300158004,-2977.44,DECOY FARM,CARE ESTABLISHMENT,LD - East Locality,LD - East Cambs - Special Needs,Residential Care
Cambridgeshire County Council,07-Jun-18,51300148342,-2977.44,DECOY FARM,CARE ESTABLISHMENT,LD - East Locality,LD - East Cambs - Special Needs,Residential Care
Cambridgeshire County Council,07-Jun-18,51300158072,-2977.44,DECOY FARM,CARE ESTABLISHMENT,LD - East Locality,LD - East Cambs - Special Needs,Residential Care
Cambridgeshire County Council,07-Jun-18,51300148257,-2977.44,DECOY FARM,CARE ESTABLISHMENT,LD - East Locality,LD - East Cambs - Special Needs,Residential Care
Cambridgeshire County Council,07-Jun-18,51300158086,-2977.44,DECOY FARM,CARE ESTABLISHMENT,LD - East Locality,LD - East Cambs - Special Needs,Residential Care
Cambridgeshire County Council,07-Jun-18,51300157995,-2977.44,DECOY FARM,CARE ESTABLISHMENT,LD - East Locality,LD - East Cambs - Special Needs,Residential Care
Cambridgeshire County Council,07-Jun-18,51300148285,-2977.44,DECOY FARM,CARE ESTABLISHMENT,LD - East Locality,LD - East Cambs - Special Needs,Residential Care
Cambridgeshire County Council,07-Jun-18,51300158104,-2977.44,DECOY FARM,CARE ESTABLISHMENT,LD - East Locality,LD - East Cambs - Special Needs,Residential Care
Cambridgeshire County Council,07-Jun-18,51300120160,-2977.44,DECOY FARM,CARE ESTABLISHMENT,LD - East Locality,LD - East Cambs - Special Needs,Residential Care
Cambridgeshire County Council,07-Jun-18,51300148283,-2977.44,DECOY FARM,CARE ESTABLISHMENT,LD - East Locality,LD - East Cambs - Special Needs,Residential Care
Cambridgeshire County Council,07-Jun-18,51300120150,-2977.44,DECOY FARM,CARE ESTABLISHMENT,LD - East Locality,LD - East Cambs - Special Needs,Residential Care
Cambridgeshire County Council,07-Jun-18,51300120195,-2977.44,DECOY FARM,CARE ESTABLISHMENT,LD - East Locality,LD - East Cambs - Special Needs,Residential Care
Cambridgeshire County Council,07-Jun-18,51300157997,-2977.44,DECOY FARM,CARE ESTABLISHMENT,LD - East Locality,LD - East Cambs - Special Needs,Residential Care
Cambridgeshire County Council,07-Jun-18,51300158066,-2977.44,DECOY FARM,CARE ESTABLISHMENT,LD - East Locality,LD - East Cambs - Special Needs,Residential Care
Cambridgeshire County Council,07-Jun-18,51300158022,-2977.44,DECOY FARM,CARE ESTABLISHMENT,LD - East Locality,LD - East Cambs - Special Needs,Residential Care
Cambridgeshire County Council,07-Jun-18,51300120148,-2977.44,DECOY FARM,CARE ESTABLISHMENT,LD - East Locality,LD - East Cambs - Special Needs,Residential Care
Cambridgeshire County Council,07-Jun-18,51300158128,-2977.44,DECOY FARM,CARE ESTABLISHMENT,LD - East Locality,LD - East Cambs - Special Needs,Residential Care
Cambridgeshire County Council,07-Jun-18,51300145314,-2977.44,DECOY FARM,CARE ESTABLISHMENT,LD - East Locality,LD - East Cambs - Special Needs,Residential Care
Cambridgeshire County Council,07-Jun-18,51300148345,-2977.44,DECOY FARM,CARE ESTABLISHMENT,LD - East Locality,LD - East Cambs - Special Needs,Residential Care
Cambridgeshire County Council,07-Jun-18,51300148322,-2977.44,DECOY FARM,CARE ESTABLISHMENT,LD - East Locality,LD - East Cambs - Special Needs,Residential Care
Cambridgeshire County Council,07-Jun-18,51300158015,-2977.44,DECOY FARM,CARE ESTABLISHMENT,LD - East Locality,LD - East Cambs - Special Needs,Residential Care
Cambridgeshire County Council,07-Jun-18,51300158077,-2977.44,DECOY FARM,CARE ESTABLISHMENT,LD - East Locality,LD - East Cambs - Special Needs,Residential Care
Cambridgeshire County Council,07-Jun-18,51300120171,-2977.44,DECOY FARM,CARE ESTABLISHMENT,LD - East Locality,LD - East Cambs - Special Needs,Residential Care
Cambridgeshire County Council,07-Jun-18,51300157991,-2977.44,DECOY FARM,CARE ESTABLISHMENT,LD - East Locality,LD - East Cambs - Special Needs,Residential Care
Cambridgeshire County Council,07-Jun-18,51300148244,-2977.44,DECOY FARM,CARE ESTABLISHMENT,LD - East Locality,LD - East Cambs - Special Needs,Residential Care
Cambridgeshire County Council,07-Jun-18,51300148262,-2977.44,DECOY FARM,CARE ESTABLISHMENT,LD - East Locality,LD - East Cambs - Special Needs,Residential Care
Cambridgeshire County Council,07-Jun-18,51300158122,-2977.44,DECOY FARM,CARE ESTABLISHMENT,LD - East Locality,LD - East Cambs - Special Needs,Residential Care
Cambridgeshire County Council,07-Jun-18,51300148268,-2977.44,DECOY FARM,CARE ESTABLISHMENT,LD - East Locality,LD - East Cambs - Special Needs,Residential Care
Cambridgeshire County Council,07-Jun-18,51300148307,-2977.44,DECOY FARM,CARE ESTABLISHMENT,LD - East Locality,LD - East Cambs - Special Needs,Residential Care
Cambridgeshire County Council,07-Jun-18,51300158081,-2977.44,DECOY FARM,CARE ESTABLISHMENT,LD - East Locality,LD - East Cambs - Special Needs,Residential Care
Cambridgeshire County Council,07-Jun-18,51300158012,-2977.44,DECOY FARM,CARE ESTABLISHMENT,LD - East Locality,LD - East Cambs - Special Needs,Residential Care
Cambridgeshire County Council,07-Jun-18,51300148378,-2977.44,DECOY FARM,CARE ESTABLISHMENT,LD - East Locality,LD - East Cambs - Special Needs,Residential Care
Cambridgeshire County Council,07-Jun-18,51300145323,-2977.44,DECOY FARM,CARE ESTABLISHMENT,LD - East Locality,LD - East Cambs - Special Needs,Residential Care
Cambridgeshire County Council,07-Jun-18,51300148363,-2977.44,DECOY FARM,CARE ESTABLISHMENT,LD - East Locality,LD - East Cambs - Special Needs,Residential Care
Cambridgeshire County Council,07-Jun-18,51300120100,-2977.44,DECOY FARM,CARE ESTABLISHMENT,LD - East Locality,LD - East Cambs - Special Needs,Residential Care
Cambridgeshire County Council,07-Jun-18,51300120118,-2977.44,DECOY FARM,CARE ESTABLISHMENT,LD - East Locality,LD - East Cambs - Special Needs,Residential Care
Cambridgeshire County Council,07-Jun-18,51300158090,-2977.44,DECOY FARM,CARE ESTABLISHMENT,LD - East Locality,LD - East Cambs - Special Needs,Residential Care
Cambridgeshire County Council,07-Jun-18,51300158134,-2977.44,DECOY FARM,CARE ESTABLISHMENT,LD - East Locality,LD - East Cambs - Special Needs,Residential Care
Cambridgeshire County Council,07-Jun-18,51300148375,-2977.44,DECOY FARM,CARE ESTABLISHMENT,LD - East Locality,LD - East Cambs - Special Needs,Residential Care
Cambridgeshire County Council,07-Jun-18,51300120178,-2977.44,DECOY FARM,CARE ESTABLISHMENT,LD - East Locality,LD - East Cambs - Special Needs,Residential Care
Cambridgeshire County Council,07-Jun-18,51300148295,-2977.44,DECOY FARM,CARE ESTABLISHMENT,LD - East Locality,LD - East Cambs - Special Needs,Residential Care
Cambridgeshire County Council,07-Jun-18,51300148328,-2977.44,DECOY FARM,CARE ESTABLISHMENT,LD - East Locality,LD - East Cambs - Special Needs,Residential Care
Cambridgeshire County Council,07-Jun-18,51300120113,-2977.44,DECOY FARM,CARE ESTABLISHMENT,LD - East Locality,LD - East Cambs - Special Needs,Residential Care
Cambridgeshire County Council,07-Jun-18,51300158069,-2977.44,DECOY FARM,CARE ESTABLISHMENT,LD - East Locality,LD - East Cambs - Special Needs,Residential Care
Cambridgeshire County Council,07-Jun-18,51300148237,-2977.44,DECOY FARM,CARE ESTABLISHMENT,LD - East Locality,LD - East Cambs - Special Needs,Residential Care
Cambridgeshire County Council,07-Jun-18,51300148250,-2977.44,DECOY FARM,CARE ESTABLISHMENT,LD - East Locality,LD - East Cambs - Special Needs,Residential Care
Cambridgeshire County Council,07-Jun-18,51300158023,-2977.44,DECOY FARM,CARE ESTABLISHMENT,LD - East Locality,LD - East Cambs - Special Needs,Residential Care
Cambridgeshire County Council,07-Jun-18,51300158056,-2977.44,DECOY FARM,CARE ESTABLISHMENT,LD - East Locality,LD - East Cambs - Special Needs,Residential Care
Cambridgeshire County Council,07-Jun-18,51300158100,-2977.44,DECOY FARM,CARE ESTABLISHMENT,LD - East Locality,LD - East Cambs - Special Needs,Residential Care
Cambridgeshire County Council,07-Jun-18,51300120110,-2977.44,DECOY FARM,CARE ESTABLISHMENT,LD - East Locality,LD - East Cambs - Special Needs,Residential Care
Cambridgeshire County Council,07-Jun-18,51300145345,-2977.44,DECOY FARM,CARE ESTABLISHMENT,LD - East Locality,LD - East Cambs - Special Needs,Residential Care
Cambridgeshire County Council,07-Jun-18,51300120116,-2977.44,DECOY FARM,CARE ESTABLISHMENT,LD - East Locality,LD - East Cambs - Special Needs,Residential Care
Cambridgeshire County Council,07-Jun-18,51300120112,-2977.44,DECOY FARM,CARE ESTABLISHMENT,LD - East Locality,LD - East Cambs - Special Needs,Residential Care
Cambridgeshire County Council,07-Jun-18,51300148274,-2977.44,DECOY FARM,CARE ESTABLISHMENT,LD - East Locality,LD - East Cambs - Special Needs,Residential Care
Cambridgeshire County Council,07-Jun-18,51300148332,-2977.44,DECOY FARM,CARE ESTABLISHMENT,LD - East Locality,LD - East Cambs - Special Needs,Residential Care
Cambridgeshire County Council,07-Jun-18,51300148338,-2977.44,DECOY FARM,CARE ESTABLISHMENT,LD - East Locality,LD - East Cambs - Special Needs,Residential Care
Cambridgeshire County Council,07-Jun-18,51300157994,-2977.44,DECOY FARM,CARE ESTABLISHMENT,LD - East Locality,LD - East Cambs - Special Needs,Residential Care
Cambridgeshire County Council,07-Jun-18,51300148371,-2977.44,DECOY FARM,CARE ESTABLISHMENT,LD - East Locality,LD - East Cambs - Special Needs,Residential Care
Cambridgeshire County Council,07-Jun-18,51300120129,-2977.44,DECOY FARM,CARE ESTABLISHMENT,LD - East Locality,LD - East Cambs - Special Needs,Residential Care
Cambridgeshire County Council,07-Jun-18,51300148284,-2977.44,DECOY FARM,CARE ESTABLISHMENT,LD - East Locality,LD - East Cambs - Special Needs,Residential Care
Cambridgeshire County Council,07-Jun-18,51300148269,-2977.44,DECOY FARM,CARE ESTABLISHMENT,LD - East Locality,LD - East Cambs - Special Needs,Residential Care
Cambridgeshire County Council,07-Jun-18,51300158011,-2977.44,DECOY FARM,CARE ESTABLISHMENT,LD - East Locality,LD - East Cambs - Special Needs,Residential Care
Cambridgeshire County Council,07-Jun-18,51300148254,-2977.44,DECOY FARM,CARE ESTABLISHMENT,LD - East Locality,LD - East Cambs - Special Needs,Residential Care
Cambridgeshire County Council,07-Jun-18,51300145316,-2977.44,DECOY FARM,CARE ESTABLISHMENT,LD - East Locality,LD - East Cambs - Special Needs,Residential Care
Cambridgeshire County Council,07-Jun-18,51300148379,-2977.44,DECOY FARM,CARE ESTABLISHMENT,LD - East Locality,LD - East Cambs - Special Needs,Residential Care
Cambridgeshire County Council,07-Jun-18,51300120199,-2977.44,DECOY FARM,CARE ESTABLISHMENT,LD - East Locality,LD - East Cambs - Special Needs,Residential Care
Cambridgeshire County Council,07-Jun-18,51300120166,-2977.44,DECOY FARM,CARE ESTABLISHMENT,LD - East Locality,LD - East Cambs - Special Needs,Residential Care
Cambridgeshire County Council,07-Jun-18,51300148270,-2977.44,DECOY FARM,CARE ESTABLISHMENT,LD - East Locality,LD - East Cambs - Special Needs,Residential Care
Cambridgeshire County Council,07-Jun-18,51300158126,-2977.44,DECOY FARM,CARE ESTABLISHMENT,LD - East Locality,LD - East Cambs - Special Needs,Residential Care
Cambridgeshire County Council,07-Jun-18,51300120169,-2977.44,DECOY FARM,CARE ESTABLISHMENT,LD - East Locality,LD - East Cambs - Special Needs,Residential Care
Cambridgeshire County Council,07-Jun-18,51300148272,-2977.44,DECOY FARM,CARE ESTABLISHMENT,LD - East Locality,LD - East Cambs - Special Needs,Residential Care
Cambridgeshire County Council,07-Jun-18,51300148351,-2977.44,DECOY FARM,CARE ESTABLISHMENT,LD - East Locality,LD - East Cambs - Special Needs,Residential Care
Cambridgeshire County Council,07-Jun-18,51300158110,-2977.44,DECOY FARM,CARE ESTABLISHMENT,LD - East Locality,LD - East Cambs - Special Needs,Residential Care
Cambridgeshire County Council,07-Jun-18,51300158034,-2977.44,DECOY FARM,CARE ESTABLISHMENT,LD - East Locality,LD - East Cambs - Special Needs,Residential Care
Cambridgeshire County Council,07-Jun-18,51300158094,-2977.44,DECOY FARM,CARE ESTABLISHMENT,LD - East Locality,LD - East Cambs - Special Needs,Residential Care
Cambridgeshire County Council,07-Jun-18,51300120185,-2977.44,DECOY FARM,CARE ESTABLISHMENT,LD - East Locality,LD - East Cambs - Special Needs,Residential Care
Cambridgeshire County Council,07-Jun-18,51300145300,-2977.44,DECOY FARM,CARE ESTABLISHMENT,LD - East Locality,LD - East Cambs - Special Needs,Residential Care
Cambridgeshire County Council,07-Jun-18,51300120155,-2977.44,DECOY FARM,CARE ESTABLISHMENT,LD - East Locality,LD - East Cambs - Special Needs,Residential Care
Cambridgeshire County Council,07-Jun-18,51300148261,-2977.44,DECOY FARM,CARE ESTABLISHMENT,LD - East Locality,LD - East Cambs - Special Needs,Residential Care
Cambridgeshire County Council,07-Jun-18,51300158052,-2977.44,DECOY FARM,CARE ESTABLISHMENT,LD - East Locality,LD - East Cambs - Special Needs,Residential Care
Cambridgeshire County Council,07-Jun-18,51300158116,-2977.44,DECOY FARM,CARE ESTABLISHMENT,LD - East Locality,LD - East Cambs - Special Needs,Residential Care
Cambridgeshire County Council,07-Jun-18,51300158025,-2977.44,DECOY FARM,CARE ESTABLISHMENT,LD - East Locality,LD - East Cambs - Special Needs,Residential Care
Cambridgeshire County Council,07-Jun-18,51300158049,-2977.44,DECOY FARM,CARE ESTABLISHMENT,LD - East Locality,LD - East Cambs - Special Needs,Residential Care
Cambridgeshire County Council,07-Jun-18,51300148255,-2977.44,DECOY FARM,CARE ESTABLISHMENT,LD - East Locality,LD - East Cambs - Special Needs,Residential Care
Cambridgeshire County Council,07-Jun-18,51300158008,-2977.44,DECOY FARM,CARE ESTABLISHMENT,LD - East Locality,LD - East Cambs - Special Needs,Residential Care
Cambridgeshire County Council,07-Jun-18,51300158028,-2977.44,DECOY FARM,CARE ESTABLISHMENT,LD - East Locality,LD - East Cambs - Special Needs,Residential Care
Cambridgeshire County Council,07-Jun-18,51300120157,-2977.44,DECOY FARM,CARE ESTABLISHMENT,LD - East Locality,LD - East Cambs - Special Needs,Residential Care
Cambridgeshire County Council,07-Jun-18,51300120108,-2977.44,DECOY FARM,CARE ESTABLISHMENT,LD - East Locality,LD - East Cambs - Special Needs,Residential Care
Cambridgeshire County Council,07-Jun-18,51300158050,-2977.44,DECOY FARM,CARE ESTABLISHMENT,LD - East Locality,LD - East Cambs - Special Needs,Residential Care
Cambridgeshire County Council,07-Jun-18,51300158076,-2977.44,DECOY FARM,CARE ESTABLISHMENT,LD - East Locality,LD - East Cambs - Special Needs,Residential Care
Cambridgeshire County Council,07-Jun-18,51300148353,-2977.44,DECOY FARM,CARE ESTABLISHMENT,LD - East Locality,LD - East Cambs - Special Needs,Residential Care
Cambridgeshire County Council,07-Jun-18,51300120184,-2977.44,DECOY FARM,CARE ESTABLISHMENT,LD - East Locality,LD - East Cambs - Special Needs,Residential Care
Cambridgeshire County Council,07-Jun-18,51300158125,-2977.44,DECOY FARM,CARE ESTABLISHMENT,LD - East Locality,LD - East Cambs - Special Needs,Residential Care
Cambridgeshire County Council,07-Jun-18,51300120211,-2977.44,DECOY FARM,CARE ESTABLISHMENT,LD - East Locality,LD - East Cambs - Special Needs,Residential Care
Cambridgeshire County Council,07-Jun-18,51300145335,-2977.44,DECOY FARM,CARE ESTABLISHMENT,LD - East Locality,LD - East Cambs - Special Needs,Residential Care
Cambridgeshire County Council,07-Jun-18,51300158058,-2977.44,DECOY FARM,CARE ESTABLISHMENT,LD - East Locality,LD - East Cambs - Special Needs,Residential Care
Cambridgeshire County Council,07-Jun-18,51300148381,-2977.44,DECOY FARM,CARE ESTABLISHMENT,LD - East Locality,LD - East Cambs - Special Needs,Residential Care
Cambridgeshire County Council,07-Jun-18,51300120204,-2977.44,DECOY FARM,CARE ESTABLISHMENT,LD - East Locality,LD - East Cambs - Special Needs,Residential Care
Cambridgeshire County Council,07-Jun-18,51300148240,-2977.44,DECOY FARM,CARE ESTABLISHMENT,LD - East Locality,LD - East Cambs - Special Needs,Residential Care
Cambridgeshire County Council,07-Jun-18,51300158075,-2977.44,DECOY FARM,CARE ESTABLISHMENT,LD - East Locality,LD - East Cambs - Special Needs,Residential Care
Cambridgeshire County Council,07-Jun-18,51300120133,-2977.44,DECOY FARM,CARE ESTABLISHMENT,LD - East Locality,LD - East Cambs - Special Needs,Residential Care
Cambridgeshire County Council,07-Jun-18,51300148275,-2977.44,DECOY FARM,CARE ESTABLISHMENT,LD - East Locality,LD - East Cambs - Special Needs,Residential Care
Cambridgeshire County Council,07-Jun-18,51300120152,-2977.44,DECOY FARM,CARE ESTABLISHMENT,LD - East Locality,LD - East Cambs - Special Needs,Residential Care
Cambridgeshire County Council,07-Jun-18,51300120167,-2977.44,DECOY FARM,CARE ESTABLISHMENT,LD - East Locality,LD - East Cambs - Special Needs,Residential Care
Cambridgeshire County Council,07-Jun-18,51300148282,-2977.44,DECOY FARM,CARE ESTABLISHMENT,LD - East Locality,LD - East Cambs - Special Needs,Residential Care
Cambridgeshire County Council,07-Jun-18,51300148344,-2977.44,DECOY FARM,CARE ESTABLISHMENT,LD - East Locality,LD - East Cambs - Special Needs,Residential Care
Cambridgeshire County Council,07-Jun-18,51300148350,-2977.44,DECOY FARM,CARE ESTABLISHMENT,LD - East Locality,LD - East Cambs - Special Needs,Residential Care
Cambridgeshire County Council,07-Jun-18,51300148288,-2977.44,DECOY FARM,CARE ESTABLISHMENT,LD - East Locality,LD - East Cambs - Special Needs,Residential Care
Cambridgeshire County Council,07-Jun-18,51300148319,-2977.44,DECOY FARM,CARE ESTABLISHMENT,LD - East Locality,LD - East Cambs - Special Needs,Residential Care
Cambridgeshire County Council,07-Jun-18,51300148356,-2977.44,DECOY FARM,CARE ESTABLISHMENT,LD - East Locality,LD - East Cambs - Special Needs,Residential Care
Cambridgeshire County Council,07-Jun-18,51300148297,-2977.44,DECOY FARM,CARE ESTABLISHMENT,LD - East Locality,LD - East Cambs - Special Needs,Residential Care
Cambridgeshire County Council,07-Jun-18,51300120138,-2977.44,DECOY FARM,CARE ESTABLISHMENT,LD - East Locality,LD - East Cambs - Special Needs,Residential Care
Cambridgeshire County Council,07-Jun-18,51300120099,-2977.44,DECOY FARM,CARE ESTABLISHMENT,LD - East Locality,LD - East Cambs - Special Needs,Residential Care
Cambridgeshire County Council,07-Jun-18,51300148343,-2977.44,DECOY FARM,CARE ESTABLISHMENT,LD - East Locality,LD - East Cambs - Special Needs,Residential Care
Cambridgeshire County Council,07-Jun-18,51300158113,-2977.44,DECOY FARM,CARE ESTABLISHMENT,LD - East Locality,LD - East Cambs - Special Needs,Residential Care
Cambridgeshire County Council,07-Jun-18,51300148335,-2977.44,DECOY FARM,CARE ESTABLISHMENT,LD - East Locality,LD - East Cambs - Special Needs,Residential Care
Cambridgeshire County Council,07-Jun-18,51300158079,-2977.44,DECOY FARM,CARE ESTABLISHMENT,LD - East Locality,LD - East Cambs - Special Needs,Residential Care
Cambridgeshire County Council,07-Jun-18,51300148349,-2977.44,DECOY FARM,CARE ESTABLISHMENT,LD - East Locality,LD - East Cambs - Special Needs,Residential Care
Cambridgeshire County Council,07-Jun-18,51300120177,-2977.44,DECOY FARM,CARE ESTABLISHMENT,LD - East Locality,LD - East Cambs - Special Needs,Residential Care
Cambridgeshire County Council,07-Jun-18,51300145328,-2977.44,DECOY FARM,CARE ESTABLISHMENT,LD - East Locality,LD - East Cambs - Special Needs,Residential Care
Cambridgeshire County Council,07-Jun-18,51300145313,-2977.44,DECOY FARM,CARE ESTABLISHMENT,LD - East Locality,LD - East Cambs - Special Needs,Residential Care
Cambridgeshire County Council,07-Jun-18,51300157996,-2977.44,DECOY FARM,CARE ESTABLISHMENT,LD - East Locality,LD - East Cambs - Special Needs,Residential Care
Cambridgeshire County Council,07-Jun-18,51300158102,-2977.44,DECOY FARM,CARE ESTABLISHMENT,LD - East Locality,LD - East Cambs - Special Needs,Residential Care
Cambridgeshire County Council,07-Jun-18,51300158003,-2977.44,DECOY FARM,CARE ESTABLISHMENT,LD - East Locality,LD - East Cambs - Special Needs,Residential Care
Cambridgeshire County Council,07-Jun-18,51300158083,-2977.44,DECOY FARM,CARE ESTABLISHMENT,LD - East Locality,LD - East Cambs - Special Needs,Residential Care
Cambridgeshire County Council,07-Jun-18,51300158112,-2977.44,DECOY FARM,CARE ESTABLISHMENT,LD - East Locality,LD - East Cambs - Special Needs,Residential Care
Cambridgeshire County Council,07-Jun-18,51300158135,-2977.44,DECOY FARM,CARE ESTABLISHMENT,LD - East Locality,LD - East Cambs - Special Needs,Residential Care
Cambridgeshire County Council,07-Jun-18,51300158061,-2977.44,DECOY FARM,CARE ESTABLISHMENT,LD - East Locality,LD - East Cambs - Special Needs,Residential Care
Cambridgeshire County Council,07-Jun-18,51300120209,-2977.44,DECOY FARM,CARE ESTABLISHMENT,LD - East Locality,LD - East Cambs - Special Needs,Residential Care
Cambridgeshire County Council,07-Jun-18,51300120147,-2977.44,DECOY FARM,CARE ESTABLISHMENT,LD - East Locality,LD - East Cambs - Special Needs,Residential Care
Cambridgeshire County Council,07-Jun-18,51300145299,-2977.44,DECOY FARM,CARE ESTABLISHMENT,LD - East Locality,LD - East Cambs - Special Needs,Residential Care
Cambridgeshire County Council,07-Jun-18,51300158097,-2977.44,DECOY FARM,CARE ESTABLISHMENT,LD - East Locality,LD - East Cambs - Special Needs,Residential Care
Cambridgeshire County Council,07-Jun-18,51300158115,-2977.44,DECOY FARM,CARE ESTABLISHMENT,LD - East Locality,LD - East Cambs - Special Needs,Residential Care
Cambridgeshire County Council,07-Jun-18,51300145303,-2977.44,DECOY FARM,CARE ESTABLISHMENT,LD - East Locality,LD - East Cambs - Special Needs,Residential Care
Cambridgeshire County Council,07-Jun-18,51300120158,-2977.44,DECOY FARM,CARE ESTABLISHMENT,LD - East Locality,LD - East Cambs - Special Needs,Residential Care
Cambridgeshire County Council,07-Jun-18,51300120120,-2977.44,DECOY FARM,CARE ESTABLISHMENT,LD - East Locality,LD - East Cambs - Special Needs,Residential Care
Cambridgeshire County Council,07-Jun-18,51300148241,-2977.44,DECOY FARM,CARE ESTABLISHMENT,LD - East Locality,LD - East Cambs - Special Needs,Residential Care
Cambridgeshire County Council,07-Jun-18,51300148358,-2977.44,DECOY FARM,CARE ESTABLISHMENT,LD - East Locality,LD - East Cambs - Special Needs,Residential Care
Cambridgeshire County Council,07-Jun-18,51300145304,-2977.44,DECOY FARM,CARE ESTABLISHMENT,LD - East Locality,LD - East Cambs - Special Needs,Residential Care
Cambridgeshire County Council,07-Jun-18,51300158085,-2977.44,DECOY FARM,CARE ESTABLISHMENT,LD - East Locality,LD - East Cambs - Special Needs,Residential Care
Cambridgeshire County Council,07-Jun-18,51300120096,-2977.44,DECOY FARM,CARE ESTABLISHMENT,LD - East Locality,LD - East Cambs - Special Needs,Residential Care
Cambridgeshire County Council,07-Jun-18,51300158032,-2977.44,DECOY FARM,CARE ESTABLISHMENT,LD - East Locality,LD - East Cambs - Special Needs,Residential Care
Cambridgeshire County Council,07-Jun-18,51300120143,-2977.44,DECOY FARM,CARE ESTABLISHMENT,LD - East Locality,LD - East Cambs - Special Needs,Residential Care
Cambridgeshire County Council,07-Jun-18,51300148246,-2977.44,DECOY FARM,CARE ESTABLISHMENT,LD - East Locality,LD - East Cambs - Special Needs,Residential Care
Cambridgeshire County Council,07-Jun-18,51300120202,-2977.44,DECOY FARM,CARE ESTABLISHMENT,LD - East Locality,LD - East Cambs - Special Needs,Residential Care
Cambridgeshire County Council,07-Jun-18,51300148314,-2977.44,DECOY FARM,CARE ESTABLISHMENT,LD - East Locality,LD - East Cambs - Special Needs,Residential Care
Cambridgeshire County Council,07-Jun-18,51300158037,-2977.44,DECOY FARM,CARE ESTABLISHMENT,LD - East Locality,LD - East Cambs - Special Needs,Residential Care
Cambridgeshire County Council,07-Jun-18,51300148330,-2977.44,DECOY FARM,CARE ESTABLISHMENT,LD - East Locality,LD - East Cambs - Special Needs,Residential Care
Cambridgeshire County Council,07-Jun-18,51300158059,-2977.44,DECOY FARM,CARE ESTABLISHMENT,LD - East Locality,LD - East Cambs - Special Needs,Residential Care
Cambridgeshire County Council,07-Jun-18,51300148347,-2977.44,DECOY FARM,CARE ESTABLISHMENT,LD - East Locality,LD - East Cambs - Special Needs,Residential Care
Cambridgeshire County Council,07-Jun-18,51300158053,-2977.44,DECOY FARM,CARE ESTABLISHMENT,LD - East Locality,LD - East Cambs - Special Needs,Residential Care
Cambridgeshire County Council,07-Jun-18,51300120149,-2977.44,DECOY FARM,CARE ESTABLISHMENT,LD - East Locality,LD - East Cambs - Special Needs,Residential Care
Cambridgeshire County Council,07-Jun-18,51300148278,-2977.44,DECOY FARM,CARE ESTABLISHMENT,LD - East Locality,LD - East Cambs - Special Needs,Residential Care
Cambridgeshire County Council,07-Jun-18,51300158091,-2977.44,DECOY FARM,CARE ESTABLISHMENT,LD - East Locality,LD - East Cambs - Special Needs,Residential Care
Cambridgeshire County Council,07-Jun-18,51300158074,-2977.44,DECOY FARM,CARE ESTABLISHMENT,LD - East Locality,LD - East Cambs - Special Needs,Residential Care
Cambridgeshire County Council,07-Jun-18,51300120087,-2977.44,DECOY FARM,CARE ESTABLISHMENT,LD - East Locality,LD - East Cambs - Special Needs,Residential Care
Cambridgeshire County Council,07-Jun-18,51300148337,-2977.44,DECOY FARM,CARE ESTABLISHMENT,LD - East Locality,LD - East Cambs - Special Needs,Residential Care
Cambridgeshire County Council,07-Jun-18,51300148348,-2977.44,DECOY FARM,CARE ESTABLISHMENT,LD - East Locality,LD - East Cambs - Special Needs,Residential Care
Cambridgeshire County Council,07-Jun-18,51300148357,-2977.44,DECOY FARM,CARE ESTABLISHMENT,LD - East Locality,LD - East Cambs - Special Needs,Residential Care
Cambridgeshire County Council,07-Jun-18,51300148355,-2977.44,DECOY FARM,CARE ESTABLISHMENT,LD - East Locality,LD - East Cambs - Special Needs,Residential Care
Cambridgeshire County Council,07-Jun-18,51300148320,-2977.44,DECOY FARM,CARE ESTABLISHMENT,LD - East Locality,LD - East Cambs - Special Needs,Residential Care
Cambridgeshire County Council,07-Jun-18,51300120151,-2977.44,DECOY FARM,CARE ESTABLISHMENT,LD - East Locality,LD - East Cambs - Special Needs,Residential Care
Cambridgeshire County Council,07-Jun-18,51300148366,-2977.44,DECOY FARM,CARE ESTABLISHMENT,LD - East Locality,LD - East Cambs - Special Needs,Residential Care
Cambridgeshire County Council,07-Jun-18,51300120122,-2977.44,DECOY FARM,CARE ESTABLISHMENT,LD - East Locality,LD - East Cambs - Special Needs,Residential Care
Cambridgeshire County Council,07-Jun-18,51300158040,-2977.44,DECOY FARM,CARE ESTABLISHMENT,LD - East Locality,LD - East Cambs - Special Needs,Residential Care
Cambridgeshire County Council,07-Jun-18,51300148266,-2977.44,DECOY FARM,CARE ESTABLISHMENT,LD - East Locality,LD - East Cambs - Special Needs,Residential Care
Cambridgeshire County Council,07-Jun-18,51300120183,-2977.44,DECOY FARM,CARE ESTABLISHMENT,LD - East Locality,LD - East Cambs - Special Needs,Residential Care
Cambridgeshire County Council,07-Jun-18,51300158099,-2977.44,DECOY FARM,CARE ESTABLISHMENT,LD - East Locality,LD - East Cambs - Special Needs,Residential Care
Cambridgeshire County Council,07-Jun-18,51300120213,-2977.44,DECOY FARM,CARE ESTABLISHMENT,LD - East Locality,LD - East Cambs - Special Needs,Residential Care
Cambridgeshire County Council,07-Jun-18,51300120089,-2977.44,DECOY FARM,CARE ESTABLISHMENT,LD - East Locality,LD - East Cambs - Special Needs,Residential Care
Cambridgeshire County Council,07-Jun-18,51300145321,-2977.44,DECOY FARM,CARE ESTABLISHMENT,LD - East Locality,LD - East Cambs - Special Needs,Residential Care
Cambridgeshire County Council,07-Jun-18,51300120187,-2977.44,DECOY FARM,CARE ESTABLISHMENT,LD - East Locality,LD - East Cambs - Special Needs,Residential Care
Cambridgeshire County Council,07-Jun-18,51300148289,-2977.44,DECOY FARM,CARE ESTABLISHMENT,LD - East Locality,LD - East Cambs - Special Needs,Residential Care
Cambridgeshire County Council,07-Jun-18,51300145315,-2977.44,DECOY FARM,CARE ESTABLISHMENT,LD - East Locality,LD - East Cambs - Special Needs,Residential Care
Cambridgeshire County Council,07-Jun-18,51300158144,-2977.44,DECOY FARM,CARE ESTABLISHMENT,LD - East Locality,LD - East Cambs - Special Needs,Residential Care
Cambridgeshire County Council,07-Jun-18,51300148305,-2977.44,DECOY FARM,CARE ESTABLISHMENT,LD - East Locality,LD - East Cambs - Special Needs,Residential Care
Cambridgeshire County Council,07-Jun-18,51300120106,-2977.44,DECOY FARM,CARE ESTABLISHMENT,LD - East Locality,LD - East Cambs - Special Needs,Residential Care
Cambridgeshire County Council,07-Jun-18,51300120094,-2977.44,DECOY FARM,CARE ESTABLISHMENT,LD - East Locality,LD - East Cambs - Special Needs,Residential Care
Cambridgeshire County Council,07-Jun-18,51300120168,-2977.44,DECOY FARM,CARE ESTABLISHMENT,LD - East Locality,LD - East Cambs - Special Needs,Residential Care
Cambridgeshire County Council,07-Jun-18,51300120131,-2977.44,DECOY FARM,CARE ESTABLISHMENT,LD - East Locality,LD - East Cambs - Special Needs,Residential Care
Cambridgeshire County Council,07-Jun-18,51300120091,-2977.44,DECOY FARM,CARE ESTABLISHMENT,LD - East Locality,LD - East Cambs - Special Needs,Residential Care
Cambridgeshire County Council,07-Jun-18,51300158047,-2977.44,DECOY FARM,CARE ESTABLISHMENT,LD - East Locality,LD - East Cambs - Special Needs,Residential Care
Cambridgeshire County Council,07-Jun-18,51300145306,-2977.44,DECOY FARM,CARE ESTABLISHMENT,LD - East Locality,LD - East Cambs - Special Needs,Residential Care
Cambridgeshire County Council,07-Jun-18,51300148260,-2977.44,DECOY FARM,CARE ESTABLISHMENT,LD - East Locality,LD - East Cambs - Special Needs,Residential Care
Cambridgeshire County Council,07-Jun-18,51300148361,-2977.44,DECOY FARM,CARE ESTABLISHMENT,LD - East Locality,LD - East Cambs - Special Needs,Residential Care
Cambridgeshire County Council,07-Jun-18,51300158048,-2977.44,DECOY FARM,CARE ESTABLISHMENT,LD - East Locality,LD - East Cambs - Special Needs,Residential Care
Cambridgeshire County Council,07-Jun-18,51300120212,-2977.44,DECOY FARM,CARE ESTABLISHMENT,LD - East Locality,LD - East Cambs - Special Needs,Residential Care
Cambridgeshire County Council,07-Jun-18,51300120191,-2977.44,DECOY FARM,CARE ESTABLISHMENT,LD - East Locality,LD - East Cambs - Special Needs,Residential Care
Cambridgeshire County Council,07-Jun-18,51300145310,-2977.44,DECOY FARM,CARE ESTABLISHMENT,LD - East Locality,LD - East Cambs - Special Needs,Residential Care
Cambridgeshire County Council,07-Jun-18,51300158062,-2977.44,DECOY FARM,CARE ESTABLISHMENT,LD - East Locality,LD - East Cambs - Special Needs,Residential Care
Cambridgeshire County Council,07-Jun-18,51300158071,-2977.44,DECOY FARM,CARE ESTABLISHMENT,LD - East Locality,LD - East Cambs - Special Needs,Residential Care
Cambridgeshire County Council,13-Jun-18,51300169566,-2977.44,DECOY FARM,CARE ESTABLISHMENT,LD - East Locality,LD - East Cambs - Special Needs,Residential Care
Cambridgeshire County Council,13-Jun-18,51300169581,-2977.44,DECOY FARM,CARE ESTABLISHMENT,LD - East Locality,LD - East Cambs - Special Needs,Residential Care
Cambridgeshire County Council,13-Jun-18,51300169468,-2977.44,DECOY FARM,CARE ESTABLISHMENT,LD - East Locality,LD - East Cambs - Special Needs,Residential Care
Cambridgeshire County Council,13-Jun-18,51300169505,-2977.44,DECOY FARM,CARE ESTABLISHMENT,LD - East Locality,LD - East Cambs - Special Needs,Residential Care
Cambridgeshire County Council,13-Jun-18,51300169481,-2977.44,DECOY FARM,CARE ESTABLISHMENT,LD - East Locality,LD - East Cambs - Special Needs,Residential Care
Cambridgeshire County Council,13-Jun-18,51300169594,-2977.44,DECOY FARM,CARE ESTABLISHMENT,LD - East Locality,LD - East Cambs - Special Needs,Residential Care
Cambridgeshire County Council,13-Jun-18,51300169495,-2977.44,DECOY FARM,CARE ESTABLISHMENT,LD - East Locality,LD - East Cambs - Special Needs,Residential Care
Cambridgeshire County Council,13-Jun-18,51300169490,-2977.44,DECOY FARM,CARE ESTABLISHMENT,LD - East Locality,LD - East Cambs - Special Needs,Residential Care
Cambridgeshire County Council,13-Jun-18,51300169484,-2977.44,DECOY FARM,CARE ESTABLISHMENT,LD - East Locality,LD - East Cambs - Special Needs,Residential Care
Cambridgeshire County Council,13-Jun-18,51300169472,-2977.44,DECOY FARM,CARE ESTABLISHMENT,LD - East Locality,LD - East Cambs - Special Needs,Residential Care
Cambridgeshire County Council,13-Jun-18,51300169553,-2977.44,DECOY FARM,CARE ESTABLISHMENT,LD - East Locality,LD - East Cambs - Special Needs,Residential Care
Cambridgeshire County Council,13-Jun-18,51300169546,-2977.44,DECOY FARM,CARE ESTABLISHMENT,LD - East Locality,LD - East Cambs - Special Needs,Residential Care
Cambridgeshire County Council,13-Jun-18,51300169460,-2977.44,DECOY FARM,CARE ESTABLISHMENT,LD - East Locality,LD - East Cambs - Special Needs,Residential Care
Cambridgeshire County Council,13-Jun-18,51300169501,-2977.44,DECOY FARM,CARE ESTABLISHMENT,LD - East Locality,LD - East Cambs - Special Needs,Residential Care
Cambridgeshire County Council,13-Jun-18,51300169516,-2977.44,DECOY FARM,CARE ESTABLISHMENT,LD - East Locality,LD - East Cambs - Special Needs,Residential Care
Cambridgeshire County Council,13-Jun-18,51300169570,-2977.44,DECOY FARM,CARE ESTABLISHMENT,LD - East Locality,LD - East Cambs - Special Needs,Residential Care
Cambridgeshire County Council,13-Jun-18,51300169469,-2977.44,DECOY FARM,CARE ESTABLISHMENT,LD - East Locality,LD - East Cambs - Special Needs,Residential Care
Cambridgeshire County Council,13-Jun-18,51300169449,-2977.44,DECOY FARM,CARE ESTABLISHMENT,LD - East Locality,LD - East Cambs - Special Needs,Residential Care
Cambridgeshire County Council,13-Jun-18,51300169596,-2977.44,DECOY FARM,CARE ESTABLISHMENT,LD - East Locality,LD - East Cambs - Special Needs,Residential Care
Cambridgeshire County Council,13-Jun-18,51300169473,-2977.44,DECOY FARM,CARE ESTABLISHMENT,LD - East Locality,LD - East Cambs - Special Needs,Residential Care
Cambridgeshire County Council,13-Jun-18,51300169521,-2977.44,DECOY FARM,CARE ESTABLISHMENT,LD - East Locality,LD - East Cambs - Special Needs,Residential Care
Cambridgeshire County Council,13-Jun-18,51300169455,-2977.44,DECOY FARM,CARE ESTABLISHMENT,LD - East Locality,LD - East Cambs - Special Needs,Residential Care
Cambridgeshire County Council,13-Jun-18,51300169517,-2977.44,DECOY FARM,CARE ESTABLISHMENT,LD - East Locality,LD - East Cambs - Special Needs,Residential Care
Cambridgeshire County Council,13-Jun-18,51300169453,-2977.44,DECOY FARM,CARE ESTABLISHMENT,LD - East Locality,LD - East Cambs - Special Needs,Residential Care
Cambridgeshire County Council,13-Jun-18,51300169569,-2977.44,DECOY FARM,CARE ESTABLISHMENT,LD - East Locality,LD - East Cambs - Special Needs,Residential Care
Cambridgeshire County Council,13-Jun-18,51300169601,-2977.44,DECOY FARM,CARE ESTABLISHMENT,LD - East Locality,LD - East Cambs - Special Needs,Residential Care
Cambridgeshire County Council,13-Jun-18,51300169578,-2977.44,DECOY FARM,CARE ESTABLISHMENT,LD - East Locality,LD - East Cambs - Special Needs,Residential Care
Cambridgeshire County Council,13-Jun-18,51300169476,-2977.44,DECOY FARM,CARE ESTABLISHMENT,LD - East Locality,LD - East Cambs - Special Needs,Residential Care
Cambridgeshire County Council,13-Jun-18,51300169563,-2977.44,DECOY FARM,CARE ESTABLISHMENT,LD - East Locality,LD - East Cambs - Special Needs,Residential Care
Cambridgeshire County Council,13-Jun-18,51300169530,-2977.44,DECOY FARM,CARE ESTABLISHMENT,LD - East Locality,LD - East Cambs - Special Needs,Residential Care
Cambridgeshire County Council,13-Jun-18,51300169503,-2977.44,DECOY FARM,CARE ESTABLISHMENT,LD - East Locality,LD - East Cambs - Special Needs,Residential Care
Cambridgeshire County Council,13-Jun-18,51300169542,-2977.44,DECOY FARM,CARE ESTABLISHMENT,LD - East Locality,LD - East Cambs - Special Needs,Residential Care
Cambridgeshire County Council,13-Jun-18,51300169565,-2977.44,DECOY FARM,CARE ESTABLISHMENT,LD - East Locality,LD - East Cambs - Special Needs,Residential Care
Cambridgeshire County Council,13-Jun-18,51300169571,-2977.44,DECOY FARM,CARE ESTABLISHMENT,LD - East Locality,LD - East Cambs - Special Needs,Residential Care
Cambridgeshire County Council,13-Jun-18,51300169567,-2977.44,DECOY FARM,CARE ESTABLISHMENT,LD - East Locality,LD - East Cambs - Special Needs,Residential Care
Cambridgeshire County Council,13-Jun-18,51300169477,-2977.44,DECOY FARM,CARE ESTABLISHMENT,LD - East Locality,LD - East Cambs - Special Needs,Residential Care
Cambridgeshire County Council,13-Jun-18,51300169462,-2977.44,DECOY FARM,CARE ESTABLISHMENT,LD - East Locality,LD - East Cambs - Special Needs,Residential Care
Cambridgeshire County Council,13-Jun-18,51300169536,-2977.44,DECOY FARM,CARE ESTABLISHMENT,LD - East Locality,LD - East Cambs - Special Needs,Residential Care
Cambridgeshire County Council,13-Jun-18,51300169522,-2977.44,DECOY FARM,CARE ESTABLISHMENT,LD - East Locality,LD - East Cambs - Special Needs,Residential Care
Cambridgeshire County Council,13-Jun-18,51300169485,-2977.44,DECOY FARM,CARE ESTABLISHMENT,LD - East Locality,LD - East Cambs - Special Needs,Residential Care
Cambridgeshire County Council,13-Jun-18,51300169470,-2977.44,DECOY FARM,CARE ESTABLISHMENT,LD - East Locality,LD - East Cambs - Special Needs,Residential Care
Cambridgeshire County Council,13-Jun-18,51300169487,-2977.44,DECOY FARM,CARE ESTABLISHMENT,LD - East Locality,LD - East Cambs - Special Needs,Residential Care
Cambridgeshire County Council,13-Jun-18,51300169502,-2977.44,DECOY FARM,CARE ESTABLISHMENT,LD - East Locality,LD - East Cambs - Special Needs,Residential Care
Cambridgeshire County Council,13-Jun-18,51300169506,-2977.44,DECOY FARM,CARE ESTABLISHMENT,LD - East Locality,LD - East Cambs - Special Needs,Residential Care
Cambridgeshire County Council,13-Jun-18,51300169532,-2977.44,DECOY FARM,CARE ESTABLISHMENT,LD - East Locality,LD - East Cambs - Special Needs,Residential Care
Cambridgeshire County Council,13-Jun-18,51300169448,-2977.44,DECOY FARM,CARE ESTABLISHMENT,LD - East Locality,LD - East Cambs - Special Needs,Residential Care
Cambridgeshire County Council,13-Jun-18,51300169459,-2977.44,DECOY FARM,CARE ESTABLISHMENT,LD - East Locality,LD - East Cambs - Special Needs,Residential Care
Cambridgeshire County Council,13-Jun-18,51300169598,-2977.44,DECOY FARM,CARE ESTABLISHMENT,LD - East Locality,LD - East Cambs - Special Needs,Residential Care
Cambridgeshire County Council,13-Jun-18,51300169450,-2977.44,DECOY FARM,CARE ESTABLISHMENT,LD - East Locality,LD - East Cambs - Special Needs,Residential Care
Cambridgeshire County Council,13-Jun-18,51300169498,-2977.44,DECOY FARM,CARE ESTABLISHMENT,LD - East Locality,LD - East Cambs - Special Needs,Residential Care
Cambridgeshire County Council,13-Jun-18,51300169559,-2977.44,DECOY FARM,CARE ESTABLISHMENT,LD - East Locality,LD - East Cambs - Special Needs,Residential Care
Cambridgeshire County Council,13-Jun-18,51300169480,-2977.44,DECOY FARM,CARE ESTABLISHMENT,LD - East Locality,LD - East Cambs - Special Needs,Residential Care
Cambridgeshire County Council,13-Jun-18,51300169500,-2977.44,DECOY FARM,CARE ESTABLISHMENT,LD - East Locality,LD - East Cambs - Special Needs,Residential Care
Cambridgeshire County Council,13-Jun-18,51300169526,-2977.44,DECOY FARM,CARE ESTABLISHMENT,LD - East Locality,LD - East Cambs - Special Needs,Residential Care
Cambridgeshire County Council,13-Jun-18,51300169597,-2977.44,DECOY FARM,CARE ESTABLISHMENT,LD - East Locality,LD - East Cambs - Special Needs,Residential Care
Cambridgeshire County Council,13-Jun-18,51300169465,-2977.44,DECOY FARM,CARE ESTABLISHMENT,LD - East Locality,LD - East Cambs - Special Needs,Residential Care
Cambridgeshire County Council,13-Jun-18,51300169447,-2977.44,DECOY FARM,CARE ESTABLISHMENT,LD - East Locality,LD - East Cambs - Special Needs,Residential Care
Cambridgeshire County Council,13-Jun-18,51300169515,-2977.44,DECOY FARM,CARE ESTABLISHMENT,LD - East Locality,LD - East Cambs - Special Needs,Residential Care
Cambridgeshire County Council,13-Jun-18,51300169514,-2977.44,DECOY FARM,CARE ESTABLISHMENT,LD - East Locality,LD - East Cambs - Special Needs,Residential Care
Cambridgeshire County Council,13-Jun-18,51300169511,-2977.44,DECOY FARM,CARE ESTABLISHMENT,LD - East Locality,LD - East Cambs - Special Needs,Residential Care
Cambridgeshire County Council,13-Jun-18,51300169523,-2977.44,DECOY FARM,CARE ESTABLISHMENT,LD - East Locality,LD - East Cambs - Special Needs,Residential Care
Cambridgeshire County Council,13-Jun-18,51300169599,-2977.44,DECOY FARM,CARE ESTABLISHMENT,LD - East Locality,LD - East Cambs - Special Needs,Residential Care
Cambridgeshire County Council,13-Jun-18,51300169543,-2977.44,DECOY FARM,CARE ESTABLISHMENT,LD - East Locality,LD - East Cambs - Special Needs,Residential Care
Cambridgeshire County Council,13-Jun-18,51300169544,-2977.44,DECOY FARM,CARE ESTABLISHMENT,LD - East Locality,LD - East Cambs - Special Needs,Residential Care
Cambridgeshire County Council,13-Jun-18,51300169568,-2977.44,DECOY FARM,CARE ESTABLISHMENT,LD - East Locality,LD - East Cambs - Special Needs,Residential Care
Cambridgeshire County Council,13-Jun-18,51300169463,-2977.44,DECOY FARM,CARE ESTABLISHMENT,LD - East Locality,LD - East Cambs - Special Needs,Residential Care
Cambridgeshire County Council,13-Jun-18,51300169499,-2977.44,DECOY FARM,CARE ESTABLISHMENT,LD - East Locality,LD - East Cambs - Special Needs,Residential Care
Cambridgeshire County Council,13-Jun-18,51300169533,-2977.44,DECOY FARM,CARE ESTABLISHMENT,LD - East Locality,LD - East Cambs - Special Needs,Residential Care
Cambridgeshire County Council,13-Jun-18,51300169528,-2977.44,DECOY FARM,CARE ESTABLISHMENT,LD - East Locality,LD - East Cambs - Special Needs,Residential Care
Cambridgeshire County Council,13-Jun-18,51300169586,-2977.44,DECOY FARM,CARE ESTABLISHMENT,LD - East Locality,LD - East Cambs - Special Needs,Residential Care
Cambridgeshire County Council,13-Jun-18,51300169527,-2977.44,DECOY FARM,CARE ESTABLISHMENT,LD - East Locality,LD - East Cambs - Special Needs,Residential Care
Cambridgeshire County Council,13-Jun-18,51300169589,-2977.44,DECOY FARM,CARE ESTABLISHMENT,LD - East Locality,LD - East Cambs - Special Needs,Residential Care
Cambridgeshire County Council,13-Jun-18,51300169550,-2977.44,DECOY FARM,CARE ESTABLISHMENT,LD - East Locality,LD - East Cambs - Special Needs,Residential Care
Cambridgeshire County Council,22-Jun-18,51300170641,-2702.7,AFFINITY TRUST#1,CARE ESTABLISHMENT,LD - Fenland Locality,LD - Fenland - Special Needs,Suppported Living
Cambridgeshire County Council,22-Jun-18,51300170628,-2702.7,AFFINITY TRUST#1,CARE ESTABLISHMENT,LD - Fenland Locality,LD - Fenland - Special Needs,Suppported Living
Cambridgeshire County Council,22-Jun-18,51300170627,-2702.7,AFFINITY TRUST#1,CARE ESTABLISHMENT,LD - Fenland Locality,LD - Fenland - Special Needs,Suppported Living
Cambridgeshire County Council,22-Jun-18,51300170621,-2702.7,AFFINITY TRUST#1,CARE ESTABLISHMENT,LD - Fenland Locality,LD - Fenland - Special Needs,Suppported Living
Cambridgeshire County Council,22-Jun-18,51300170623,-2702.7,AFFINITY TRUST#1,CARE ESTABLISHMENT,LD - Fenland Locality,LD - Fenland - Special Needs,Suppported Living
Cambridgeshire County Council,22-Jun-18,51300170615,-2702.7,AFFINITY TRUST#1,CARE ESTABLISHMENT,LD - Fenland Locality,LD - Fenland - Special Needs,Suppported Living
Cambridgeshire County Council,22-Jun-18,51300170625,-2702.7,AFFINITY TRUST#1,CARE ESTABLISHMENT,LD - Fenland Locality,LD - Fenland - Special Needs,Suppported Living
Cambridgeshire County Council,22-Jun-18,51300170624,-2702.7,AFFINITY TRUST#1,CARE ESTABLISHMENT,LD - Fenland Locality,LD - Fenland - Special Needs,Suppported Living
Cambridgeshire County Council,22-Jun-18,51300170635,-2702.7,AFFINITY TRUST#1,CARE ESTABLISHMENT,LD - Fenland Locality,LD - Fenland - Special Needs,Suppported Living
Cambridgeshire County Council,22-Jun-18,51300170622,-2702.7,AFFINITY TRUST#1,CARE ESTABLISHMENT,LD - Fenland Locality,LD - Fenland - Special Needs,Suppported Living
Cambridgeshire County Council,07-Jun-18,51300158065,-2552.09,DECOY FARM,CARE ESTABLISHMENT,LD - East Locality,LD - East Cambs - Special Needs,Residential Care
Cambridgeshire County Council,07-Jun-18,51300120102,-2552.09,DECOY FARM,CARE ESTABLISHMENT,LD - East Locality,LD - East Cambs - Special Needs,Residential Care
Cambridgeshire County Council,07-Jun-18,51300148243,-2552.09,DECOY FARM,CARE ESTABLISHMENT,LD - East Locality,LD - East Cambs - Special Needs,Residential Care
Cambridgeshire County Council,13-Jun-18,51300169583,-2552.09,DECOY FARM,CARE ESTABLISHMENT,LD - East Locality,LD - East Cambs - Special Needs,Residential Care
Cambridgeshire County Council,22-Jun-18,51300173131,-2337.29,DIMENSIONS (UK) LTD#1,CARE ESTABLISHMENT,LD - South Locality,LD - South Cambs - Special Needs,Suppported Living
Cambridgeshire County Council,22-Jun-18,51300162042,-2337.29,DIMENSIONS (UK) LTD#1,CARE ESTABLISHMENT,LD - South Locality,LD - South Cambs - Special Needs,Suppported Living
Cambridgeshire County Council,22-Jun-18,51300173138,-2337.29,DIMENSIONS (UK) LTD#1,CARE ESTABLISHMENT,LD - South Locality,LD - South Cambs - Special Needs,Suppported Living
Cambridgeshire County Council,22-Jun-18,51300173125,-2337.29,DIMENSIONS (UK) LTD#1,CARE ESTABLISHMENT,LD - South Locality,LD - South Cambs - Special Needs,Suppported Living
Cambridgeshire County Council,22-Jun-18,51300162036,-2337.29,DIMENSIONS (UK) LTD#1,CARE ESTABLISHMENT,LD - South Locality,LD - South Cambs - Special Needs,Suppported Living
Cambridgeshire County Council,22-Jun-18,51300162048,-2337.29,DIMENSIONS (UK) LTD#1,CARE ESTABLISHMENT,LD - South Locality,LD - South Cambs - Special Needs,Suppported Living
Cambridgeshire County Council,22-Jun-18,51300152106,-2337.29,DIMENSIONS (UK) LTD#1,CARE ESTABLISHMENT,LD - South Locality,LD - South Cambs - Special Needs,Suppported Living
Cambridgeshire County Council,22-Jun-18,51300152102,-2337.29,DIMENSIONS (UK) LTD#1,CARE ESTABLISHMENT,LD - South Locality,LD - South Cambs - Special Needs,Suppported Living
Cambridgeshire County Council,22-Jun-18,51300193445,-2337.29,DIMENSIONS (UK) LTD#1,CARE ESTABLISHMENT,LD - South Locality,LD - South Cambs - Special Needs,Suppported Living
Cambridgeshire County Council,22-Jun-18,51300193440,-2337.29,DIMENSIONS (UK) LTD#1,CARE ESTABLISHMENT,LD - South Locality,LD - South Cambs - Special Needs,Suppported Living
Cambridgeshire County Council,22-Jun-18,51300173123,-2337.29,DIMENSIONS (UK) LTD#1,CARE ESTABLISHMENT,LD - South Locality,LD - South Cambs - Special Needs,Suppported Living
Cambridgeshire County Council,22-Jun-18,51300152107,-2337.29,DIMENSIONS (UK) LTD#1,CARE ESTABLISHMENT,LD - South Locality,LD - South Cambs - Special Needs,Suppported Living
Cambridgeshire County Council,22-Jun-18,51300162037,-2337.29,DIMENSIONS (UK) LTD#1,CARE ESTABLISHMENT,LD - South Locality,LD - South Cambs - Special Needs,Suppported Living
Cambridgeshire County Council,22-Jun-18,51300173124,-2337.29,DIMENSIONS (UK) LTD#1,CARE ESTABLISHMENT,LD - South Locality,LD - South Cambs - Special Needs,Suppported Living
Cambridgeshire County Council,22-Jun-18,51300162043,-2337.29,DIMENSIONS (UK) LTD#1,CARE ESTABLISHMENT,LD - South Locality,LD - South Cambs - Special Needs,Suppported Living
Cambridgeshire County Council,22-Jun-18,51300173133,-2337.29,DIMENSIONS (UK) LTD#1,CARE ESTABLISHMENT,LD - South Locality,LD - South Cambs - Special Needs,Suppported Living
Cambridgeshire County Council,22-Jun-18,51300152101,-2337.29,DIMENSIONS (UK) LTD#1,CARE ESTABLISHMENT,LD - South Locality,LD - South Cambs - Special Needs,Suppported Living
Cambridgeshire County Council,22-Jun-18,51300173118,-2337.29,DIMENSIONS (UK) LTD#1,CARE ESTABLISHMENT,LD - South Locality,LD - South Cambs - Special Needs,Suppported Living
Cambridgeshire County Council,22-Jun-18,51300193439,-2337.29,DIMENSIONS (UK) LTD#1,CARE ESTABLISHMENT,LD - South Locality,LD - South Cambs - Special Needs,Suppported Living
Cambridgeshire County Council,22-Jun-18,51300193462,-2337.29,DIMENSIONS (UK) LTD#1,CARE ESTABLISHMENT,LD - South Locality,LD - South Cambs - Special Needs,Suppported Living
Cambridgeshire County Council,22-Jun-18,51300173137,-2337.29,DIMENSIONS (UK) LTD#1,CARE ESTABLISHMENT,LD - City Locality,LD - City - Special Needs,Suppported Living
Cambridgeshire County Council,22-Jun-18,51300152095,-2337.29,DIMENSIONS (UK) LTD#1,CARE ESTABLISHMENT,LD - City Locality,LD - City - Special Needs,Suppported Living
Cambridgeshire County Council,22-Jun-18,51300193438,-2337.29,DIMENSIONS (UK) LTD#1,CARE ESTABLISHMENT,LD - City Locality,LD - City - Special Needs,Suppported Living
Cambridgeshire County Council,22-Jun-18,51300193430,-2337.29,DIMENSIONS (UK) LTD#1,CARE ESTABLISHMENT,LD - City Locality,LD - City - Special Needs,Suppported Living
Cambridgeshire County Council,22-Jun-18,51300162039,-2337.29,DIMENSIONS (UK) LTD#1,CARE ESTABLISHMENT,LD - City Locality,LD - City - Special Needs,Suppported Living
Cambridgeshire County Council,22-Jun-18,51300152104,-2337.29,DIMENSIONS (UK) LTD#1,CARE ESTABLISHMENT,LD - City Locality,LD - City - Special Needs,Suppported Living
Cambridgeshire County Council,22-Jun-18,51300162035,-2337.29,DIMENSIONS (UK) LTD#1,CARE ESTABLISHMENT,LD - City Locality,LD - City - Special Needs,Suppported Living
Cambridgeshire County Council,22-Jun-18,51300193441,-2337.29,DIMENSIONS (UK) LTD#1,CARE ESTABLISHMENT,LD - City Locality,LD - City - Special Needs,Suppported Living
Cambridgeshire County Council,22-Jun-18,51300152109,-2337.29,DIMENSIONS (UK) LTD#1,CARE ESTABLISHMENT,LD - City Locality,LD - City - Special Needs,Suppported Living
Cambridgeshire County Council,22-Jun-18,51300162041,-2337.29,DIMENSIONS (UK) LTD#1,CARE ESTABLISHMENT,LD - City Locality,LD - City - Special Needs,Suppported Living
Cambridgeshire County Council,22-Jun-18,51300152103,-2337.29,DIMENSIONS (UK) LTD#1,CARE ESTABLISHMENT,LD - City Locality,LD - City - Special Needs,Suppported Living
Cambridgeshire County Council,22-Jun-18,51300193429,-2337.29,DIMENSIONS (UK) LTD#1,CARE ESTABLISHMENT,LD - City Locality,LD - City - Special Needs,Suppported Living
Cambridgeshire County Council,03-Jun-18,51300043076,-2286.28,Redacted Personal Data,SERVICE USER,LD - East Locality,LD - East Cambs - Special Needs,Direct Payments
Cambridgeshire County Council,07-Jun-18,51300157829,-2268.47,OAKLANDS,CARE ESTABLISHMENT,LD - Hunts Locality,LD - Huntigndonshire - Special Needs,Residential Care
Cambridgeshire County Council,07-Jun-18,51300157776,-2268.47,OAKLANDS,CARE ESTABLISHMENT,LD - Hunts Locality,LD - Huntigndonshire - Special Needs,Residential Care
Cambridgeshire County Council,07-Jun-18,51300157868,-2268.47,OAKLANDS,CARE ESTABLISHMENT,LD - Hunts Locality,LD - Huntigndonshire - Special Needs,Residential Care
Cambridgeshire County Council,07-Jun-18,51300157755,-2268.47,OAKLANDS,CARE ESTABLISHMENT,LD - Hunts Locality,LD - Huntigndonshire - Special Needs,Residential Care
Cambridgeshire County Council,07-Jun-18,51300157775,-2268.47,OAKLANDS,CARE ESTABLISHMENT,LD - Hunts Locality,LD - Huntigndonshire - Special Needs,Residential Care
Cambridgeshire County Council,07-Jun-18,51300157850,-2268.47,OAKLANDS,CARE ESTABLISHMENT,LD - Hunts Locality,LD - Huntigndonshire - Special Needs,Residential Care
Cambridgeshire County Council,07-Jun-18,51300157783,-2268.47,OAKLANDS,CARE ESTABLISHMENT,LD - Hunts Locality,LD - Huntigndonshire - Special Needs,Residential Care
Cambridgeshire County Council,07-Jun-18,51300157846,-2268.47,OAKLANDS,CARE ESTABLISHMENT,LD - Hunts Locality,LD - Huntigndonshire - Special Needs,Residential Care
Cambridgeshire County Council,07-Jun-18,51300157816,-2268.47,OAKLANDS,CARE ESTABLISHMENT,LD - Hunts Locality,LD - Huntigndonshire - Special Needs,Residential Care
Cambridgeshire County Council,07-Jun-18,51300157737,-2268.47,OAKLANDS,CARE ESTABLISHMENT,LD - Hunts Locality,LD - Huntigndonshire - Special Needs,Residential Care
Cambridgeshire County Council,07-Jun-18,51300157745,-2268.47,OAKLANDS,CARE ESTABLISHMENT,LD - Hunts Locality,LD - Huntigndonshire - Special Needs,Residential Care
Cambridgeshire County Council,07-Jun-18,51300157810,-2268.47,OAKLANDS,CARE ESTABLISHMENT,LD - Hunts Locality,LD - Huntigndonshire - Special Needs,Residential Care
Cambridgeshire County Council,07-Jun-18,51300157759,-2268.47,OAKLANDS,CARE ESTABLISHMENT,LD - Hunts Locality,LD - Huntigndonshire - Special Needs,Residential Care
Cambridgeshire County Council,07-Jun-18,51300157721,-2268.47,OAKLANDS,CARE ESTABLISHMENT,LD - Hunts Locality,LD - Huntigndonshire - Special Needs,Residential Care
Cambridgeshire County Council,07-Jun-18,51300157811,-2268.47,OAKLANDS,CARE ESTABLISHMENT,LD - Hunts Locality,LD - Huntigndonshire - Special Needs,Residential Care
Cambridgeshire County Council,07-Jun-18,51300157787,-2268.47,OAKLANDS,CARE ESTABLISHMENT,LD - Hunts Locality,LD - Huntigndonshire - Special Needs,Residential Care
Cambridgeshire County Council,07-Jun-18,51300157828,-2268.47,OAKLANDS,CARE ESTABLISHMENT,LD - Hunts Locality,LD - Huntigndonshire - Special Needs,Residential Care
Cambridgeshire County Council,07-Jun-18,51300157836,-2268.47,OAKLANDS,CARE ESTABLISHMENT,LD - Hunts Locality,LD - Huntigndonshire - Special Needs,Residential Care
Cambridgeshire County Council,07-Jun-18,51300157830,-2268.47,OAKLANDS,CARE ESTABLISHMENT,LD - Hunts Locality,LD - Huntigndonshire - Special Needs,Residential Care
Cambridgeshire County Council,07-Jun-18,51300157768,-2268.47,OAKLANDS,CARE ESTABLISHMENT,LD - Hunts Locality,LD - Huntigndonshire - Special Needs,Residential Care
Cambridgeshire County Council,07-Jun-18,51300157791,-2268.47,OAKLANDS,CARE ESTABLISHMENT,LD - Hunts Locality,LD - Huntigndonshire - Special Needs,Residential Care
Cambridgeshire County Council,13-Jun-18,51300174817,-1989.5,PARK HOUSE (BEDFORD),CARE ESTABLISHMENT,Physical Disablity,Countywide PD Service - Care,Residential Care
Cambridgeshire County Council,13-Jun-18,51300174819,-1989.5,PARK HOUSE (BEDFORD),CARE ESTABLISHMENT,Physical Disablity,Countywide PD Service - Care,Residential Care
Cambridgeshire County Council,13-Jun-18,51300174816,-1989.5,PARK HOUSE (BEDFORD),CARE ESTABLISHMENT,Physical Disablity,Countywide PD Service - Care,Residential Care
Cambridgeshire County Council,13-Jun-18,51300174831,-1989.5,PARK HOUSE (BEDFORD),CARE ESTABLISHMENT,Physical Disablity,Countywide PD Service - Care,Residential Care
Cambridgeshire County Council,13-Jun-18,51300174820,-1989.5,PARK HOUSE (BEDFORD),CARE ESTABLISHMENT,Physical Disablity,Countywide PD Service - Care,Residential Care
Cambridgeshire County Council,13-Jun-18,51300174818,-1989.5,PARK HOUSE (BEDFORD),CARE ESTABLISHMENT,Physical Disablity,Countywide PD Service - Care,Residential Care
Cambridgeshire County Council,13-Jun-18,51300174832,-1989.5,PARK HOUSE (BEDFORD),CARE ESTABLISHMENT,Physical Disablity,Countywide PD Service - Care,Residential Care
Cambridgeshire County Council,13-Jun-18,51300174825,-1989.5,PARK HOUSE (BEDFORD),CARE ESTABLISHMENT,Physical Disablity,Countywide PD Service - Care,Residential Care
Cambridgeshire County Council,13-Jun-18,51300174815,-1989.5,PARK HOUSE (BEDFORD),CARE ESTABLISHMENT,Physical Disablity,Countywide PD Service - Care,Residential Care
Cambridgeshire County Council,13-Jun-18,51300003695,-1960.56,ALPHABET (UK) FLEET MANAGEMENT LIMITED,TRADE SUPPLIER,Control Accounts,Control Accounts - Payables,Migration Only - Marked as Do Not Use
Cambridgeshire County Council,07-Jun-18,51300157798,-1944.4,OAKLANDS,CARE ESTABLISHMENT,LD - Hunts Locality,LD - Huntigndonshire - Special Needs,Residential Care
Cambridgeshire County Council,22-Jun-18,51300151230,-1711.36,AFFINITY TRUST#1,CARE ESTABLISHMENT,LD - Fenland Locality,LD - Fenland - Care,Suppported Living
Cambridgeshire County Council,22-Jun-18,51300151247,-1711.36,AFFINITY TRUST#1,CARE ESTABLISHMENT,LD - Fenland Locality,LD - Fenland - Care,Suppported Living
Cambridgeshire County Council,22-Jun-18,51300151224,-1711.36,AFFINITY TRUST#1,CARE ESTABLISHMENT,LD - Fenland Locality,LD - Fenland - Care,Suppported Living
Cambridgeshire County Council,22-Jun-18,51300151248,-1711.36,AFFINITY TRUST#1,CARE ESTABLISHMENT,LD - Fenland Locality,LD - Fenland - Care,Suppported Living
Cambridgeshire County Council,22-Jun-18,51300172323,-1711.36,AFFINITY TRUST#1,CARE ESTABLISHMENT,LD - Fenland Locality,LD - Fenland - Care,Suppported Living
Cambridgeshire County Council,22-Jun-18,51300161277,-1711.36,AFFINITY TRUST#1,CARE ESTABLISHMENT,LD - Fenland Locality,LD - Fenland - Care,Suppported Living
Cambridgeshire County Council,22-Jun-18,51300191770,-1711.36,AFFINITY TRUST#1,CARE ESTABLISHMENT,LD - Fenland Locality,LD - Fenland - Care,Suppported Living
Cambridgeshire County Council,22-Jun-18,51300172334,-1711.36,AFFINITY TRUST#1,CARE ESTABLISHMENT,LD - Fenland Locality,LD - Fenland - Care,Suppported Living
Cambridgeshire County Council,22-Jun-18,51300151242,-1711.36,AFFINITY TRUST#1,CARE ESTABLISHMENT,LD - Fenland Locality,LD - Fenland - Care,Suppported Living
Cambridgeshire County Council,22-Jun-18,51300151251,-1711.36,AFFINITY TRUST#1,CARE ESTABLISHMENT,LD - Fenland Locality,LD - Fenland - Care,Suppported Living
Cambridgeshire County Council,22-Jun-18,51300161302,-1711.36,AFFINITY TRUST#1,CARE ESTABLISHMENT,LD - Fenland Locality,LD - Fenland - Care,Suppported Living
Cambridgeshire County Council,22-Jun-18,51300191765,-1711.36,AFFINITY TRUST#1,CARE ESTABLISHMENT,LD - Fenland Locality,LD - Fenland - Care,Suppported Living
Cambridgeshire County Council,22-Jun-18,51300191769,-1711.36,AFFINITY TRUST#1,CARE ESTABLISHMENT,LD - Fenland Locality,LD - Fenland - Care,Suppported Living
Cambridgeshire County Council,22-Jun-18,51300151244,-1711.36,AFFINITY TRUST#1,CARE ESTABLISHMENT,LD - Fenland Locality,LD - Fenland - Care,Suppported Living
Cambridgeshire County Council,22-Jun-18,51300191748,-1711.36,AFFINITY TRUST#1,CARE ESTABLISHMENT,LD - Fenland Locality,LD - Fenland - Care,Suppported Living
Cambridgeshire County Council,22-Jun-18,51300151232,-1711.36,AFFINITY TRUST#1,CARE ESTABLISHMENT,LD - Fenland Locality,LD - Fenland - Special Needs,Suppported Living
Cambridgeshire County Council,22-Jun-18,51300191749,-1711.36,AFFINITY TRUST#1,CARE ESTABLISHMENT,LD - Fenland Locality,LD - Fenland - Special Needs,Suppported Living
Cambridgeshire County Council,22-Jun-18,51300151228,-1711.36,AFFINITY TRUST#1,CARE ESTABLISHMENT,LD - Fenland Locality,LD - Fenland - Special Needs,Suppported Living
Cambridgeshire County Council,22-Jun-18,51300161286,-1711.36,AFFINITY TRUST#1,CARE ESTABLISHMENT,LD - Fenland Locality,LD - Fenland - Special Needs,Suppported Living
Cambridgeshire County Council,22-Jun-18,51300172316,-1711.36,AFFINITY TRUST#1,CARE ESTABLISHMENT,LD - Fenland Locality,LD - Fenland - Special Needs,Suppported Living
Cambridgeshire County Council,22-Jun-18,51300161303,-1711.36,AFFINITY TRUST#1,CARE ESTABLISHMENT,LD - Fenland Locality,LD - Fenland - Special Needs,Suppported Living
Cambridgeshire County Council,22-Jun-18,51300161293,-1711.36,AFFINITY TRUST#1,CARE ESTABLISHMENT,LD - Fenland Locality,LD - Fenland - Special Needs,Suppported Living
Cambridgeshire County Council,22-Jun-18,51300161288,-1711.36,AFFINITY TRUST#1,CARE ESTABLISHMENT,LD - Fenland Locality,LD - Fenland - Special Needs,Suppported Living
Cambridgeshire County Council,22-Jun-18,51300161274,-1711.36,AFFINITY TRUST#1,CARE ESTABLISHMENT,LD - Fenland Locality,LD - Fenland - Special Needs,Suppported Living
Cambridgeshire County Council,22-Jun-18,51300161300,-1711.36,AFFINITY TRUST#1,CARE ESTABLISHMENT,LD - Fenland Locality,LD - Fenland - Care,Suppported Living
Cambridgeshire County Council,22-Jun-18,51300161279,-1711.36,AFFINITY TRUST#1,CARE ESTABLISHMENT,LD - Fenland Locality,LD - Fenland - Special Needs,Suppported Living
Cambridgeshire County Council,22-Jun-18,51300172304,-1711.36,AFFINITY TRUST#1,CARE ESTABLISHMENT,LD - Fenland Locality,LD - Fenland - Special Needs,Suppported Living
Cambridgeshire County Council,22-Jun-18,51300172318,-1711.36,AFFINITY TRUST#1,CARE ESTABLISHMENT,LD - Fenland Locality,LD - Fenland - Special Needs,Suppported Living
Cambridgeshire County Council,22-Jun-18,51300172335,-1711.36,AFFINITY TRUST#1,CARE ESTABLISHMENT,LD - Fenland Locality,LD - Fenland - Special Needs,Suppported Living
Cambridgeshire County Council,22-Jun-18,51300172322,-1711.36,AFFINITY TRUST#1,CARE ESTABLISHMENT,LD - Fenland Locality,LD - Fenland - Special Needs,Suppported Living
Cambridgeshire County Council,22-Jun-18,51300191754,-1711.36,AFFINITY TRUST#1,CARE ESTABLISHMENT,LD - Fenland Locality,LD - Fenland - Special Needs,Suppported Living
Cambridgeshire County Council,22-Jun-18,51300151237,-1711.36,AFFINITY TRUST#1,CARE ESTABLISHMENT,LD - Fenland Locality,LD - Fenland - Care,Suppported Living
Cambridgeshire County Council,22-Jun-18,51300191759,-1711.36,AFFINITY TRUST#1,CARE ESTABLISHMENT,LD - Fenland Locality,LD - Fenland - Care,Suppported Living
Cambridgeshire County Council,22-Jun-18,51300151254,-1711.36,AFFINITY TRUST#1,CARE ESTABLISHMENT,LD - Fenland Locality,LD - Fenland - Special Needs,Suppported Living
Cambridgeshire County Council,22-Jun-18,51300151239,-1711.36,AFFINITY TRUST#1,CARE ESTABLISHMENT,LD - Fenland Locality,LD - Fenland - Special Needs,Suppported Living
Cambridgeshire County Council,22-Jun-18,51300161291,-1711.36,AFFINITY TRUST#1,CARE ESTABLISHMENT,LD - Fenland Locality,LD - Fenland - Special Needs,Suppported Living
Cambridgeshire County Council,22-Jun-18,51300191766,-1711.36,AFFINITY TRUST#1,CARE ESTABLISHMENT,LD - Fenland Locality,LD - Fenland - Special Needs,Suppported Living
Cambridgeshire County Council,22-Jun-18,51300191735,-1711.36,AFFINITY TRUST#1,CARE ESTABLISHMENT,LD - Fenland Locality,LD - Fenland - Special Needs,Suppported Living
Cambridgeshire County Council,22-Jun-18,51300151233,-1711.36,AFFINITY TRUST#1,CARE ESTABLISHMENT,LD - Fenland Locality,LD - Fenland - Special Needs,Suppported Living
Cambridgeshire County Council,22-Jun-18,51300191739,-1711.36,AFFINITY TRUST#1,CARE ESTABLISHMENT,LD - Fenland Locality,LD - Fenland - Special Needs,Suppported Living
Cambridgeshire County Council,22-Jun-18,51300191760,-1711.36,AFFINITY TRUST#1,CARE ESTABLISHMENT,LD - Fenland Locality,LD - Fenland - Special Needs,Suppported Living
Cambridgeshire County Council,22-Jun-18,51300172327,-1711.36,AFFINITY TRUST#1,CARE ESTABLISHMENT,LD - Fenland Locality,LD - Fenland - Care,Suppported Living
Cambridgeshire County Council,22-Jun-18,51300172328,-1711.36,AFFINITY TRUST#1,CARE ESTABLISHMENT,LD - Fenland Locality,LD - Fenland - Care,Suppported Living
Cambridgeshire County Council,22-Jun-18,51300172324,-1711.36,AFFINITY TRUST#1,CARE ESTABLISHMENT,LD - Fenland Locality,LD - Fenland - Care,Suppported Living
Cambridgeshire County Council,22-Jun-18,51300172331,-1711.36,AFFINITY TRUST#1,CARE ESTABLISHMENT,LD - Fenland Locality,LD - Fenland - Care,Suppported Living
Cambridgeshire County Council,22-Jun-18,51300191756,-1711.36,AFFINITY TRUST#1,CARE ESTABLISHMENT,LD - Fenland Locality,LD - Fenland - Care,Suppported Living
Cambridgeshire County Council,22-Jun-18,51300172303,-1711.36,AFFINITY TRUST#1,CARE ESTABLISHMENT,LD - Fenland Locality,LD - Fenland - Care,Suppported Living
Cambridgeshire County Council,22-Jun-18,51300191738,-1711.36,AFFINITY TRUST#1,CARE ESTABLISHMENT,LD - Fenland Locality,LD - Fenland - Care,Suppported Living
Cambridgeshire County Council,22-Jun-18,51300161299,-1711.36,AFFINITY TRUST#1,CARE ESTABLISHMENT,LD - Fenland Locality,LD - Fenland - Care,Suppported Living
Cambridgeshire County Council,22-Jun-18,51300172306,-1711.36,AFFINITY TRUST#1,CARE ESTABLISHMENT,LD - Fenland Locality,LD - Fenland - Care,Suppported Living
Cambridgeshire County Council,22-Jun-18,51300161275,-1711.36,AFFINITY TRUST#1,CARE ESTABLISHMENT,LD - Fenland Locality,LD - Fenland - Care,Suppported Living
Cambridgeshire County Council,22-Jun-18,51300151246,-1711.36,AFFINITY TRUST#1,CARE ESTABLISHMENT,LD - Fenland Locality,LD - Fenland - Care,Suppported Living
Cambridgeshire County Council,22-Jun-18,51300161301,-1711.36,AFFINITY TRUST#1,CARE ESTABLISHMENT,LD - Fenland Locality,LD - Fenland - Care,Suppported Living
Cambridgeshire County Council,22-Jun-18,51300151250,-1711.36,AFFINITY TRUST#1,CARE ESTABLISHMENT,LD - Fenland Locality,LD - Fenland - Care,Suppported Living
Cambridgeshire County Council,22-Jun-18,51300151229,-1711.36,AFFINITY TRUST#1,CARE ESTABLISHMENT,LD - Fenland Locality,LD - Fenland - Special Needs,Suppported Living
Cambridgeshire County Council,22-Jun-18,51300161295,-1711.36,AFFINITY TRUST#1,CARE ESTABLISHMENT,LD - Fenland Locality,LD - Fenland - Care,Suppported Living
Cambridgeshire County Council,22-Jun-18,51300161272,-1711.36,AFFINITY TRUST#1,CARE ESTABLISHMENT,LD - Fenland Locality,LD - Fenland - Care,Suppported Living
Cambridgeshire County Council,22-Jun-18,51300191733,-1711.36,AFFINITY TRUST#1,CARE ESTABLISHMENT,LD - Fenland Locality,LD - Fenland - Special Needs,Suppported Living
Cambridgeshire County Council,22-Jun-18,51300172321,-1711.36,AFFINITY TRUST#1,CARE ESTABLISHMENT,LD - Fenland Locality,LD - Fenland - Special Needs,Suppported Living
Cambridgeshire County Council,22-Jun-18,51300191755,-1711.36,AFFINITY TRUST#1,CARE ESTABLISHMENT,LD - Fenland Locality,LD - Fenland - Care,Suppported Living
Cambridgeshire County Council,22-Jun-18,51300161290,-1711.36,AFFINITY TRUST#1,CARE ESTABLISHMENT,LD - Fenland Locality,LD - Fenland - Special Needs,Suppported Living
Cambridgeshire County Council,22-Jun-18,51300172317,-1711.36,AFFINITY TRUST#1,CARE ESTABLISHMENT,LD - Fenland Locality,LD - Fenland - Special Needs,Suppported Living
Cambridgeshire County Council,22-Jun-18,51300191753,-1711.36,AFFINITY TRUST#1,CARE ESTABLISHMENT,LD - Fenland Locality,LD - Fenland - Care,Suppported Living
Cambridgeshire County Council,22-Jun-18,51300172319,-1711.36,AFFINITY TRUST#1,CARE ESTABLISHMENT,LD - Fenland Locality,LD - Fenland - Care,Suppported Living
Cambridgeshire County Council,18-Jun-18,65300009362,-1624.83,Redacted Personal Data,INDIVIDUAL,Nursery Schools,Early Years - Funded 3s/4s,Care & Ed Childcare Settings
Cambridgeshire County Council,22-Jun-18,51300170645,-1561.95,AFFINITY TRUST#1,CARE ESTABLISHMENT,LD - Fenland Locality,LD - Fenland - Special Needs,Suppported Living
Cambridgeshire County Council,07-Jun-18,51300150294,-1561.22,POLEBROOK NURSING & RESIDENTIAL HOME,CARE ESTABLISHMENT,OP - Hunts Locality,Hunts O P Team,Nursing Care
Cambridgeshire County Council,07-Jun-18,51300150295,-1561.22,POLEBROOK NURSING & RESIDENTIAL HOME,CARE ESTABLISHMENT,OP - Hunts Locality,Hunts O P Team,Nursing Care
Cambridgeshire County Council,07-Jun-18,51300150289,-1561.22,POLEBROOK NURSING & RESIDENTIAL HOME,CARE ESTABLISHMENT,OP - Hunts Locality,Hunts O P Team,Nursing Care
Cambridgeshire County Council,22-Jun-18,51300188538,-1438.98,73 HIGH ROAD,CARE ESTABLISHMENT,OP - Fenland Locality,Older People - Fenland,Residential Care
Cambridgeshire County Council,22-Jun-18,51300188536,-1438.98,73 HIGH ROAD,CARE ESTABLISHMENT,OP - Fenland Locality,Older People - Fenland,Residential Care
Cambridgeshire County Council,22-Jun-18,51300188537,-1438.98,73 HIGH ROAD,CARE ESTABLISHMENT,OP - Fenland Locality,Older People - Fenland,Residential Care
Cambridgeshire County Council,07-Jun-18,51300164317,-1394.22,BETTER HEALTHCARE SERVICES LTD,CARE ESTABLISHMENT,OPMH - Hunts & Fens,Older People Mental Health Hunts,Domiciliary Care
Cambridgeshire County Council,07-Jun-18,51300164321,-1394.22,BETTER HEALTHCARE SERVICES LTD,CARE ESTABLISHMENT,OPMH - Hunts & Fens,Older People Mental Health Hunts,Domiciliary Care
Cambridgeshire County Council,07-Jun-18,51300164325,-1394.22,BETTER HEALTHCARE SERVICES LTD,CARE ESTABLISHMENT,OPMH - Hunts & Fens,Older People Mental Health Hunts,Domiciliary Care
Cambridgeshire County Council,07-Jun-18,51300164313,-1394.22,BETTER HEALTHCARE SERVICES LTD,CARE ESTABLISHMENT,OPMH - Hunts & Fens,Older People Mental Health Hunts,Domiciliary Care
Cambridgeshire County Council,07-Jun-18,51300164314,-1394.22,BETTER HEALTHCARE SERVICES LTD,CARE ESTABLISHMENT,OPMH - Hunts & Fens,Older People Mental Health Hunts,Domiciliary Care
Cambridgeshire County Council,07-Jun-18,51300164320,-1394.22,BETTER HEALTHCARE SERVICES LTD,CARE ESTABLISHMENT,OPMH - Hunts & Fens,Older People Mental Health Hunts,Domiciliary Care
Cambridgeshire County Council,22-Jun-18,51300148683,-1349.8,22 KINGS RIPTON ROAD (REGARD),CARE ESTABLISHMENT,LD - Hunts Locality,LD - Huntigndonshire - Special Needs,Suppported Living
Cambridgeshire County Council,07-Jun-18,51300113718,-1328.44,CARE MANAGEMENT GROUP (64-66 CARLTON),CARE ESTABLISHMENT,LD - East Locality,LD - East Cambs - Special Needs,Residential Care
Cambridgeshire County Council,07-Jun-18,51300113709,-1328.44,CARE MANAGEMENT GROUP (64-66 CARLTON),CARE ESTABLISHMENT,LD - East Locality,LD - East Cambs - Special Needs,Residential Care
Cambridgeshire County Council,07-Jun-18,51300152837,-1328.44,CARE MANAGEMENT GROUP (64-66 CARLTON),CARE ESTABLISHMENT,LD - East Locality,LD - East Cambs - Special Needs,Residential Care
Cambridgeshire County Council,07-Jun-18,51300113609,-1328.44,CARE MANAGEMENT GROUP (64-66 CARLTON),CARE ESTABLISHMENT,LD - East Locality,LD - East Cambs - Special Needs,Residential Care
Cambridgeshire County Council,07-Jun-18,51300113659,-1328.44,CARE MANAGEMENT GROUP (64-66 CARLTON),CARE ESTABLISHMENT,LD - East Locality,LD - East Cambs - Special Needs,Residential Care
Cambridgeshire County Council,07-Jun-18,51300113647,-1328.44,CARE MANAGEMENT GROUP (64-66 CARLTON),CARE ESTABLISHMENT,LD - East Locality,LD - East Cambs - Special Needs,Residential Care
Cambridgeshire County Council,07-Jun-18,51300138015,-1328.44,CARE MANAGEMENT GROUP (64-66 CARLTON),CARE ESTABLISHMENT,LD - East Locality,LD - East Cambs - Special Needs,Residential Care
Cambridgeshire County Council,07-Jun-18,51300113624,-1328.44,CARE MANAGEMENT GROUP (64-66 CARLTON),CARE ESTABLISHMENT,LD - East Locality,LD - East Cambs - Special Needs,Residential Care
Cambridgeshire County Council,07-Jun-18,51300152947,-1328.44,CARE MANAGEMENT GROUP (64-66 CARLTON),CARE ESTABLISHMENT,LD - East Locality,LD - East Cambs - Special Needs,Residential Care
Cambridgeshire County Council,07-Jun-18,51300152982,-1328.44,CARE MANAGEMENT GROUP (64-66 CARLTON),CARE ESTABLISHMENT,LD - East Locality,LD - East Cambs - Special Needs,Residential Care
Cambridgeshire County Council,07-Jun-18,51300163004,-1328.44,CARE MANAGEMENT GROUP (64-66 CARLTON),CARE ESTABLISHMENT,LD - East Locality,LD - East Cambs - Special Needs,Residential Care
Cambridgeshire County Council,07-Jun-18,51300138066,-1328.44,CARE MANAGEMENT GROUP (64-66 CARLTON),CARE ESTABLISHMENT,LD - East Locality,LD - East Cambs - Special Needs,Residential Care
Cambridgeshire County Council,07-Jun-18,51300138036,-1328.44,CARE MANAGEMENT GROUP (64-66 CARLTON),CARE ESTABLISHMENT,LD - East Locality,LD - East Cambs - Special Needs,Residential Care
Cambridgeshire County Council,07-Jun-18,51300137936,-1328.44,CARE MANAGEMENT GROUP (64-66 CARLTON),CARE ESTABLISHMENT,LD - East Locality,LD - East Cambs - Special Needs,Residential Care
Cambridgeshire County Council,07-Jun-18,51300163008,-1328.44,CARE MANAGEMENT GROUP (64-66 CARLTON),CARE ESTABLISHMENT,LD - East Locality,LD - East Cambs - Special Needs,Residential Care
Cambridgeshire County Council,07-Jun-18,51300162931,-1328.44,CARE MANAGEMENT GROUP (64-66 CARLTON),CARE ESTABLISHMENT,LD - East Locality,LD - East Cambs - Special Needs,Residential Care
Cambridgeshire County Council,07-Jun-18,51300152925,-1328.44,CARE MANAGEMENT GROUP (64-66 CARLTON),CARE ESTABLISHMENT,LD - East Locality,LD - East Cambs - Special Needs,Residential Care
Cambridgeshire County Council,07-Jun-18,51300113736,-1328.44,CARE MANAGEMENT GROUP (64-66 CARLTON),CARE ESTABLISHMENT,LD - East Locality,LD - East Cambs - Special Needs,Residential Care
Cambridgeshire County Council,07-Jun-18,51300138047,-1328.44,CARE MANAGEMENT GROUP (64-66 CARLTON),CARE ESTABLISHMENT,LD - East Locality,LD - East Cambs - Special Needs,Residential Care
Cambridgeshire County Council,07-Jun-18,51300162903,-1328.44,CARE MANAGEMENT GROUP (64-66 CARLTON),CARE ESTABLISHMENT,LD - East Locality,LD - East Cambs - Special Needs,Residential Care
Cambridgeshire County Council,07-Jun-18,51300152860,-1328.44,CARE MANAGEMENT GROUP (64-66 CARLTON),CARE ESTABLISHMENT,LD - East Locality,LD - East Cambs - Special Needs,Residential Care
Cambridgeshire County Council,07-Jun-18,51300162983,-1328.44,CARE MANAGEMENT GROUP (64-66 CARLTON),CARE ESTABLISHMENT,LD - East Locality,LD - East Cambs - Special Needs,Residential Care
Cambridgeshire County Council,07-Jun-18,51300113716,-1328.44,CARE MANAGEMENT GROUP (64-66 CARLTON),CARE ESTABLISHMENT,LD - East Locality,LD - East Cambs - Special Needs,Residential Care
Cambridgeshire County Council,07-Jun-18,51300138012,-1328.44,CARE MANAGEMENT GROUP (64-66 CARLTON),CARE ESTABLISHMENT,LD - East Locality,LD - East Cambs - Special Needs,Residential Care
Cambridgeshire County Council,07-Jun-18,51300138057,-1328.44,CARE MANAGEMENT GROUP (64-66 CARLTON),CARE ESTABLISHMENT,LD - East Locality,LD - East Cambs - Special Needs,Residential Care
Cambridgeshire County Council,07-Jun-18,51300113724,-1328.44,CARE MANAGEMENT GROUP (64-66 CARLTON),CARE ESTABLISHMENT,LD - East Locality,LD - East Cambs - Special Needs,Residential Care
Cambridgeshire County Council,07-Jun-18,51300137995,-1328.44,CARE MANAGEMENT GROUP (64-66 CARLTON),CARE ESTABLISHMENT,LD - East Locality,LD - East Cambs - Special Needs,Residential Care
Cambridgeshire County Council,07-Jun-18,51300137935,-1328.44,CARE MANAGEMENT GROUP (64-66 CARLTON),CARE ESTABLISHMENT,LD - East Locality,LD - East Cambs - Special Needs,Residential Care
Cambridgeshire County Council,07-Jun-18,51300162924,-1328.44,CARE MANAGEMENT GROUP (64-66 CARLTON),CARE ESTABLISHMENT,LD - East Locality,LD - East Cambs - Special Needs,Residential Care
Cambridgeshire County Council,07-Jun-18,51300152882,-1328.44,CARE MANAGEMENT GROUP (64-66 CARLTON),CARE ESTABLISHMENT,LD - East Locality,LD - East Cambs - Special Needs,Residential Care
Cambridgeshire County Council,07-Jun-18,51300152917,-1328.44,CARE MANAGEMENT GROUP (64-66 CARLTON),CARE ESTABLISHMENT,LD - East Locality,LD - East Cambs - Special Needs,Residential Care
Cambridgeshire County Council,07-Jun-18,51300137971,-1328.44,CARE MANAGEMENT GROUP (64-66 CARLTON),CARE ESTABLISHMENT,LD - East Locality,LD - East Cambs - Special Needs,Residential Care
Cambridgeshire County Council,07-Jun-18,51300113703,-1328.44,CARE MANAGEMENT GROUP (64-66 CARLTON),CARE ESTABLISHMENT,LD - East Locality,LD - East Cambs - Special Needs,Residential Care
Cambridgeshire County Council,07-Jun-18,51300162948,-1328.44,CARE MANAGEMENT GROUP (64-66 CARLTON),CARE ESTABLISHMENT,LD - East Locality,LD - East Cambs - Special Needs,Residential Care
Cambridgeshire County Council,07-Jun-18,51300138048,-1328.44,CARE MANAGEMENT GROUP (64-66 CARLTON),CARE ESTABLISHMENT,LD - East Locality,LD - East Cambs - Special Needs,Residential Care
Cambridgeshire County Council,07-Jun-18,51300152920,-1328.44,CARE MANAGEMENT GROUP (64-66 CARLTON),CARE ESTABLISHMENT,LD - East Locality,LD - East Cambs - Special Needs,Residential Care
Cambridgeshire County Council,07-Jun-18,51300152943,-1328.44,CARE MANAGEMENT GROUP (64-66 CARLTON),CARE ESTABLISHMENT,LD - East Locality,LD - East Cambs - Special Needs,Residential Care
Cambridgeshire County Council,07-Jun-18,51300152888,-1328.44,CARE MANAGEMENT GROUP (64-66 CARLTON),CARE ESTABLISHMENT,LD - East Locality,LD - East Cambs - Special Needs,Residential Care
Cambridgeshire County Council,07-Jun-18,51300162969,-1328.44,CARE MANAGEMENT GROUP (64-66 CARLTON),CARE ESTABLISHMENT,LD - East Locality,LD - East Cambs - Special Needs,Residential Care
Cambridgeshire County Council,07-Jun-18,51300137997,-1328.44,CARE MANAGEMENT GROUP (64-66 CARLTON),CARE ESTABLISHMENT,LD - East Locality,LD - East Cambs - Special Needs,Residential Care
Cambridgeshire County Council,07-Jun-18,51300162886,-1328.44,CARE MANAGEMENT GROUP (64-66 CARLTON),CARE ESTABLISHMENT,LD - East Locality,LD - East Cambs - Special Needs,Residential Care
Cambridgeshire County Council,07-Jun-18,51300152973,-1328.44,CARE MANAGEMENT GROUP (64-66 CARLTON),CARE ESTABLISHMENT,LD - East Locality,LD - East Cambs - Special Needs,Residential Care
Cambridgeshire County Council,07-Jun-18,51300113648,-1328.44,CARE MANAGEMENT GROUP (64-66 CARLTON),CARE ESTABLISHMENT,LD - East Locality,LD - East Cambs - Special Needs,Residential Care
Cambridgeshire County Council,07-Jun-18,51300138001,-1328.44,CARE MANAGEMENT GROUP (64-66 CARLTON),CARE ESTABLISHMENT,LD - East Locality,LD - East Cambs - Special Needs,Residential Care
Cambridgeshire County Council,07-Jun-18,51300137932,-1328.44,CARE MANAGEMENT GROUP (64-66 CARLTON),CARE ESTABLISHMENT,LD - East Locality,LD - East Cambs - Special Needs,Residential Care
Cambridgeshire County Council,07-Jun-18,51300152958,-1328.44,CARE MANAGEMENT GROUP (64-66 CARLTON),CARE ESTABLISHMENT,LD - East Locality,LD - East Cambs - Special Needs,Residential Care
Cambridgeshire County Council,07-Jun-18,51300113733,-1328.44,CARE MANAGEMENT GROUP (64-66 CARLTON),CARE ESTABLISHMENT,LD - East Locality,LD - East Cambs - Special Needs,Residential Care
Cambridgeshire County Council,07-Jun-18,51300137954,-1328.44,CARE MANAGEMENT GROUP (64-66 CARLTON),CARE ESTABLISHMENT,LD - East Locality,LD - East Cambs - Special Needs,Residential Care
Cambridgeshire County Council,07-Jun-18,51300113677,-1328.44,CARE MANAGEMENT GROUP (64-66 CARLTON),CARE ESTABLISHMENT,LD - East Locality,LD - East Cambs - Special Needs,Residential Care
Cambridgeshire County Council,07-Jun-18,51300152855,-1328.44,CARE MANAGEMENT GROUP (64-66 CARLTON),CARE ESTABLISHMENT,LD - East Locality,LD - East Cambs - Special Needs,Residential Care
Cambridgeshire County Council,07-Jun-18,51300162911,-1328.44,CARE MANAGEMENT GROUP (64-66 CARLTON),CARE ESTABLISHMENT,LD - East Locality,LD - East Cambs - Special Needs,Residential Care
Cambridgeshire County Council,07-Jun-18,51300162967,-1328.44,CARE MANAGEMENT GROUP (64-66 CARLTON),CARE ESTABLISHMENT,LD - East Locality,LD - East Cambs - Special Needs,Residential Care
Cambridgeshire County Council,07-Jun-18,51300138018,-1328.44,CARE MANAGEMENT GROUP (64-66 CARLTON),CARE ESTABLISHMENT,LD - East Locality,LD - East Cambs - Special Needs,Residential Care
Cambridgeshire County Council,07-Jun-18,51300138035,-1328.44,CARE MANAGEMENT GROUP (64-66 CARLTON),CARE ESTABLISHMENT,LD - East Locality,LD - East Cambs - Special Needs,Residential Care
Cambridgeshire County Council,07-Jun-18,51300113714,-1328.44,CARE MANAGEMENT GROUP (64-66 CARLTON),CARE ESTABLISHMENT,LD - East Locality,LD - East Cambs - Special Needs,Residential Care
Cambridgeshire County Council,07-Jun-18,51300138028,-1328.44,CARE MANAGEMENT GROUP (64-66 CARLTON),CARE ESTABLISHMENT,LD - East Locality,LD - East Cambs - Special Needs,Residential Care
Cambridgeshire County Council,07-Jun-18,51300138041,-1328.44,CARE MANAGEMENT GROUP (64-66 CARLTON),CARE ESTABLISHMENT,LD - East Locality,LD - East Cambs - Special Needs,Residential Care
Cambridgeshire County Council,07-Jun-18,51300137972,-1328.44,CARE MANAGEMENT GROUP (64-66 CARLTON),CARE ESTABLISHMENT,LD - East Locality,LD - East Cambs - Special Needs,Residential Care
Cambridgeshire County Council,07-Jun-18,51300137940,-1328.44,CARE MANAGEMENT GROUP (64-66 CARLTON),CARE ESTABLISHMENT,LD - East Locality,LD - East Cambs - Special Needs,Residential Care
Cambridgeshire County Council,07-Jun-18,51300113641,-1328.44,CARE MANAGEMENT GROUP (64-66 CARLTON),CARE ESTABLISHMENT,LD - East Locality,LD - East Cambs - Special Needs,Residential Care
Cambridgeshire County Council,07-Jun-18,51300113688,-1328.44,CARE MANAGEMENT GROUP (64-66 CARLTON),CARE ESTABLISHMENT,LD - East Locality,LD - East Cambs - Special Needs,Residential Care
Cambridgeshire County Council,07-Jun-18,51300113599,-1328.44,CARE MANAGEMENT GROUP (64-66 CARLTON),CARE ESTABLISHMENT,LD - East Locality,LD - East Cambs - Special Needs,Residential Care
Cambridgeshire County Council,07-Jun-18,51300137931,-1328.44,CARE MANAGEMENT GROUP (64-66 CARLTON),CARE ESTABLISHMENT,LD - East Locality,LD - East Cambs - Special Needs,Residential Care
Cambridgeshire County Council,07-Jun-18,51300113632,-1328.44,CARE MANAGEMENT GROUP (64-66 CARLTON),CARE ESTABLISHMENT,LD - East Locality,LD - East Cambs - Special Needs,Residential Care
Cambridgeshire County Council,07-Jun-18,51300113664,-1328.44,CARE MANAGEMENT GROUP (64-66 CARLTON),CARE ESTABLISHMENT,LD - East Locality,LD - East Cambs - Special Needs,Residential Care
Cambridgeshire County Council,07-Jun-18,51300162997,-1328.44,CARE MANAGEMENT GROUP (64-66 CARLTON),CARE ESTABLISHMENT,LD - East Locality,LD - East Cambs - Special Needs,Residential Care
Cambridgeshire County Council,07-Jun-18,51300113661,-1328.44,CARE MANAGEMENT GROUP (64-66 CARLTON),CARE ESTABLISHMENT,LD - East Locality,LD - East Cambs - Special Needs,Residential Care
Cambridgeshire County Council,07-Jun-18,51300152851,-1328.44,CARE MANAGEMENT GROUP (64-66 CARLTON),CARE ESTABLISHMENT,LD - East Locality,LD - East Cambs - Special Needs,Residential Care
Cambridgeshire County Council,07-Jun-18,51300152886,-1328.44,CARE MANAGEMENT GROUP (64-66 CARLTON),CARE ESTABLISHMENT,LD - East Locality,LD - East Cambs - Special Needs,Residential Care
Cambridgeshire County Council,07-Jun-18,51300152869,-1328.44,CARE MANAGEMENT GROUP (64-66 CARLTON),CARE ESTABLISHMENT,LD - East Locality,LD - East Cambs - Special Needs,Residential Care
Cambridgeshire County Council,07-Jun-18,51300152959,-1328.44,CARE MANAGEMENT GROUP (64-66 CARLTON),CARE ESTABLISHMENT,LD - East Locality,LD - East Cambs - Special Needs,Residential Care
Cambridgeshire County Council,07-Jun-18,51300113643,-1328.44,CARE MANAGEMENT GROUP (64-66 CARLTON),CARE ESTABLISHMENT,LD - East Locality,LD - East Cambs - Special Needs,Residential Care
Cambridgeshire County Council,07-Jun-18,51300113669,-1328.44,CARE MANAGEMENT GROUP (64-66 CARLTON),CARE ESTABLISHMENT,LD - East Locality,LD - East Cambs - Special Needs,Residential Care
Cambridgeshire County Council,07-Jun-18,51300113637,-1328.44,CARE MANAGEMENT GROUP (64-66 CARLTON),CARE ESTABLISHMENT,LD - East Locality,LD - East Cambs - Special Needs,Residential Care
Cambridgeshire County Council,07-Jun-18,51300113691,-1328.44,CARE MANAGEMENT GROUP (64-66 CARLTON),CARE ESTABLISHMENT,LD - East Locality,LD - East Cambs - Special Needs,Residential Care
Cambridgeshire County Council,07-Jun-18,51300113608,-1328.44,CARE MANAGEMENT GROUP (64-66 CARLTON),CARE ESTABLISHMENT,LD - East Locality,LD - East Cambs - Special Needs,Residential Care
Cambridgeshire County Council,07-Jun-18,51300162977,-1328.44,CARE MANAGEMENT GROUP (64-66 CARLTON),CARE ESTABLISHMENT,LD - East Locality,LD - East Cambs - Special Needs,Residential Care
Cambridgeshire County Council,07-Jun-18,51300113655,-1328.44,CARE MANAGEMENT GROUP (64-66 CARLTON),CARE ESTABLISHMENT,LD - East Locality,LD - East Cambs - Special Needs,Residential Care
Cambridgeshire County Council,07-Jun-18,51300113603,-1328.44,CARE MANAGEMENT GROUP (64-66 CARLTON),CARE ESTABLISHMENT,LD - East Locality,LD - East Cambs - Special Needs,Residential Care
Cambridgeshire County Council,07-Jun-18,51300138050,-1328.44,CARE MANAGEMENT GROUP (64-66 CARLTON),CARE ESTABLISHMENT,LD - East Locality,LD - East Cambs - Special Needs,Residential Care
Cambridgeshire County Council,07-Jun-18,51300137955,-1328.44,CARE MANAGEMENT GROUP (64-66 CARLTON),CARE ESTABLISHMENT,LD - East Locality,LD - East Cambs - Special Needs,Residential Care
Cambridgeshire County Council,07-Jun-18,51300137993,-1328.44,CARE MANAGEMENT GROUP (64-66 CARLTON),CARE ESTABLISHMENT,LD - East Locality,LD - East Cambs - Special Needs,Residential Care
Cambridgeshire County Council,07-Jun-18,51300137952,-1328.44,CARE MANAGEMENT GROUP (64-66 CARLTON),CARE ESTABLISHMENT,LD - East Locality,LD - East Cambs - Special Needs,Residential Care
Cambridgeshire County Council,07-Jun-18,51300138029,-1328.44,CARE MANAGEMENT GROUP (64-66 CARLTON),CARE ESTABLISHMENT,LD - East Locality,LD - East Cambs - Special Needs,Residential Care
Cambridgeshire County Council,07-Jun-18,51300137968,-1328.44,CARE MANAGEMENT GROUP (64-66 CARLTON),CARE ESTABLISHMENT,LD - East Locality,LD - East Cambs - Special Needs,Residential Care
Cambridgeshire County Council,07-Jun-18,51300152894,-1328.44,CARE MANAGEMENT GROUP (64-66 CARLTON),CARE ESTABLISHMENT,LD - East Locality,LD - East Cambs - Special Needs,Residential Care
Cambridgeshire County Council,07-Jun-18,51300152907,-1328.44,CARE MANAGEMENT GROUP (64-66 CARLTON),CARE ESTABLISHMENT,LD - East Locality,LD - East Cambs - Special Needs,Residential Care
Cambridgeshire County Council,07-Jun-18,51300113631,-1328.44,CARE MANAGEMENT GROUP (64-66 CARLTON),CARE ESTABLISHMENT,LD - East Locality,LD - East Cambs - Special Needs,Residential Care
Cambridgeshire County Council,07-Jun-18,51300137947,-1328.44,CARE MANAGEMENT GROUP (64-66 CARLTON),CARE ESTABLISHMENT,LD - East Locality,LD - East Cambs - Special Needs,Residential Care
Cambridgeshire County Council,07-Jun-18,51300163003,-1328.44,CARE MANAGEMENT GROUP (64-66 CARLTON),CARE ESTABLISHMENT,LD - East Locality,LD - East Cambs - Special Needs,Residential Care
Cambridgeshire County Council,07-Jun-18,51300162884,-1328.44,CARE MANAGEMENT GROUP (64-66 CARLTON),CARE ESTABLISHMENT,LD - East Locality,LD - East Cambs - Special Needs,Residential Care
Cambridgeshire County Council,07-Jun-18,51300163000,-1328.44,CARE MANAGEMENT GROUP (64-66 CARLTON),CARE ESTABLISHMENT,LD - East Locality,LD - East Cambs - Special Needs,Residential Care
Cambridgeshire County Council,07-Jun-18,51300163023,-1328.44,CARE MANAGEMENT GROUP (64-66 CARLTON),CARE ESTABLISHMENT,LD - East Locality,LD - East Cambs - Special Needs,Residential Care
Cambridgeshire County Council,07-Jun-18,51300152872,-1328.44,CARE MANAGEMENT GROUP (64-66 CARLTON),CARE ESTABLISHMENT,LD - East Locality,LD - East Cambs - Special Needs,Residential Care
Cambridgeshire County Council,07-Jun-18,51300138017,-1328.44,CARE MANAGEMENT GROUP (64-66 CARLTON),CARE ESTABLISHMENT,LD - East Locality,LD - East Cambs - Special Needs,Residential Care
Cambridgeshire County Council,07-Jun-18,51300152957,-1328.44,CARE MANAGEMENT GROUP (64-66 CARLTON),CARE ESTABLISHMENT,LD - East Locality,LD - East Cambs - Special Needs,Residential Care
Cambridgeshire County Council,07-Jun-18,51300138033,-1328.44,CARE MANAGEMENT GROUP (64-66 CARLTON),CARE ESTABLISHMENT,LD - East Locality,LD - East Cambs - Special Needs,Residential Care
Cambridgeshire County Council,07-Jun-18,51300113622,-1328.44,CARE MANAGEMENT GROUP (64-66 CARLTON),CARE ESTABLISHMENT,LD - East Locality,LD - East Cambs - Special Needs,Residential Care
Cambridgeshire County Council,07-Jun-18,51300138020,-1328.44,CARE MANAGEMENT GROUP (64-66 CARLTON),CARE ESTABLISHMENT,LD - East Locality,LD - East Cambs - Special Needs,Residential Care
Cambridgeshire County Council,07-Jun-18,51300137999,-1328.44,CARE MANAGEMENT GROUP (64-66 CARLTON),CARE ESTABLISHMENT,LD - East Locality,LD - East Cambs - Special Needs,Residential Care
Cambridgeshire County Council,07-Jun-18,51300138013,-1328.44,CARE MANAGEMENT GROUP (64-66 CARLTON),CARE ESTABLISHMENT,LD - East Locality,LD - East Cambs - Special Needs,Residential Care
Cambridgeshire County Council,07-Jun-18,51300162887,-1328.44,CARE MANAGEMENT GROUP (64-66 CARLTON),CARE ESTABLISHMENT,LD - East Locality,LD - East Cambs - Special Needs,Residential Care
Cambridgeshire County Council,07-Jun-18,51300162885,-1328.44,CARE MANAGEMENT GROUP (64-66 CARLTON),CARE ESTABLISHMENT,LD - East Locality,LD - East Cambs - Special Needs,Residential Care
Cambridgeshire County Council,07-Jun-18,51300113635,-1328.44,CARE MANAGEMENT GROUP (64-66 CARLTON),CARE ESTABLISHMENT,LD - East Locality,LD - East Cambs - Special Needs,Residential Care
Cambridgeshire County Council,07-Jun-18,51300162880,-1328.44,CARE MANAGEMENT GROUP (64-66 CARLTON),CARE ESTABLISHMENT,LD - East Locality,LD - East Cambs - Special Needs,Residential Care
Cambridgeshire County Council,07-Jun-18,51300163014,-1328.44,CARE MANAGEMENT GROUP (64-66 CARLTON),CARE ESTABLISHMENT,LD - East Locality,LD - East Cambs - Special Needs,Residential Care
Cambridgeshire County Council,07-Jun-18,51300152899,-1328.44,CARE MANAGEMENT GROUP (64-66 CARLTON),CARE ESTABLISHMENT,LD - East Locality,LD - East Cambs - Special Needs,Residential Care
Cambridgeshire County Council,07-Jun-18,51300162982,-1328.44,CARE MANAGEMENT GROUP (64-66 CARLTON),CARE ESTABLISHMENT,LD - East Locality,LD - East Cambs - Special Needs,Residential Care
Cambridgeshire County Council,07-Jun-18,51300113628,-1328.44,CARE MANAGEMENT GROUP (64-66 CARLTON),CARE ESTABLISHMENT,LD - East Locality,LD - East Cambs - Special Needs,Residential Care
Cambridgeshire County Council,07-Jun-18,51300152916,-1328.44,CARE MANAGEMENT GROUP (64-66 CARLTON),CARE ESTABLISHMENT,LD - East Locality,LD - East Cambs - Special Needs,Residential Care
Cambridgeshire County Council,07-Jun-18,51300113598,-1328.44,CARE MANAGEMENT GROUP (64-66 CARLTON),CARE ESTABLISHMENT,LD - East Locality,LD - East Cambs - Special Needs,Residential Care
Cambridgeshire County Council,07-Jun-18,51300113723,-1328.44,CARE MANAGEMENT GROUP (64-66 CARLTON),CARE ESTABLISHMENT,LD - East Locality,LD - East Cambs - Special Needs,Residential Care
Cambridgeshire County Council,07-Jun-18,51300152933,-1328.44,CARE MANAGEMENT GROUP (64-66 CARLTON),CARE ESTABLISHMENT,LD - East Locality,LD - East Cambs - Special Needs,Residential Care
Cambridgeshire County Council,07-Jun-18,51300138022,-1328.44,CARE MANAGEMENT GROUP (64-66 CARLTON),CARE ESTABLISHMENT,LD - East Locality,LD - East Cambs - Special Needs,Residential Care
Cambridgeshire County Council,07-Jun-18,51300162988,-1328.44,CARE MANAGEMENT GROUP (64-66 CARLTON),CARE ESTABLISHMENT,LD - East Locality,LD - East Cambs - Special Needs,Residential Care
Cambridgeshire County Council,07-Jun-18,51300113706,-1328.44,CARE MANAGEMENT GROUP (64-66 CARLTON),CARE ESTABLISHMENT,LD - East Locality,LD - East Cambs - Special Needs,Residential Care
Cambridgeshire County Council,07-Jun-18,51300162940,-1328.44,CARE MANAGEMENT GROUP (64-66 CARLTON),CARE ESTABLISHMENT,LD - East Locality,LD - East Cambs - Special Needs,Residential Care
Cambridgeshire County Council,07-Jun-18,51300162925,-1328.44,CARE MANAGEMENT GROUP (64-66 CARLTON),CARE ESTABLISHMENT,LD - East Locality,LD - East Cambs - Special Needs,Residential Care
Cambridgeshire County Council,07-Jun-18,51300163010,-1328.44,CARE MANAGEMENT GROUP (64-66 CARLTON),CARE ESTABLISHMENT,LD - East Locality,LD - East Cambs - Special Needs,Residential Care
Cambridgeshire County Council,07-Jun-18,51300162956,-1328.44,CARE MANAGEMENT GROUP (64-66 CARLTON),CARE ESTABLISHMENT,LD - East Locality,LD - East Cambs - Special Needs,Residential Care
Cambridgeshire County Council,07-Jun-18,51300152948,-1328.44,CARE MANAGEMENT GROUP (64-66 CARLTON),CARE ESTABLISHMENT,LD - East Locality,LD - East Cambs - Special Needs,Residential Care
Cambridgeshire County Council,07-Jun-18,51300152896,-1328.44,CARE MANAGEMENT GROUP (64-66 CARLTON),CARE ESTABLISHMENT,LD - East Locality,LD - East Cambs - Special Needs,Residential Care
Cambridgeshire County Council,07-Jun-18,51300152849,-1328.44,CARE MANAGEMENT GROUP (64-66 CARLTON),CARE ESTABLISHMENT,LD - East Locality,LD - East Cambs - Special Needs,Residential Care
Cambridgeshire County Council,07-Jun-18,51300152961,-1328.44,CARE MANAGEMENT GROUP (64-66 CARLTON),CARE ESTABLISHMENT,LD - East Locality,LD - East Cambs - Special Needs,Residential Care
Cambridgeshire County Council,07-Jun-18,51300162943,-1328.44,CARE MANAGEMENT GROUP (64-66 CARLTON),CARE ESTABLISHMENT,LD - East Locality,LD - East Cambs - Special Needs,Residential Care
Cambridgeshire County Council,07-Jun-18,51300152877,-1328.44,CARE MANAGEMENT GROUP (64-66 CARLTON),CARE ESTABLISHMENT,LD - East Locality,LD - East Cambs - Special Needs,Residential Care
Cambridgeshire County Council,07-Jun-18,51300113660,-1328.44,CARE MANAGEMENT GROUP (64-66 CARLTON),CARE ESTABLISHMENT,LD - East Locality,LD - East Cambs - Special Needs,Residential Care
Cambridgeshire County Council,07-Jun-18,51300152922,-1328.44,CARE MANAGEMENT GROUP (64-66 CARLTON),CARE ESTABLISHMENT,LD - East Locality,LD - East Cambs - Special Needs,Residential Care
Cambridgeshire County Council,07-Jun-18,51300113717,-1328.44,CARE MANAGEMENT GROUP (64-66 CARLTON),CARE ESTABLISHMENT,LD - East Locality,LD - East Cambs - Special Needs,Residential Care
Cambridgeshire County Council,07-Jun-18,51300152857,-1328.44,CARE MANAGEMENT GROUP (64-66 CARLTON),CARE ESTABLISHMENT,LD - East Locality,LD - East Cambs - Special Needs,Residential Care
Cambridgeshire County Council,07-Jun-18,51300113602,-1328.44,CARE MANAGEMENT GROUP (64-66 CARLTON),CARE ESTABLISHMENT,LD - East Locality,LD - East Cambs - Special Needs,Residential Care
Cambridgeshire County Council,07-Jun-18,51300137948,-1328.44,CARE MANAGEMENT GROUP (64-66 CARLTON),CARE ESTABLISHMENT,LD - East Locality,LD - East Cambs - Special Needs,Residential Care
Cambridgeshire County Council,07-Jun-18,51300137966,-1328.44,CARE MANAGEMENT GROUP (64-66 CARLTON),CARE ESTABLISHMENT,LD - East Locality,LD - East Cambs - Special Needs,Residential Care
Cambridgeshire County Council,07-Jun-18,51300152980,-1328.44,CARE MANAGEMENT GROUP (64-66 CARLTON),CARE ESTABLISHMENT,LD - East Locality,LD - East Cambs - Special Needs,Residential Care
Cambridgeshire County Council,07-Jun-18,51300152966,-1328.44,CARE MANAGEMENT GROUP (64-66 CARLTON),CARE ESTABLISHMENT,LD - East Locality,LD - East Cambs - Special Needs,Residential Care
Cambridgeshire County Council,07-Jun-18,51300152934,-1328.44,CARE MANAGEMENT GROUP (64-66 CARLTON),CARE ESTABLISHMENT,LD - East Locality,LD - East Cambs - Special Needs,Residential Care
Cambridgeshire County Council,07-Jun-18,51300137988,-1328.44,CARE MANAGEMENT GROUP (64-66 CARLTON),CARE ESTABLISHMENT,LD - East Locality,LD - East Cambs - Special Needs,Residential Care
Cambridgeshire County Council,07-Jun-18,51300152881,-1328.44,CARE MANAGEMENT GROUP (64-66 CARLTON),CARE ESTABLISHMENT,LD - East Locality,LD - East Cambs - Special Needs,Residential Care
Cambridgeshire County Council,07-Jun-18,51300138032,-1328.44,CARE MANAGEMENT GROUP (64-66 CARLTON),CARE ESTABLISHMENT,LD - East Locality,LD - East Cambs - Special Needs,Residential Care
Cambridgeshire County Council,07-Jun-18,51300137970,-1328.44,CARE MANAGEMENT GROUP (64-66 CARLTON),CARE ESTABLISHMENT,LD - East Locality,LD - East Cambs - Special Needs,Residential Care
Cambridgeshire County Council,07-Jun-18,51300113617,-1328.44,CARE MANAGEMENT GROUP (64-66 CARLTON),CARE ESTABLISHMENT,LD - East Locality,LD - East Cambs - Special Needs,Residential Care
Cambridgeshire County Council,07-Jun-18,51300137981,-1328.44,CARE MANAGEMENT GROUP (64-66 CARLTON),CARE ESTABLISHMENT,LD - East Locality,LD - East Cambs - Special Needs,Residential Care
Cambridgeshire County Council,07-Jun-18,51300137973,-1328.44,CARE MANAGEMENT GROUP (64-66 CARLTON),CARE ESTABLISHMENT,LD - East Locality,LD - East Cambs - Special Needs,Residential Care
Cambridgeshire County Council,07-Jun-18,51300162962,-1328.44,CARE MANAGEMENT GROUP (64-66 CARLTON),CARE ESTABLISHMENT,LD - East Locality,LD - East Cambs - Special Needs,Residential Care
Cambridgeshire County Council,07-Jun-18,51300163009,-1328.44,CARE MANAGEMENT GROUP (64-66 CARLTON),CARE ESTABLISHMENT,LD - East Locality,LD - East Cambs - Special Needs,Residential Care
Cambridgeshire County Council,07-Jun-18,51300152968,-1328.44,CARE MANAGEMENT GROUP (64-66 CARLTON),CARE ESTABLISHMENT,LD - East Locality,LD - East Cambs - Special Needs,Residential Care
Cambridgeshire County Council,07-Jun-18,51300113592,-1328.44,CARE MANAGEMENT GROUP (64-66 CARLTON),CARE ESTABLISHMENT,LD - East Locality,LD - East Cambs - Special Needs,Residential Care
Cambridgeshire County Council,07-Jun-18,51300113662,-1328.44,CARE MANAGEMENT GROUP (64-66 CARLTON),CARE ESTABLISHMENT,LD - East Locality,LD - East Cambs - Special Needs,Residential Care
Cambridgeshire County Council,07-Jun-18,51300113601,-1328.44,CARE MANAGEMENT GROUP (64-66 CARLTON),CARE ESTABLISHMENT,LD - East Locality,LD - East Cambs - Special Needs,Residential Care
Cambridgeshire County Council,07-Jun-18,51300138024,-1328.44,CARE MANAGEMENT GROUP (64-66 CARLTON),CARE ESTABLISHMENT,LD - East Locality,LD - East Cambs - Special Needs,Residential Care
Cambridgeshire County Council,07-Jun-18,51300162923,-1328.44,CARE MANAGEMENT GROUP (64-66 CARLTON),CARE ESTABLISHMENT,LD - East Locality,LD - East Cambs - Special Needs,Residential Care
Cambridgeshire County Council,07-Jun-18,51300162971,-1328.44,CARE MANAGEMENT GROUP (64-66 CARLTON),CARE ESTABLISHMENT,LD - East Locality,LD - East Cambs - Special Needs,Residential Care
Cambridgeshire County Council,07-Jun-18,51300152927,-1328.44,CARE MANAGEMENT GROUP (64-66 CARLTON),CARE ESTABLISHMENT,LD - East Locality,LD - East Cambs - Special Needs,Residential Care
Cambridgeshire County Council,07-Jun-18,51300152890,-1328.44,CARE MANAGEMENT GROUP (64-66 CARLTON),CARE ESTABLISHMENT,LD - East Locality,LD - East Cambs - Special Needs,Residential Care
Cambridgeshire County Council,07-Jun-18,51300162952,-1328.44,CARE MANAGEMENT GROUP (64-66 CARLTON),CARE ESTABLISHMENT,LD - East Locality,LD - East Cambs - Special Needs,Residential Care
Cambridgeshire County Council,07-Jun-18,51300162919,-1328.44,CARE MANAGEMENT GROUP (64-66 CARLTON),CARE ESTABLISHMENT,LD - East Locality,LD - East Cambs - Special Needs,Residential Care
Cambridgeshire County Council,07-Jun-18,51300152921,-1328.44,CARE MANAGEMENT GROUP (64-66 CARLTON),CARE ESTABLISHMENT,LD - East Locality,LD - East Cambs - Special Needs,Residential Care
Cambridgeshire County Council,07-Jun-18,51300113690,-1328.44,CARE MANAGEMENT GROUP (64-66 CARLTON),CARE ESTABLISHMENT,LD - East Locality,LD - East Cambs - Special Needs,Residential Care
Cambridgeshire County Council,07-Jun-18,51300138025,-1328.44,CARE MANAGEMENT GROUP (64-66 CARLTON),CARE ESTABLISHMENT,LD - East Locality,LD - East Cambs - Special Needs,Residential Care
Cambridgeshire County Council,07-Jun-18,51300152861,-1328.44,CARE MANAGEMENT GROUP (64-66 CARLTON),CARE ESTABLISHMENT,LD - East Locality,LD - East Cambs - Special Needs,Residential Care
Cambridgeshire County Council,07-Jun-18,51300113630,-1328.44,CARE MANAGEMENT GROUP (64-66 CARLTON),CARE ESTABLISHMENT,LD - East Locality,LD - East Cambs - Special Needs,Residential Care
Cambridgeshire County Council,07-Jun-18,51300162946,-1328.44,CARE MANAGEMENT GROUP (64-66 CARLTON),CARE ESTABLISHMENT,LD - East Locality,LD - East Cambs - Special Needs,Residential Care
Cambridgeshire County Council,07-Jun-18,51300113681,-1328.44,CARE MANAGEMENT GROUP (64-66 CARLTON),CARE ESTABLISHMENT,LD - East Locality,LD - East Cambs - Special Needs,Residential Care
Cambridgeshire County Council,07-Jun-18,51300138034,-1328.44,CARE MANAGEMENT GROUP (64-66 CARLTON),CARE ESTABLISHMENT,LD - East Locality,LD - East Cambs - Special Needs,Residential Care
Cambridgeshire County Council,07-Jun-18,51300152956,-1328.44,CARE MANAGEMENT GROUP (64-66 CARLTON),CARE ESTABLISHMENT,LD - East Locality,LD - East Cambs - Special Needs,Residential Care
Cambridgeshire County Council,07-Jun-18,51300137998,-1328.44,CARE MANAGEMENT GROUP (64-66 CARLTON),CARE ESTABLISHMENT,LD - East Locality,LD - East Cambs - Special Needs,Residential Care
Cambridgeshire County Council,07-Jun-18,51300162914,-1328.44,CARE MANAGEMENT GROUP (64-66 CARLTON),CARE ESTABLISHMENT,LD - East Locality,LD - East Cambs - Special Needs,Residential Care
Cambridgeshire County Council,07-Jun-18,51300137922,-1328.44,CARE MANAGEMENT GROUP (64-66 CARLTON),CARE ESTABLISHMENT,LD - East Locality,LD - East Cambs - Special Needs,Residential Care
Cambridgeshire County Council,07-Jun-18,51300138007,-1328.44,CARE MANAGEMENT GROUP (64-66 CARLTON),CARE ESTABLISHMENT,LD - East Locality,LD - East Cambs - Special Needs,Residential Care
Cambridgeshire County Council,07-Jun-18,51300152930,-1328.44,CARE MANAGEMENT GROUP (64-66 CARLTON),CARE ESTABLISHMENT,LD - East Locality,LD - East Cambs - Special Needs,Residential Care
Cambridgeshire County Council,07-Jun-18,51300138039,-1328.44,CARE MANAGEMENT GROUP (64-66 CARLTON),CARE ESTABLISHMENT,LD - East Locality,LD - East Cambs - Special Needs,Residential Care
Cambridgeshire County Council,07-Jun-18,51300138010,-1328.44,CARE MANAGEMENT GROUP (64-66 CARLTON),CARE ESTABLISHMENT,LD - East Locality,LD - East Cambs - Special Needs,Residential Care
Cambridgeshire County Council,07-Jun-18,51300152911,-1328.44,CARE MANAGEMENT GROUP (64-66 CARLTON),CARE ESTABLISHMENT,LD - East Locality,LD - East Cambs - Special Needs,Residential Care
Cambridgeshire County Council,07-Jun-18,51300152915,-1328.44,CARE MANAGEMENT GROUP (64-66 CARLTON),CARE ESTABLISHMENT,LD - East Locality,LD - East Cambs - Special Needs,Residential Care
Cambridgeshire County Council,07-Jun-18,51300163011,-1328.44,CARE MANAGEMENT GROUP (64-66 CARLTON),CARE ESTABLISHMENT,LD - East Locality,LD - East Cambs - Special Needs,Residential Care
Cambridgeshire County Council,07-Jun-18,51300162957,-1328.44,CARE MANAGEMENT GROUP (64-66 CARLTON),CARE ESTABLISHMENT,LD - East Locality,LD - East Cambs - Special Needs,Residential Care
Cambridgeshire County Council,07-Jun-18,51300162942,-1328.44,CARE MANAGEMENT GROUP (64-66 CARLTON),CARE ESTABLISHMENT,LD - East Locality,LD - East Cambs - Special Needs,Residential Care
Cambridgeshire County Council,07-Jun-18,51300113722,-1328.44,CARE MANAGEMENT GROUP (64-66 CARLTON),CARE ESTABLISHMENT,LD - East Locality,LD - East Cambs - Special Needs,Residential Care
Cambridgeshire County Council,07-Jun-18,51300152880,-1328.44,CARE MANAGEMENT GROUP (64-66 CARLTON),CARE ESTABLISHMENT,LD - East Locality,LD - East Cambs - Special Needs,Residential Care
Cambridgeshire County Council,07-Jun-18,51300137963,-1328.44,CARE MANAGEMENT GROUP (64-66 CARLTON),CARE ESTABLISHMENT,LD - East Locality,LD - East Cambs - Special Needs,Residential Care
Cambridgeshire County Council,07-Jun-18,51300138051,-1328.44,CARE MANAGEMENT GROUP (64-66 CARLTON),CARE ESTABLISHMENT,LD - East Locality,LD - East Cambs - Special Needs,Residential Care
Cambridgeshire County Council,07-Jun-18,51300113610,-1328.44,CARE MANAGEMENT GROUP (64-66 CARLTON),CARE ESTABLISHMENT,LD - East Locality,LD - East Cambs - Special Needs,Residential Care
Cambridgeshire County Council,07-Jun-18,51300152936,-1328.44,CARE MANAGEMENT GROUP (64-66 CARLTON),CARE ESTABLISHMENT,LD - East Locality,LD - East Cambs - Special Needs,Residential Care
Cambridgeshire County Council,07-Jun-18,51300152856,-1328.44,CARE MANAGEMENT GROUP (64-66 CARLTON),CARE ESTABLISHMENT,LD - East Locality,LD - East Cambs - Special Needs,Residential Care
Cambridgeshire County Council,07-Jun-18,51300113739,-1328.44,CARE MANAGEMENT GROUP (64-66 CARLTON),CARE ESTABLISHMENT,LD - East Locality,LD - East Cambs - Special Needs,Residential Care
Cambridgeshire County Council,07-Jun-18,51300113695,-1328.44,CARE MANAGEMENT GROUP (64-66 CARLTON),CARE ESTABLISHMENT,LD - East Locality,LD - East Cambs - Special Needs,Residential Care
Cambridgeshire County Council,07-Jun-18,51300113698,-1328.44,CARE MANAGEMENT GROUP (64-66 CARLTON),CARE ESTABLISHMENT,LD - East Locality,LD - East Cambs - Special Needs,Residential Care
Cambridgeshire County Council,07-Jun-18,51300113619,-1328.44,CARE MANAGEMENT GROUP (64-66 CARLTON),CARE ESTABLISHMENT,LD - East Locality,LD - East Cambs - Special Needs,Residential Care
Cambridgeshire County Council,07-Jun-18,51300162998,-1328.44,CARE MANAGEMENT GROUP (64-66 CARLTON),CARE ESTABLISHMENT,LD - East Locality,LD - East Cambs - Special Needs,Residential Care
Cambridgeshire County Council,07-Jun-18,51300113638,-1328.44,CARE MANAGEMENT GROUP (64-66 CARLTON),CARE ESTABLISHMENT,LD - East Locality,LD - East Cambs - Special Needs,Residential Care
Cambridgeshire County Council,07-Jun-18,51300152940,-1328.44,CARE MANAGEMENT GROUP (64-66 CARLTON),CARE ESTABLISHMENT,LD - East Locality,LD - East Cambs - Special Needs,Residential Care
Cambridgeshire County Council,07-Jun-18,51300162955,-1328.44,CARE MANAGEMENT GROUP (64-66 CARLTON),CARE ESTABLISHMENT,LD - East Locality,LD - East Cambs - Special Needs,Residential Care
Cambridgeshire County Council,07-Jun-18,51300163032,-1328.44,CARE MANAGEMENT GROUP (64-66 CARLTON),CARE ESTABLISHMENT,LD - East Locality,LD - East Cambs - Special Needs,Residential Care
Cambridgeshire County Council,07-Jun-18,51300113615,-1328.44,CARE MANAGEMENT GROUP (64-66 CARLTON),CARE ESTABLISHMENT,LD - East Locality,LD - East Cambs - Special Needs,Residential Care
Cambridgeshire County Council,07-Jun-18,51300137927,-1328.44,CARE MANAGEMENT GROUP (64-66 CARLTON),CARE ESTABLISHMENT,LD - East Locality,LD - East Cambs - Special Needs,Residential Care
Cambridgeshire County Council,07-Jun-18,51300138068,-1328.44,CARE MANAGEMENT GROUP (64-66 CARLTON),CARE ESTABLISHMENT,LD - East Locality,LD - East Cambs - Special Needs,Residential Care
Cambridgeshire County Council,07-Jun-18,51300113623,-1328.44,CARE MANAGEMENT GROUP (64-66 CARLTON),CARE ESTABLISHMENT,LD - East Locality,LD - East Cambs - Special Needs,Residential Care
Cambridgeshire County Council,07-Jun-18,51300152929,-1328.44,CARE MANAGEMENT GROUP (64-66 CARLTON),CARE ESTABLISHMENT,LD - East Locality,LD - East Cambs - Special Needs,Residential Care
Cambridgeshire County Council,07-Jun-18,51300162974,-1328.44,CARE MANAGEMENT GROUP (64-66 CARLTON),CARE ESTABLISHMENT,LD - East Locality,LD - East Cambs - Special Needs,Residential Care
Cambridgeshire County Council,07-Jun-18,51300113700,-1328.44,CARE MANAGEMENT GROUP (64-66 CARLTON),CARE ESTABLISHMENT,LD - East Locality,LD - East Cambs - Special Needs,Residential Care
Cambridgeshire County Council,07-Jun-18,51300138062,-1328.44,CARE MANAGEMENT GROUP (64-66 CARLTON),CARE ESTABLISHMENT,LD - East Locality,LD - East Cambs - Special Needs,Residential Care
Cambridgeshire County Council,07-Jun-18,51300152965,-1328.44,CARE MANAGEMENT GROUP (64-66 CARLTON),CARE ESTABLISHMENT,LD - East Locality,LD - East Cambs - Special Needs,Residential Care
Cambridgeshire County Council,07-Jun-18,51300138040,-1328.44,CARE MANAGEMENT GROUP (64-66 CARLTON),CARE ESTABLISHMENT,LD - East Locality,LD - East Cambs - Special Needs,Residential Care
Cambridgeshire County Council,07-Jun-18,51300162910,-1328.44,CARE MANAGEMENT GROUP (64-66 CARLTON),CARE ESTABLISHMENT,LD - East Locality,LD - East Cambs - Special Needs,Residential Care
Cambridgeshire County Council,07-Jun-18,51300113595,-1328.44,CARE MANAGEMENT GROUP (64-66 CARLTON),CARE ESTABLISHMENT,LD - East Locality,LD - East Cambs - Special Needs,Residential Care
Cambridgeshire County Council,07-Jun-18,51300162898,-1328.44,CARE MANAGEMENT GROUP (64-66 CARLTON),CARE ESTABLISHMENT,LD - East Locality,LD - East Cambs - Special Needs,Residential Care
Cambridgeshire County Council,07-Jun-18,51300138054,-1328.44,CARE MANAGEMENT GROUP (64-66 CARLTON),CARE ESTABLISHMENT,LD - East Locality,LD - East Cambs - Special Needs,Residential Care
Cambridgeshire County Council,07-Jun-18,51300138045,-1328.44,CARE MANAGEMENT GROUP (64-66 CARLTON),CARE ESTABLISHMENT,LD - East Locality,LD - East Cambs - Special Needs,Residential Care
Cambridgeshire County Council,07-Jun-18,51300163007,-1328.44,CARE MANAGEMENT GROUP (64-66 CARLTON),CARE ESTABLISHMENT,LD - East Locality,LD - East Cambs - Special Needs,Residential Care
Cambridgeshire County Council,07-Jun-18,51300152932,-1328.44,CARE MANAGEMENT GROUP (64-66 CARLTON),CARE ESTABLISHMENT,LD - East Locality,LD - East Cambs - Special Needs,Residential Care
Cambridgeshire County Council,07-Jun-18,51300152926,-1328.44,CARE MANAGEMENT GROUP (64-66 CARLTON),CARE ESTABLISHMENT,LD - East Locality,LD - East Cambs - Special Needs,Residential Care
Cambridgeshire County Council,07-Jun-18,51300113597,-1328.44,CARE MANAGEMENT GROUP (64-66 CARLTON),CARE ESTABLISHMENT,LD - East Locality,LD - East Cambs - Special Needs,Residential Care
Cambridgeshire County Council,07-Jun-18,51300162901,-1328.44,CARE MANAGEMENT GROUP (64-66 CARLTON),CARE ESTABLISHMENT,LD - East Locality,LD - East Cambs - Special Needs,Residential Care
Cambridgeshire County Council,07-Jun-18,51300113616,-1328.44,CARE MANAGEMENT GROUP (64-66 CARLTON),CARE ESTABLISHMENT,LD - East Locality,LD - East Cambs - Special Needs,Residential Care
Cambridgeshire County Council,07-Jun-18,51300137980,-1328.44,CARE MANAGEMENT GROUP (64-66 CARLTON),CARE ESTABLISHMENT,LD - East Locality,LD - East Cambs - Special Needs,Residential Care
Cambridgeshire County Council,07-Jun-18,51300137989,-1328.44,CARE MANAGEMENT GROUP (64-66 CARLTON),CARE ESTABLISHMENT,LD - East Locality,LD - East Cambs - Special Needs,Residential Care
Cambridgeshire County Council,07-Jun-18,51300152977,-1328.44,CARE MANAGEMENT GROUP (64-66 CARLTON),CARE ESTABLISHMENT,LD - East Locality,LD - East Cambs - Special Needs,Residential Care
Cambridgeshire County Council,07-Jun-18,51300163026,-1328.44,CARE MANAGEMENT GROUP (64-66 CARLTON),CARE ESTABLISHMENT,LD - East Locality,LD - East Cambs - Special Needs,Residential Care
Cambridgeshire County Council,07-Jun-18,51300137945,-1328.44,CARE MANAGEMENT GROUP (64-66 CARLTON),CARE ESTABLISHMENT,LD - East Locality,LD - East Cambs - Special Needs,Residential Care
Cambridgeshire County Council,07-Jun-18,51300162922,-1328.44,CARE MANAGEMENT GROUP (64-66 CARLTON),CARE ESTABLISHMENT,LD - East Locality,LD - East Cambs - Special Needs,Residential Care
Cambridgeshire County Council,07-Jun-18,51300163016,-1328.44,CARE MANAGEMENT GROUP (64-66 CARLTON),CARE ESTABLISHMENT,LD - East Locality,LD - East Cambs - Special Needs,Residential Care
Cambridgeshire County Council,07-Jun-18,51300152897,-1328.44,CARE MANAGEMENT GROUP (64-66 CARLTON),CARE ESTABLISHMENT,LD - East Locality,LD - East Cambs - Special Needs,Residential Care
Cambridgeshire County Council,07-Jun-18,51300113704,-1328.44,CARE MANAGEMENT GROUP (64-66 CARLTON),CARE ESTABLISHMENT,LD - East Locality,LD - East Cambs - Special Needs,Residential Care
Cambridgeshire County Council,07-Jun-18,51300152902,-1328.44,CARE MANAGEMENT GROUP (64-66 CARLTON),CARE ESTABLISHMENT,LD - East Locality,LD - East Cambs - Special Needs,Residential Care
Cambridgeshire County Council,07-Jun-18,51300162989,-1328.44,CARE MANAGEMENT GROUP (64-66 CARLTON),CARE ESTABLISHMENT,LD - East Locality,LD - East Cambs - Special Needs,Residential Care
Cambridgeshire County Council,07-Jun-18,51300137986,-1328.44,CARE MANAGEMENT GROUP (64-66 CARLTON),CARE ESTABLISHMENT,LD - East Locality,LD - East Cambs - Special Needs,Residential Care
Cambridgeshire County Council,07-Jun-18,51300113680,-1328.44,CARE MANAGEMENT GROUP (64-66 CARLTON),CARE ESTABLISHMENT,LD - East Locality,LD - East Cambs - Special Needs,Residential Care
Cambridgeshire County Council,07-Jun-18,51300113672,-1328.44,CARE MANAGEMENT GROUP (64-66 CARLTON),CARE ESTABLISHMENT,LD - East Locality,LD - East Cambs - Special Needs,Residential Care
Cambridgeshire County Council,07-Jun-18,51300138043,-1328.44,CARE MANAGEMENT GROUP (64-66 CARLTON),CARE ESTABLISHMENT,LD - East Locality,LD - East Cambs - Special Needs,Residential Care
Cambridgeshire County Council,07-Jun-18,51300152864,-1328.44,CARE MANAGEMENT GROUP (64-66 CARLTON),CARE ESTABLISHMENT,LD - East Locality,LD - East Cambs - Special Needs,Residential Care
Cambridgeshire County Council,07-Jun-18,51300138064,-1328.44,CARE MANAGEMENT GROUP (64-66 CARLTON),CARE ESTABLISHMENT,LD - East Locality,LD - East Cambs - Special Needs,Residential Care
Cambridgeshire County Council,07-Jun-18,51300113719,-1328.44,CARE MANAGEMENT GROUP (64-66 CARLTON),CARE ESTABLISHMENT,LD - East Locality,LD - East Cambs - Special Needs,Residential Care
Cambridgeshire County Council,07-Jun-18,51300162970,-1328.44,CARE MANAGEMENT GROUP (64-66 CARLTON),CARE ESTABLISHMENT,LD - East Locality,LD - East Cambs - Special Needs,Residential Care
Cambridgeshire County Council,07-Jun-18,51300137926,-1328.44,CARE MANAGEMENT GROUP (64-66 CARLTON),CARE ESTABLISHMENT,LD - East Locality,LD - East Cambs - Special Needs,Residential Care
Cambridgeshire County Council,07-Jun-18,51300152840,-1328.44,CARE MANAGEMENT GROUP (64-66 CARLTON),CARE ESTABLISHMENT,LD - East Locality,LD - East Cambs - Special Needs,Residential Care
Cambridgeshire County Council,07-Jun-18,51300113679,-1328.44,CARE MANAGEMENT GROUP (64-66 CARLTON),CARE ESTABLISHMENT,LD - East Locality,LD - East Cambs - Special Needs,Residential Care
Cambridgeshire County Council,07-Jun-18,51300138042,-1328.44,CARE MANAGEMENT GROUP (64-66 CARLTON),CARE ESTABLISHMENT,LD - East Locality,LD - East Cambs - Special Needs,Residential Care
Cambridgeshire County Council,07-Jun-18,51300113594,-1328.44,CARE MANAGEMENT GROUP (64-66 CARLTON),CARE ESTABLISHMENT,LD - East Locality,LD - East Cambs - Special Needs,Residential Care
Cambridgeshire County Council,07-Jun-18,51300113710,-1328.44,CARE MANAGEMENT GROUP (64-66 CARLTON),CARE ESTABLISHMENT,LD - East Locality,LD - East Cambs - Special Needs,Residential Care
Cambridgeshire County Council,07-Jun-18,51300113656,-1328.44,CARE MANAGEMENT GROUP (64-66 CARLTON),CARE ESTABLISHMENT,LD - East Locality,LD - East Cambs - Special Needs,Residential Care
Cambridgeshire County Council,07-Jun-18,51300162893,-1328.44,CARE MANAGEMENT GROUP (64-66 CARLTON),CARE ESTABLISHMENT,LD - East Locality,LD - East Cambs - Special Needs,Residential Care
Cambridgeshire County Council,07-Jun-18,51300162878,-1328.44,CARE MANAGEMENT GROUP (64-66 CARLTON),CARE ESTABLISHMENT,LD - East Locality,LD - East Cambs - Special Needs,Residential Care
Cambridgeshire County Council,07-Jun-18,51300163015,-1328.44,CARE MANAGEMENT GROUP (64-66 CARLTON),CARE ESTABLISHMENT,LD - East Locality,LD - East Cambs - Special Needs,Residential Care
Cambridgeshire County Council,07-Jun-18,51300163001,-1328.44,CARE MANAGEMENT GROUP (64-66 CARLTON),CARE ESTABLISHMENT,LD - East Locality,LD - East Cambs - Special Needs,Residential Care
Cambridgeshire County Council,07-Jun-18,51300152931,-1328.44,CARE MANAGEMENT GROUP (64-66 CARLTON),CARE ESTABLISHMENT,LD - East Locality,LD - East Cambs - Special Needs,Residential Care
Cambridgeshire County Council,07-Jun-18,51300137985,-1328.44,CARE MANAGEMENT GROUP (64-66 CARLTON),CARE ESTABLISHMENT,LD - East Locality,LD - East Cambs - Special Needs,Residential Care
Cambridgeshire County Council,07-Jun-18,51300162936,-1328.44,CARE MANAGEMENT GROUP (64-66 CARLTON),CARE ESTABLISHMENT,LD - East Locality,LD - East Cambs - Special Needs,Residential Care
Cambridgeshire County Council,07-Jun-18,51300162897,-1328.44,CARE MANAGEMENT GROUP (64-66 CARLTON),CARE ESTABLISHMENT,LD - East Locality,LD - East Cambs - Special Needs,Residential Care
Cambridgeshire County Council,07-Jun-18,51300162965,-1328.44,CARE MANAGEMENT GROUP (64-66 CARLTON),CARE ESTABLISHMENT,LD - East Locality,LD - East Cambs - Special Needs,Residential Care
Cambridgeshire County Council,07-Jun-18,51300138038,-1328.44,CARE MANAGEMENT GROUP (64-66 CARLTON),CARE ESTABLISHMENT,LD - East Locality,LD - East Cambs - Special Needs,Residential Care
Cambridgeshire County Council,07-Jun-18,51300138000,-1328.44,CARE MANAGEMENT GROUP (64-66 CARLTON),CARE ESTABLISHMENT,LD - East Locality,LD - East Cambs - Special Needs,Residential Care
Cambridgeshire County Council,07-Jun-18,51300162888,-1328.44,CARE MANAGEMENT GROUP (64-66 CARLTON),CARE ESTABLISHMENT,LD - East Locality,LD - East Cambs - Special Needs,Residential Care
Cambridgeshire County Council,07-Jun-18,51300113667,-1328.44,CARE MANAGEMENT GROUP (64-66 CARLTON),CARE ESTABLISHMENT,LD - East Locality,LD - East Cambs - Special Needs,Residential Care
Cambridgeshire County Council,07-Jun-18,51300137929,-1328.44,CARE MANAGEMENT GROUP (64-66 CARLTON),CARE ESTABLISHMENT,LD - East Locality,LD - East Cambs - Special Needs,Residential Care
Cambridgeshire County Council,07-Jun-18,51300162879,-1328.44,CARE MANAGEMENT GROUP (64-66 CARLTON),CARE ESTABLISHMENT,LD - East Locality,LD - East Cambs - Special Needs,Residential Care
Cambridgeshire County Council,07-Jun-18,51300152892,-1328.44,CARE MANAGEMENT GROUP (64-66 CARLTON),CARE ESTABLISHMENT,LD - East Locality,LD - East Cambs - Special Needs,Residential Care
Cambridgeshire County Council,07-Jun-18,51300162958,-1328.44,CARE MANAGEMENT GROUP (64-66 CARLTON),CARE ESTABLISHMENT,LD - East Locality,LD - East Cambs - Special Needs,Residential Care
Cambridgeshire County Council,07-Jun-18,51300162938,-1328.44,CARE MANAGEMENT GROUP (64-66 CARLTON),CARE ESTABLISHMENT,LD - East Locality,LD - East Cambs - Special Needs,Residential Care
Cambridgeshire County Council,07-Jun-18,51300162991,-1328.44,CARE MANAGEMENT GROUP (64-66 CARLTON),CARE ESTABLISHMENT,LD - East Locality,LD - East Cambs - Special Needs,Residential Care
Cambridgeshire County Council,07-Jun-18,51300162891,-1328.44,CARE MANAGEMENT GROUP (64-66 CARLTON),CARE ESTABLISHMENT,LD - East Locality,LD - East Cambs - Special Needs,Residential Care
Cambridgeshire County Council,07-Jun-18,51300152952,-1328.44,CARE MANAGEMENT GROUP (64-66 CARLTON),CARE ESTABLISHMENT,LD - East Locality,LD - East Cambs - Special Needs,Residential Care
Cambridgeshire County Council,07-Jun-18,51300152984,-1328.44,CARE MANAGEMENT GROUP (64-66 CARLTON),CARE ESTABLISHMENT,LD - East Locality,LD - East Cambs - Special Needs,Residential Care
Cambridgeshire County Council,07-Jun-18,51300162912,-1328.44,CARE MANAGEMENT GROUP (64-66 CARLTON),CARE ESTABLISHMENT,LD - East Locality,LD - East Cambs - Special Needs,Residential Care
Cambridgeshire County Council,07-Jun-18,51300113720,-1328.44,CARE MANAGEMENT GROUP (64-66 CARLTON),CARE ESTABLISHMENT,LD - East Locality,LD - East Cambs - Special Needs,Residential Care
Cambridgeshire County Council,07-Jun-18,51300152937,-1328.44,CARE MANAGEMENT GROUP (64-66 CARLTON),CARE ESTABLISHMENT,LD - East Locality,LD - East Cambs - Special Needs,Residential Care
Cambridgeshire County Council,07-Jun-18,51300152924,-1328.44,CARE MANAGEMENT GROUP (64-66 CARLTON),CARE ESTABLISHMENT,LD - East Locality,LD - East Cambs - Special Needs,Residential Care
Cambridgeshire County Council,07-Jun-18,51300113652,-1328.44,CARE MANAGEMENT GROUP (64-66 CARLTON),CARE ESTABLISHMENT,LD - East Locality,LD - East Cambs - Special Needs,Residential Care
Cambridgeshire County Council,07-Jun-18,51300152889,-1328.44,CARE MANAGEMENT GROUP (64-66 CARLTON),CARE ESTABLISHMENT,LD - East Locality,LD - East Cambs - Special Needs,Residential Care
Cambridgeshire County Council,07-Jun-18,51300152918,-1328.44,CARE MANAGEMENT GROUP (64-66 CARLTON),CARE ESTABLISHMENT,LD - East Locality,LD - East Cambs - Special Needs,Residential Care
Cambridgeshire County Council,07-Jun-18,51300113740,-1328.44,CARE MANAGEMENT GROUP (64-66 CARLTON),CARE ESTABLISHMENT,LD - East Locality,LD - East Cambs - Special Needs,Residential Care
Cambridgeshire County Council,07-Jun-18,51300113625,-1328.44,CARE MANAGEMENT GROUP (64-66 CARLTON),CARE ESTABLISHMENT,LD - East Locality,LD - East Cambs - Special Needs,Residential Care
Cambridgeshire County Council,07-Jun-18,51300162995,-1328.44,CARE MANAGEMENT GROUP (64-66 CARLTON),CARE ESTABLISHMENT,LD - East Locality,LD - East Cambs - Special Needs,Residential Care
Cambridgeshire County Council,07-Jun-18,51300162973,-1328.44,CARE MANAGEMENT GROUP (64-66 CARLTON),CARE ESTABLISHMENT,LD - East Locality,LD - East Cambs - Special Needs,Residential Care
Cambridgeshire County Council,07-Jun-18,51300113684,-1328.44,CARE MANAGEMENT GROUP (64-66 CARLTON),CARE ESTABLISHMENT,LD - East Locality,LD - East Cambs - Special Needs,Residential Care
Cambridgeshire County Council,07-Jun-18,51300113613,-1328.44,CARE MANAGEMENT GROUP (64-66 CARLTON),CARE ESTABLISHMENT,LD - East Locality,LD - East Cambs - Special Needs,Residential Care
Cambridgeshire County Council,07-Jun-18,51300162996,-1328.44,CARE MANAGEMENT GROUP (64-66 CARLTON),CARE ESTABLISHMENT,LD - East Locality,LD - East Cambs - Special Needs,Residential Care
Cambridgeshire County Council,07-Jun-18,51300162905,-1328.44,CARE MANAGEMENT GROUP (64-66 CARLTON),CARE ESTABLISHMENT,LD - East Locality,LD - East Cambs - Special Needs,Residential Care
Cambridgeshire County Council,07-Jun-18,51300137984,-1328.44,CARE MANAGEMENT GROUP (64-66 CARLTON),CARE ESTABLISHMENT,LD - East Locality,LD - East Cambs - Special Needs,Residential Care
Cambridgeshire County Council,07-Jun-18,51300152835,-1328.44,CARE MANAGEMENT GROUP (64-66 CARLTON),CARE ESTABLISHMENT,LD - East Locality,LD - East Cambs - Special Needs,Residential Care
Cambridgeshire County Council,07-Jun-18,51300138060,-1328.44,CARE MANAGEMENT GROUP (64-66 CARLTON),CARE ESTABLISHMENT,LD - East Locality,LD - East Cambs - Special Needs,Residential Care
Cambridgeshire County Council,07-Jun-18,51300113675,-1328.44,CARE MANAGEMENT GROUP (64-66 CARLTON),CARE ESTABLISHMENT,LD - East Locality,LD - East Cambs - Special Needs,Residential Care
Cambridgeshire County Council,07-Jun-18,51300152945,-1328.44,CARE MANAGEMENT GROUP (64-66 CARLTON),CARE ESTABLISHMENT,LD - East Locality,LD - East Cambs - Special Needs,Residential Care
Cambridgeshire County Council,07-Jun-18,51300162934,-1328.44,CARE MANAGEMENT GROUP (64-66 CARLTON),CARE ESTABLISHMENT,LD - East Locality,LD - East Cambs - Special Needs,Residential Care
Cambridgeshire County Council,07-Jun-18,51300138069,-1328.44,CARE MANAGEMENT GROUP (64-66 CARLTON),CARE ESTABLISHMENT,LD - East Locality,LD - East Cambs - Special Needs,Residential Care
Cambridgeshire County Council,07-Jun-18,51300152865,-1328.44,CARE MANAGEMENT GROUP (64-66 CARLTON),CARE ESTABLISHMENT,LD - East Locality,LD - East Cambs - Special Needs,Residential Care
Cambridgeshire County Council,07-Jun-18,51300152944,-1328.44,CARE MANAGEMENT GROUP (64-66 CARLTON),CARE ESTABLISHMENT,LD - East Locality,LD - East Cambs - Special Needs,Residential Care
Cambridgeshire County Council,07-Jun-18,51300152923,-1328.44,CARE MANAGEMENT GROUP (64-66 CARLTON),CARE ESTABLISHMENT,LD - East Locality,LD - East Cambs - Special Needs,Residential Care
Cambridgeshire County Council,07-Jun-18,51300162913,-1328.44,CARE MANAGEMENT GROUP (64-66 CARLTON),CARE ESTABLISHMENT,LD - East Locality,LD - East Cambs - Special Needs,Residential Care
Cambridgeshire County Council,07-Jun-18,51300163029,-1328.44,CARE MANAGEMENT GROUP (64-66 CARLTON),CARE ESTABLISHMENT,LD - East Locality,LD - East Cambs - Special Needs,Residential Care
Cambridgeshire County Council,07-Jun-18,51300152901,-1328.44,CARE MANAGEMENT GROUP (64-66 CARLTON),CARE ESTABLISHMENT,LD - East Locality,LD - East Cambs - Special Needs,Residential Care
Cambridgeshire County Council,07-Jun-18,51300152946,-1328.44,CARE MANAGEMENT GROUP (64-66 CARLTON),CARE ESTABLISHMENT,LD - East Locality,LD - East Cambs - Special Needs,Residential Care
Cambridgeshire County Council,07-Jun-18,51300152939,-1328.44,CARE MANAGEMENT GROUP (64-66 CARLTON),CARE ESTABLISHMENT,LD - East Locality,LD - East Cambs - Special Needs,Residential Care
Cambridgeshire County Council,07-Jun-18,51300159269,-1317.11,ALDERTON HOUSE,CARE ESTABLISHMENT,LD - East Locality,LD - East Cambs - Special Needs,Residential Care
Cambridgeshire County Council,07-Jun-18,51300149303,-1317.11,ALDERTON HOUSE,CARE ESTABLISHMENT,LD - East Locality,LD - East Cambs - Special Needs,Residential Care
Cambridgeshire County Council,07-Jun-18,51300159243,-1317.11,ALDERTON HOUSE,CARE ESTABLISHMENT,LD - East Locality,LD - East Cambs - Special Needs,Residential Care
Cambridgeshire County Council,07-Jun-18,51300159248,-1317.11,ALDERTON HOUSE,CARE ESTABLISHMENT,LD - East Locality,LD - East Cambs - Special Needs,Residential Care
Cambridgeshire County Council,07-Jun-18,51300159276,-1317.11,ALDERTON HOUSE,CARE ESTABLISHMENT,LD - East Locality,LD - East Cambs - Special Needs,Residential Care
Cambridgeshire County Council,07-Jun-18,51300159227,-1317.11,ALDERTON HOUSE,CARE ESTABLISHMENT,LD - East Locality,LD - East Cambs - Special Needs,Residential Care
Cambridgeshire County Council,07-Jun-18,51300159266,-1317.11,ALDERTON HOUSE,CARE ESTABLISHMENT,LD - East Locality,LD - East Cambs - Special Needs,Residential Care
Cambridgeshire County Council,07-Jun-18,51300149377,-1317.11,ALDERTON HOUSE,CARE ESTABLISHMENT,LD - East Locality,LD - East Cambs - Special Needs,Residential Care
Cambridgeshire County Council,07-Jun-18,51300159251,-1317.11,ALDERTON HOUSE,CARE ESTABLISHMENT,LD - East Locality,LD - East Cambs - Special Needs,Residential Care
Cambridgeshire County Council,07-Jun-18,51300149388,-1317.11,ALDERTON HOUSE,CARE ESTABLISHMENT,LD - East Locality,LD - East Cambs - Special Needs,Residential Care
Cambridgeshire County Council,07-Jun-18,51300159339,-1317.11,ALDERTON HOUSE,CARE ESTABLISHMENT,LD - East Locality,LD - East Cambs - Special Needs,Residential Care
Cambridgeshire County Council,07-Jun-18,51300159281,-1317.11,ALDERTON HOUSE,CARE ESTABLISHMENT,LD - East Locality,LD - East Cambs - Special Needs,Residential Care
Cambridgeshire County Council,07-Jun-18,51300149347,-1317.11,ALDERTON HOUSE,CARE ESTABLISHMENT,LD - East Locality,LD - East Cambs - Special Needs,Residential Care
Cambridgeshire County Council,07-Jun-18,51300149316,-1317.11,ALDERTON HOUSE,CARE ESTABLISHMENT,LD - East Locality,LD - East Cambs - Special Needs,Residential Care
Cambridgeshire County Council,07-Jun-18,51300149302,-1317.11,ALDERTON HOUSE,CARE ESTABLISHMENT,LD - East Locality,LD - East Cambs - Special Needs,Residential Care
Cambridgeshire County Council,07-Jun-18,51300159289,-1317.11,ALDERTON HOUSE,CARE ESTABLISHMENT,LD - East Locality,LD - East Cambs - Special Needs,Residential Care
Cambridgeshire County Council,07-Jun-18,51300149381,-1317.11,ALDERTON HOUSE,CARE ESTABLISHMENT,LD - East Locality,LD - East Cambs - Special Needs,Residential Care
Cambridgeshire County Council,07-Jun-18,51300159303,-1317.11,ALDERTON HOUSE,CARE ESTABLISHMENT,LD - East Locality,LD - East Cambs - Special Needs,Residential Care
Cambridgeshire County Council,07-Jun-18,51300159342,-1317.11,ALDERTON HOUSE,CARE ESTABLISHMENT,LD - East Locality,LD - East Cambs - Special Needs,Residential Care
Cambridgeshire County Council,07-Jun-18,51300159279,-1317.11,ALDERTON HOUSE,CARE ESTABLISHMENT,LD - East Locality,LD - East Cambs - Special Needs,Residential Care
Cambridgeshire County Council,07-Jun-18,51300149346,-1317.11,ALDERTON HOUSE,CARE ESTABLISHMENT,LD - East Locality,LD - East Cambs - Special Needs,Residential Care
Cambridgeshire County Council,07-Jun-18,51300149407,-1317.11,ALDERTON HOUSE,CARE ESTABLISHMENT,LD - East Locality,LD - East Cambs - Special Needs,Residential Care
Cambridgeshire County Council,07-Jun-18,51300149262,-1317.11,ALDERTON HOUSE,CARE ESTABLISHMENT,LD - East Locality,LD - East Cambs - Special Needs,Residential Care
Cambridgeshire County Council,07-Jun-18,51300159308,-1317.11,ALDERTON HOUSE,CARE ESTABLISHMENT,LD - East Locality,LD - East Cambs - Special Needs,Residential Care
Cambridgeshire County Council,07-Jun-18,51300149413,-1317.11,ALDERTON HOUSE,CARE ESTABLISHMENT,LD - East Locality,LD - East Cambs - Special Needs,Residential Care
Cambridgeshire County Council,07-Jun-18,51300149289,-1317.11,ALDERTON HOUSE,CARE ESTABLISHMENT,LD - East Locality,LD - East Cambs - Special Needs,Residential Care
Cambridgeshire County Council,07-Jun-18,51300159343,-1317.11,ALDERTON HOUSE,CARE ESTABLISHMENT,LD - East Locality,LD - East Cambs - Special Needs,Residential Care
Cambridgeshire County Council,07-Jun-18,51300159231,-1317.11,ALDERTON HOUSE,CARE ESTABLISHMENT,LD - East Locality,LD - East Cambs - Special Needs,Residential Care
Cambridgeshire County Council,07-Jun-18,51300159235,-1317.11,ALDERTON HOUSE,CARE ESTABLISHMENT,LD - East Locality,LD - East Cambs - Special Needs,Residential Care
Cambridgeshire County Council,07-Jun-18,51300149330,-1317.11,ALDERTON HOUSE,CARE ESTABLISHMENT,LD - East Locality,LD - East Cambs - Special Needs,Residential Care
Cambridgeshire County Council,07-Jun-18,51300159245,-1317.11,ALDERTON HOUSE,CARE ESTABLISHMENT,LD - East Locality,LD - East Cambs - Special Needs,Residential Care
Cambridgeshire County Council,07-Jun-18,51300159299,-1317.11,ALDERTON HOUSE,CARE ESTABLISHMENT,LD - East Locality,LD - East Cambs - Special Needs,Residential Care
Cambridgeshire County Council,07-Jun-18,51300149410,-1317.11,ALDERTON HOUSE,CARE ESTABLISHMENT,LD - East Locality,LD - East Cambs - Special Needs,Residential Care
Cambridgeshire County Council,07-Jun-18,51300149271,-1317.11,ALDERTON HOUSE,CARE ESTABLISHMENT,LD - East Locality,LD - East Cambs - Special Needs,Residential Care
Cambridgeshire County Council,07-Jun-18,51300149359,-1317.11,ALDERTON HOUSE,CARE ESTABLISHMENT,LD - East Locality,LD - East Cambs - Special Needs,Residential Care
Cambridgeshire County Council,07-Jun-18,51300149276,-1317.11,ALDERTON HOUSE,CARE ESTABLISHMENT,LD - East Locality,LD - East Cambs - Special Needs,Residential Care
Cambridgeshire County Council,07-Jun-18,51300159226,-1317.11,ALDERTON HOUSE,CARE ESTABLISHMENT,LD - East Locality,LD - East Cambs - Special Needs,Residential Care
Cambridgeshire County Council,07-Jun-18,51300159316,-1317.11,ALDERTON HOUSE,CARE ESTABLISHMENT,LD - East Locality,LD - East Cambs - Special Needs,Residential Care
Cambridgeshire County Council,07-Jun-18,51300159319,-1317.11,ALDERTON HOUSE,CARE ESTABLISHMENT,LD - East Locality,LD - East Cambs - Special Needs,Residential Care
Cambridgeshire County Council,07-Jun-18,51300159341,-1317.11,ALDERTON HOUSE,CARE ESTABLISHMENT,LD - East Locality,LD - East Cambs - Special Needs,Residential Care
Cambridgeshire County Council,07-Jun-18,51300149389,-1317.11,ALDERTON HOUSE,CARE ESTABLISHMENT,LD - East Locality,LD - East Cambs - Special Needs,Residential Care
Cambridgeshire County Council,07-Jun-18,51300159331,-1317.11,ALDERTON HOUSE,CARE ESTABLISHMENT,LD - East Locality,LD - East Cambs - Special Needs,Residential Care
Cambridgeshire County Council,07-Jun-18,51300159293,-1317.11,ALDERTON HOUSE,CARE ESTABLISHMENT,LD - East Locality,LD - East Cambs - Care,Residential Care
Cambridgeshire County Council,07-Jun-18,51300149311,-1317.11,ALDERTON HOUSE,CARE ESTABLISHMENT,LD - East Locality,LD - East Cambs - Care,Residential Care
Cambridgeshire County Council,07-Jun-18,51300149376,-1317.11,ALDERTON HOUSE,CARE ESTABLISHMENT,LD - East Locality,LD - East Cambs - Care,Residential Care
Cambridgeshire County Council,07-Jun-18,51300149362,-1317.11,ALDERTON HOUSE,CARE ESTABLISHMENT,LD - East Locality,LD - East Cambs - Care,Residential Care
Cambridgeshire County Council,07-Jun-18,51300149312,-1317.11,ALDERTON HOUSE,CARE ESTABLISHMENT,LD - East Locality,LD - East Cambs - Care,Residential Care
Cambridgeshire County Council,07-Jun-18,51300159256,-1317.11,ALDERTON HOUSE,CARE ESTABLISHMENT,LD - East Locality,LD - East Cambs - Care,Residential Care
Cambridgeshire County Council,07-Jun-18,51300149332,-1317.11,ALDERTON HOUSE,CARE ESTABLISHMENT,LD - East Locality,LD - East Cambs - Care,Residential Care
Cambridgeshire County Council,07-Jun-18,51300149390,-1317.11,ALDERTON HOUSE,CARE ESTABLISHMENT,LD - East Locality,LD - East Cambs - Care,Residential Care
Cambridgeshire County Council,07-Jun-18,51300159273,-1317.11,ALDERTON HOUSE,CARE ESTABLISHMENT,LD - East Locality,LD - East Cambs - Care,Residential Care
Cambridgeshire County Council,07-Jun-18,51300149333,-1317.11,ALDERTON HOUSE,CARE ESTABLISHMENT,LD - East Locality,LD - East Cambs - Care,Residential Care
Cambridgeshire County Council,07-Jun-18,51300149307,-1317.11,ALDERTON HOUSE,CARE ESTABLISHMENT,LD - East Locality,LD - East Cambs - Care,Residential Care
Cambridgeshire County Council,07-Jun-18,51300159282,-1317.11,ALDERTON HOUSE,CARE ESTABLISHMENT,LD - East Locality,LD - East Cambs - Care,Residential Care
Cambridgeshire County Council,07-Jun-18,51300159258,-1317.11,ALDERTON HOUSE,CARE ESTABLISHMENT,LD - East Locality,LD - East Cambs - Care,Residential Care
Cambridgeshire County Council,07-Jun-18,51300159246,-1317.11,ALDERTON HOUSE,CARE ESTABLISHMENT,LD - East Locality,LD - East Cambs - Care,Residential Care
Cambridgeshire County Council,07-Jun-18,51300149304,-1317.11,ALDERTON HOUSE,CARE ESTABLISHMENT,LD - East Locality,LD - East Cambs - Care,Residential Care
Cambridgeshire County Council,07-Jun-18,51300159302,-1317.11,ALDERTON HOUSE,CARE ESTABLISHMENT,LD - East Locality,LD - East Cambs - Care,Residential Care
Cambridgeshire County Council,07-Jun-18,51300149374,-1317.11,ALDERTON HOUSE,CARE ESTABLISHMENT,LD - East Locality,LD - East Cambs - Care,Residential Care
Cambridgeshire County Council,07-Jun-18,51300149300,-1317.11,ALDERTON HOUSE,CARE ESTABLISHMENT,LD - East Locality,LD - East Cambs - Care,Residential Care
Cambridgeshire County Council,07-Jun-18,51300149363,-1317.11,ALDERTON HOUSE,CARE ESTABLISHMENT,LD - East Locality,LD - East Cambs - Care,Residential Care
Cambridgeshire County Council,07-Jun-18,51300149360,-1317.11,ALDERTON HOUSE,CARE ESTABLISHMENT,LD - East Locality,LD - East Cambs - Care,Residential Care
Cambridgeshire County Council,07-Jun-18,51300159311,-1317.11,ALDERTON HOUSE,CARE ESTABLISHMENT,LD - East Locality,LD - East Cambs - Care,Residential Care
Cambridgeshire County Council,07-Jun-18,51300149281,-1317.11,ALDERTON HOUSE,CARE ESTABLISHMENT,LD - East Locality,LD - East Cambs - Care,Residential Care
Cambridgeshire County Council,07-Jun-18,51300159234,-1317.11,ALDERTON HOUSE,CARE ESTABLISHMENT,LD - East Locality,LD - East Cambs - Care,Residential Care
Cambridgeshire County Council,07-Jun-18,51300159270,-1317.11,ALDERTON HOUSE,CARE ESTABLISHMENT,LD - East Locality,LD - East Cambs - Care,Residential Care
Cambridgeshire County Council,07-Jun-18,51300149366,-1317.11,ALDERTON HOUSE,CARE ESTABLISHMENT,LD - East Locality,LD - East Cambs - Care,Residential Care
Cambridgeshire County Council,07-Jun-18,51300149327,-1317.11,ALDERTON HOUSE,CARE ESTABLISHMENT,LD - East Locality,LD - East Cambs - Care,Residential Care
Cambridgeshire County Council,07-Jun-18,51300159255,-1317.11,ALDERTON HOUSE,CARE ESTABLISHMENT,LD - East Locality,LD - East Cambs - Care,Residential Care
Cambridgeshire County Council,07-Jun-18,51300159335,-1317.11,ALDERTON HOUSE,CARE ESTABLISHMENT,LD - East Locality,LD - East Cambs - Care,Residential Care
Cambridgeshire County Council,07-Jun-18,51300159250,-1317.11,ALDERTON HOUSE,CARE ESTABLISHMENT,LD - East Locality,LD - East Cambs - Care,Residential Care
Cambridgeshire County Council,07-Jun-18,51300149270,-1317.11,ALDERTON HOUSE,CARE ESTABLISHMENT,LD - East Locality,LD - East Cambs - Care,Residential Care
Cambridgeshire County Council,07-Jun-18,51300149277,-1317.11,ALDERTON HOUSE,CARE ESTABLISHMENT,LD - East Locality,LD - East Cambs - Care,Residential Care
Cambridgeshire County Council,07-Jun-18,51300159315,-1317.11,ALDERTON HOUSE,CARE ESTABLISHMENT,LD - East Locality,LD - East Cambs - Care,Residential Care
Cambridgeshire County Council,07-Jun-18,51300159291,-1317.11,ALDERTON HOUSE,CARE ESTABLISHMENT,LD - East Locality,LD - East Cambs - Care,Residential Care
Cambridgeshire County Council,07-Jun-18,51300149261,-1317.11,ALDERTON HOUSE,CARE ESTABLISHMENT,LD - East Locality,LD - East Cambs - Care,Residential Care
Cambridgeshire County Council,07-Jun-18,51300149301,-1317.11,ALDERTON HOUSE,CARE ESTABLISHMENT,LD - East Locality,LD - East Cambs - Care,Residential Care
Cambridgeshire County Council,07-Jun-18,51300149351,-1317.11,ALDERTON HOUSE,CARE ESTABLISHMENT,LD - East Locality,LD - East Cambs - Care,Residential Care
Cambridgeshire County Council,07-Jun-18,51300159306,-1317.11,ALDERTON HOUSE,CARE ESTABLISHMENT,LD - East Locality,LD - East Cambs - Care,Residential Care
Cambridgeshire County Council,07-Jun-18,51300149336,-1317.11,ALDERTON HOUSE,CARE ESTABLISHMENT,LD - East Locality,LD - East Cambs - Care,Residential Care
Cambridgeshire County Council,07-Jun-18,51300159253,-1317.11,ALDERTON HOUSE,CARE ESTABLISHMENT,LD - East Locality,LD - East Cambs - Care,Residential Care
Cambridgeshire County Council,07-Jun-18,51300159313,-1317.11,ALDERTON HOUSE,CARE ESTABLISHMENT,LD - East Locality,LD - East Cambs - Care,Residential Care
Cambridgeshire County Council,07-Jun-18,51300159340,-1317.11,ALDERTON HOUSE,CARE ESTABLISHMENT,LD - East Locality,LD - East Cambs - Care,Residential Care
Cambridgeshire County Council,07-Jun-18,51300159325,-1317.11,ALDERTON HOUSE,CARE ESTABLISHMENT,LD - East Locality,LD - East Cambs - Care,Residential Care
Cambridgeshire County Council,07-Jun-18,51300159320,-1317.11,ALDERTON HOUSE,CARE ESTABLISHMENT,LD - East Locality,LD - East Cambs - Care,Residential Care
Cambridgeshire County Council,07-Jun-18,51300149356,-1317.11,ALDERTON HOUSE,CARE ESTABLISHMENT,LD - East Locality,LD - East Cambs - Care,Residential Care
Cambridgeshire County Council,07-Jun-18,51300159284,-1317.11,ALDERTON HOUSE,CARE ESTABLISHMENT,LD - East Locality,LD - East Cambs - Care,Residential Care
Cambridgeshire County Council,07-Jun-18,51300159296,-1317.11,ALDERTON HOUSE,CARE ESTABLISHMENT,LD - East Locality,LD - East Cambs - Care,Residential Care
Cambridgeshire County Council,07-Jun-18,51300159310,-1317.11,ALDERTON HOUSE,CARE ESTABLISHMENT,LD - East Locality,LD - East Cambs - Care,Residential Care
Cambridgeshire County Council,07-Jun-18,51300149350,-1317.11,ALDERTON HOUSE,CARE ESTABLISHMENT,LD - East Locality,LD - East Cambs - Care,Residential Care
Cambridgeshire County Council,07-Jun-18,51300159267,-1317.11,ALDERTON HOUSE,CARE ESTABLISHMENT,LD - East Locality,LD - East Cambs - Care,Residential Care
Cambridgeshire County Council,07-Jun-18,51300159344,-1317.11,ALDERTON HOUSE,CARE ESTABLISHMENT,LD - East Locality,LD - East Cambs - Care,Residential Care
Cambridgeshire County Council,07-Jun-18,51300149339,-1317.11,ALDERTON HOUSE,CARE ESTABLISHMENT,LD - East Locality,LD - East Cambs - Care,Residential Care
Cambridgeshire County Council,07-Jun-18,51300159295,-1317.11,ALDERTON HOUSE,CARE ESTABLISHMENT,LD - East Locality,LD - East Cambs - Care,Residential Care
Cambridgeshire County Council,07-Jun-18,51300149284,-1317.11,ALDERTON HOUSE,CARE ESTABLISHMENT,LD - East Locality,LD - East Cambs - Care,Residential Care
Cambridgeshire County Council,07-Jun-18,51300149267,-1317.11,ALDERTON HOUSE,CARE ESTABLISHMENT,LD - East Locality,LD - East Cambs - Care,Residential Care
Cambridgeshire County Council,07-Jun-18,51300149310,-1317.11,ALDERTON HOUSE,CARE ESTABLISHMENT,LD - East Locality,LD - East Cambs - Care,Residential Care
Cambridgeshire County Council,07-Jun-18,51300149335,-1317.11,ALDERTON HOUSE,CARE ESTABLISHMENT,LD - East Locality,LD - East Cambs - Care,Residential Care
Cambridgeshire County Council,07-Jun-18,51300149273,-1317.11,ALDERTON HOUSE,CARE ESTABLISHMENT,LD - East Locality,LD - East Cambs - Care,Residential Care
Cambridgeshire County Council,07-Jun-18,51300159262,-1317.11,ALDERTON HOUSE,CARE ESTABLISHMENT,LD - East Locality,LD - East Cambs - Care,Residential Care
Cambridgeshire County Council,07-Jun-18,51300159307,-1317.11,ALDERTON HOUSE,CARE ESTABLISHMENT,LD - East Locality,LD - East Cambs - Care,Residential Care
Cambridgeshire County Council,07-Jun-18,51300149355,-1317.11,ALDERTON HOUSE,CARE ESTABLISHMENT,LD - East Locality,LD - East Cambs - Care,Residential Care
Cambridgeshire County Council,07-Jun-18,51300149295,-1317.11,ALDERTON HOUSE,CARE ESTABLISHMENT,LD - East Locality,LD - East Cambs - Care,Residential Care
Cambridgeshire County Council,07-Jun-18,51300149412,-1317.11,ALDERTON HOUSE,CARE ESTABLISHMENT,LD - East Locality,LD - East Cambs - Care,Residential Care
Cambridgeshire County Council,07-Jun-18,51300149373,-1317.11,ALDERTON HOUSE,CARE ESTABLISHMENT,LD - East Locality,LD - East Cambs - Care,Residential Care
Cambridgeshire County Council,07-Jun-18,51300149367,-1317.11,ALDERTON HOUSE,CARE ESTABLISHMENT,LD - East Locality,LD - East Cambs - Care,Residential Care
Cambridgeshire County Council,13-Jun-18,51300170312,-1317.11,ALDERTON HOUSE,CARE ESTABLISHMENT,LD - East Locality,LD - East Cambs - Special Needs,Residential Care
Cambridgeshire County Council,13-Jun-18,51300170297,-1317.11,ALDERTON HOUSE,CARE ESTABLISHMENT,LD - East Locality,LD - East Cambs - Special Needs,Residential Care
Cambridgeshire County Council,13-Jun-18,51300170255,-1317.11,ALDERTON HOUSE,CARE ESTABLISHMENT,LD - East Locality,LD - East Cambs - Special Needs,Residential Care
Cambridgeshire County Council,13-Jun-18,51300170250,-1317.11,ALDERTON HOUSE,CARE ESTABLISHMENT,LD - East Locality,LD - East Cambs - Special Needs,Residential Care
Cambridgeshire County Council,13-Jun-18,51300170326,-1317.11,ALDERTON HOUSE,CARE ESTABLISHMENT,LD - East Locality,LD - East Cambs - Special Needs,Residential Care
Cambridgeshire County Council,13-Jun-18,51300170359,-1317.11,ALDERTON HOUSE,CARE ESTABLISHMENT,LD - East Locality,LD - East Cambs - Special Needs,Residential Care
Cambridgeshire County Council,13-Jun-18,51300170259,-1317.11,ALDERTON HOUSE,CARE ESTABLISHMENT,LD - East Locality,LD - East Cambs - Special Needs,Residential Care
Cambridgeshire County Council,13-Jun-18,51300170345,-1317.11,ALDERTON HOUSE,CARE ESTABLISHMENT,LD - East Locality,LD - East Cambs - Special Needs,Residential Care
Cambridgeshire County Council,13-Jun-18,51300170334,-1317.11,ALDERTON HOUSE,CARE ESTABLISHMENT,LD - East Locality,LD - East Cambs - Special Needs,Residential Care
Cambridgeshire County Council,13-Jun-18,51300170348,-1317.11,ALDERTON HOUSE,CARE ESTABLISHMENT,LD - East Locality,LD - East Cambs - Special Needs,Residential Care
Cambridgeshire County Council,13-Jun-18,51300170353,-1317.11,ALDERTON HOUSE,CARE ESTABLISHMENT,LD - East Locality,LD - East Cambs - Special Needs,Residential Care
Cambridgeshire County Council,13-Jun-18,51300170254,-1317.11,ALDERTON HOUSE,CARE ESTABLISHMENT,LD - East Locality,LD - East Cambs - Special Needs,Residential Care
Cambridgeshire County Council,13-Jun-18,51300170358,-1317.11,ALDERTON HOUSE,CARE ESTABLISHMENT,LD - East Locality,LD - East Cambs - Special Needs,Residential Care
Cambridgeshire County Council,13-Jun-18,51300170266,-1317.11,ALDERTON HOUSE,CARE ESTABLISHMENT,LD - East Locality,LD - East Cambs - Special Needs,Residential Care
Cambridgeshire County Council,13-Jun-18,51300170328,-1317.11,ALDERTON HOUSE,CARE ESTABLISHMENT,LD - East Locality,LD - East Cambs - Special Needs,Residential Care
Cambridgeshire County Council,13-Jun-18,51300170260,-1317.11,ALDERTON HOUSE,CARE ESTABLISHMENT,LD - East Locality,LD - East Cambs - Special Needs,Residential Care
Cambridgeshire County Council,13-Jun-18,51300170300,-1317.11,ALDERTON HOUSE,CARE ESTABLISHMENT,LD - East Locality,LD - East Cambs - Special Needs,Residential Care
Cambridgeshire County Council,13-Jun-18,51300170318,-1317.11,ALDERTON HOUSE,CARE ESTABLISHMENT,LD - East Locality,LD - East Cambs - Special Needs,Residential Care
Cambridgeshire County Council,13-Jun-18,51300170304,-1317.11,ALDERTON HOUSE,CARE ESTABLISHMENT,LD - East Locality,LD - East Cambs - Special Needs,Residential Care
Cambridgeshire County Council,13-Jun-18,51300170309,-1317.11,ALDERTON HOUSE,CARE ESTABLISHMENT,LD - East Locality,LD - East Cambs - Special Needs,Residential Care
Cambridgeshire County Council,13-Jun-18,51300170303,-1317.11,ALDERTON HOUSE,CARE ESTABLISHMENT,LD - East Locality,LD - East Cambs - Special Needs,Residential Care
Cambridgeshire County Council,13-Jun-18,51300170285,-1317.11,ALDERTON HOUSE,CARE ESTABLISHMENT,LD - East Locality,LD - East Cambs - Special Needs,Residential Care
Cambridgeshire County Council,13-Jun-18,51300170280,-1317.11,ALDERTON HOUSE,CARE ESTABLISHMENT,LD - East Locality,LD - East Cambs - Special Needs,Residential Care
Cambridgeshire County Council,13-Jun-18,51300170332,-1317.11,ALDERTON HOUSE,CARE ESTABLISHMENT,LD - East Locality,LD - East Cambs - Special Needs,Residential Care
Cambridgeshire County Council,13-Jun-18,51300170322,-1317.11,ALDERTON HOUSE,CARE ESTABLISHMENT,LD - East Locality,LD - East Cambs - Special Needs,Residential Care
Cambridgeshire County Council,13-Jun-18,51300170337,-1317.11,ALDERTON HOUSE,CARE ESTABLISHMENT,LD - East Locality,LD - East Cambs - Special Needs,Residential Care
Cambridgeshire County Council,13-Jun-18,51300170352,-1317.11,ALDERTON HOUSE,CARE ESTABLISHMENT,LD - East Locality,LD - East Cambs - Special Needs,Residential Care
Cambridgeshire County Council,13-Jun-18,51300170344,-1317.11,ALDERTON HOUSE,CARE ESTABLISHMENT,LD - East Locality,LD - East Cambs - Special Needs,Residential Care
Cambridgeshire County Council,13-Jun-18,51300170286,-1317.11,ALDERTON HOUSE,CARE ESTABLISHMENT,LD - East Locality,LD - East Cambs - Special Needs,Residential Care
Cambridgeshire County Council,13-Jun-18,51300170293,-1317.11,ALDERTON HOUSE,CARE ESTABLISHMENT,LD - East Locality,LD - East Cambs - Special Needs,Residential Care
Cambridgeshire County Council,13-Jun-18,51300170301,-1317.11,ALDERTON HOUSE,CARE ESTABLISHMENT,LD - East Locality,LD - East Cambs - Special Needs,Residential Care
Cambridgeshire County Council,13-Jun-18,51300170308,-1317.11,ALDERTON HOUSE,CARE ESTABLISHMENT,LD - East Locality,LD - East Cambs - Special Needs,Residential Care
Cambridgeshire County Council,13-Jun-18,51300170299,-1317.11,ALDERTON HOUSE,CARE ESTABLISHMENT,LD - East Locality,LD - East Cambs - Care,Residential Care
Cambridgeshire County Council,13-Jun-18,51300170261,-1317.11,ALDERTON HOUSE,CARE ESTABLISHMENT,LD - East Locality,LD - East Cambs - Care,Residential Care
Cambridgeshire County Council,13-Jun-18,51300170324,-1317.11,ALDERTON HOUSE,CARE ESTABLISHMENT,LD - East Locality,LD - East Cambs - Care,Residential Care
Cambridgeshire County Council,13-Jun-18,51300170325,-1317.11,ALDERTON HOUSE,CARE ESTABLISHMENT,LD - East Locality,LD - East Cambs - Care,Residential Care
Cambridgeshire County Council,13-Jun-18,51300170256,-1317.11,ALDERTON HOUSE,CARE ESTABLISHMENT,LD - East Locality,LD - East Cambs - Care,Residential Care
Cambridgeshire County Council,13-Jun-18,51300170290,-1317.11,ALDERTON HOUSE,CARE ESTABLISHMENT,LD - East Locality,LD - East Cambs - Care,Residential Care
Cambridgeshire County Council,13-Jun-18,51300170313,-1317.11,ALDERTON HOUSE,CARE ESTABLISHMENT,LD - East Locality,LD - East Cambs - Care,Residential Care
Cambridgeshire County Council,13-Jun-18,51300170281,-1317.11,ALDERTON HOUSE,CARE ESTABLISHMENT,LD - East Locality,LD - East Cambs - Care,Residential Care
Cambridgeshire County Council,13-Jun-18,51300170271,-1317.11,ALDERTON HOUSE,CARE ESTABLISHMENT,LD - East Locality,LD - East Cambs - Care,Residential Care
Cambridgeshire County Council,13-Jun-18,51300170333,-1317.11,ALDERTON HOUSE,CARE ESTABLISHMENT,LD - East Locality,LD - East Cambs - Care,Residential Care
Cambridgeshire County Council,13-Jun-18,51300170355,-1317.11,ALDERTON HOUSE,CARE ESTABLISHMENT,LD - East Locality,LD - East Cambs - Care,Residential Care
Cambridgeshire County Council,13-Jun-18,51300170278,-1317.11,ALDERTON HOUSE,CARE ESTABLISHMENT,LD - East Locality,LD - East Cambs - Care,Residential Care
Cambridgeshire County Council,13-Jun-18,51300170323,-1317.11,ALDERTON HOUSE,CARE ESTABLISHMENT,LD - East Locality,LD - East Cambs - Care,Residential Care
Cambridgeshire County Council,13-Jun-18,51300170273,-1317.11,ALDERTON HOUSE,CARE ESTABLISHMENT,LD - East Locality,LD - East Cambs - Care,Residential Care
Cambridgeshire County Council,13-Jun-18,51300170291,-1317.11,ALDERTON HOUSE,CARE ESTABLISHMENT,LD - East Locality,LD - East Cambs - Care,Residential Care
Cambridgeshire County Council,13-Jun-18,51300170270,-1317.11,ALDERTON HOUSE,CARE ESTABLISHMENT,LD - East Locality,LD - East Cambs - Care,Residential Care
Cambridgeshire County Council,13-Jun-18,51300170315,-1317.11,ALDERTON HOUSE,CARE ESTABLISHMENT,LD - East Locality,LD - East Cambs - Care,Residential Care
Cambridgeshire County Council,13-Jun-18,51300170252,-1317.11,ALDERTON HOUSE,CARE ESTABLISHMENT,LD - East Locality,LD - East Cambs - Care,Residential Care
Cambridgeshire County Council,13-Jun-18,51300170341,-1317.11,ALDERTON HOUSE,CARE ESTABLISHMENT,LD - East Locality,LD - East Cambs - Care,Residential Care
Cambridgeshire County Council,13-Jun-18,51300170249,-1317.11,ALDERTON HOUSE,CARE ESTABLISHMENT,LD - East Locality,LD - East Cambs - Care,Residential Care
Cambridgeshire County Council,13-Jun-18,51300170296,-1317.11,ALDERTON HOUSE,CARE ESTABLISHMENT,LD - East Locality,LD - East Cambs - Care,Residential Care
Cambridgeshire County Council,22-Jun-18,51300184589,-1317.11,ALDERTON HOUSE,CARE ESTABLISHMENT,LD - East Locality,LD - East Cambs - Special Needs,Residential Care
Cambridgeshire County Council,22-Jun-18,51300184578,-1317.11,ALDERTON HOUSE,CARE ESTABLISHMENT,LD - East Locality,LD - East Cambs - Special Needs,Residential Care
Cambridgeshire County Council,22-Jun-18,51300184590,-1317.11,ALDERTON HOUSE,CARE ESTABLISHMENT,LD - East Locality,LD - East Cambs - Special Needs,Residential Care
Cambridgeshire County Council,22-Jun-18,51300184698,-1317.11,ALDERTON HOUSE,CARE ESTABLISHMENT,LD - East Locality,LD - East Cambs - Special Needs,Residential Care
Cambridgeshire County Council,22-Jun-18,51300184657,-1317.11,ALDERTON HOUSE,CARE ESTABLISHMENT,LD - East Locality,LD - East Cambs - Special Needs,Residential Care
Cambridgeshire County Council,22-Jun-18,51300184666,-1317.11,ALDERTON HOUSE,CARE ESTABLISHMENT,LD - East Locality,LD - East Cambs - Special Needs,Residential Care
Cambridgeshire County Council,22-Jun-18,51300184614,-1317.11,ALDERTON HOUSE,CARE ESTABLISHMENT,LD - East Locality,LD - East Cambs - Special Needs,Residential Care
Cambridgeshire County Council,22-Jun-18,51300184571,-1317.11,ALDERTON HOUSE,CARE ESTABLISHMENT,LD - East Locality,LD - East Cambs - Special Needs,Residential Care
Cambridgeshire County Council,22-Jun-18,51300184568,-1317.11,ALDERTON HOUSE,CARE ESTABLISHMENT,LD - East Locality,LD - East Cambs - Special Needs,Residential Care
Cambridgeshire County Council,22-Jun-18,51300184605,-1317.11,ALDERTON HOUSE,CARE ESTABLISHMENT,LD - East Locality,LD - East Cambs - Special Needs,Residential Care
Cambridgeshire County Council,22-Jun-18,51300184709,-1317.11,ALDERTON HOUSE,CARE ESTABLISHMENT,LD - East Locality,LD - East Cambs - Special Needs,Residential Care
Cambridgeshire County Council,22-Jun-18,51300184597,-1317.11,ALDERTON HOUSE,CARE ESTABLISHMENT,LD - East Locality,LD - East Cambs - Special Needs,Residential Care
Cambridgeshire County Council,22-Jun-18,51300184606,-1317.11,ALDERTON HOUSE,CARE ESTABLISHMENT,LD - East Locality,LD - East Cambs - Special Needs,Residential Care
Cambridgeshire County Council,22-Jun-18,51300184575,-1317.11,ALDERTON HOUSE,CARE ESTABLISHMENT,LD - East Locality,LD - East Cambs - Special Needs,Residential Care
Cambridgeshire County Council,22-Jun-18,51300184641,-1317.11,ALDERTON HOUSE,CARE ESTABLISHMENT,LD - East Locality,LD - East Cambs - Special Needs,Residential Care
Cambridgeshire County Council,22-Jun-18,51300184711,-1317.11,ALDERTON HOUSE,CARE ESTABLISHMENT,LD - East Locality,LD - East Cambs - Special Needs,Residential Care
Cambridgeshire County Council,22-Jun-18,51300184696,-1317.11,ALDERTON HOUSE,CARE ESTABLISHMENT,LD - East Locality,LD - East Cambs - Special Needs,Residential Care
Cambridgeshire County Council,22-Jun-18,51300184681,-1317.11,ALDERTON HOUSE,CARE ESTABLISHMENT,LD - East Locality,LD - East Cambs - Special Needs,Residential Care
Cambridgeshire County Council,22-Jun-18,51300184640,-1317.11,ALDERTON HOUSE,CARE ESTABLISHMENT,LD - East Locality,LD - East Cambs - Special Needs,Residential Care
Cambridgeshire County Council,22-Jun-18,51300184569,-1317.11,ALDERTON HOUSE,CARE ESTABLISHMENT,LD - East Locality,LD - East Cambs - Special Needs,Residential Care
Cambridgeshire County Council,22-Jun-18,51300184661,-1317.11,ALDERTON HOUSE,CARE ESTABLISHMENT,LD - East Locality,LD - East Cambs - Special Needs,Residential Care
Cambridgeshire County Council,22-Jun-18,51300184616,-1317.11,ALDERTON HOUSE,CARE ESTABLISHMENT,LD - East Locality,LD - East Cambs - Special Needs,Residential Care
Cambridgeshire County Council,22-Jun-18,51300184684,-1317.11,ALDERTON HOUSE,CARE ESTABLISHMENT,LD - East Locality,LD - East Cambs - Special Needs,Residential Care
Cambridgeshire County Council,22-Jun-18,51300184667,-1317.11,ALDERTON HOUSE,CARE ESTABLISHMENT,LD - East Locality,LD - East Cambs - Care,Residential Care
Cambridgeshire County Council,22-Jun-18,51300184693,-1317.11,ALDERTON HOUSE,CARE ESTABLISHMENT,LD - East Locality,LD - East Cambs - Care,Residential Care
Cambridgeshire County Council,22-Jun-18,51300184587,-1317.11,ALDERTON HOUSE,CARE ESTABLISHMENT,LD - East Locality,LD - East Cambs - Care,Residential Care
Cambridgeshire County Council,22-Jun-18,51300184607,-1317.11,ALDERTON HOUSE,CARE ESTABLISHMENT,LD - East Locality,LD - East Cambs - Care,Residential Care
Cambridgeshire County Council,22-Jun-18,51300184697,-1317.11,ALDERTON HOUSE,CARE ESTABLISHMENT,LD - East Locality,LD - East Cambs - Care,Residential Care
Cambridgeshire County Council,22-Jun-18,51300184691,-1317.11,ALDERTON HOUSE,CARE ESTABLISHMENT,LD - East Locality,LD - East Cambs - Care,Residential Care
Cambridgeshire County Council,22-Jun-18,51300184561,-1317.11,ALDERTON HOUSE,CARE ESTABLISHMENT,LD - East Locality,LD - East Cambs - Care,Residential Care
Cambridgeshire County Council,22-Jun-18,51300184649,-1317.11,ALDERTON HOUSE,CARE ESTABLISHMENT,LD - East Locality,LD - East Cambs - Care,Residential Care
Cambridgeshire County Council,22-Jun-18,51300184576,-1317.11,ALDERTON HOUSE,CARE ESTABLISHMENT,LD - East Locality,LD - East Cambs - Care,Residential Care
Cambridgeshire County Council,22-Jun-18,51300184701,-1317.11,ALDERTON HOUSE,CARE ESTABLISHMENT,LD - East Locality,LD - East Cambs - Care,Residential Care
Cambridgeshire County Council,22-Jun-18,51300184632,-1317.11,ALDERTON HOUSE,CARE ESTABLISHMENT,LD - East Locality,LD - East Cambs - Care,Residential Care
Cambridgeshire County Council,22-Jun-18,51300184574,-1317.11,ALDERTON HOUSE,CARE ESTABLISHMENT,LD - East Locality,LD - East Cambs - Care,Residential Care
Cambridgeshire County Council,22-Jun-18,51300184637,-1317.11,ALDERTON HOUSE,CARE ESTABLISHMENT,LD - East Locality,LD - East Cambs - Care,Residential Care
Cambridgeshire County Council,22-Jun-18,51300184669,-1317.11,ALDERTON HOUSE,CARE ESTABLISHMENT,LD - East Locality,LD - East Cambs - Care,Residential Care
Cambridgeshire County Council,22-Jun-18,51300184608,-1317.11,ALDERTON HOUSE,CARE ESTABLISHMENT,LD - East Locality,LD - East Cambs - Care,Residential Care
Cambridgeshire County Council,22-Jun-18,51300184678,-1317.11,ALDERTON HOUSE,CARE ESTABLISHMENT,LD - East Locality,LD - East Cambs - Care,Residential Care
Cambridgeshire County Council,22-Jun-18,51300184699,-1317.11,ALDERTON HOUSE,CARE ESTABLISHMENT,LD - East Locality,LD - East Cambs - Care,Residential Care
Cambridgeshire County Council,22-Jun-18,51300184563,-1317.11,ALDERTON HOUSE,CARE ESTABLISHMENT,LD - East Locality,LD - East Cambs - Care,Residential Care
Cambridgeshire County Council,22-Jun-18,51300184613,-1317.11,ALDERTON HOUSE,CARE ESTABLISHMENT,LD - East Locality,LD - East Cambs - Care,Residential Care
Cambridgeshire County Council,22-Jun-18,51300184600,-1317.11,ALDERTON HOUSE,CARE ESTABLISHMENT,LD - East Locality,LD - East Cambs - Care,Residential Care
Cambridgeshire County Council,22-Jun-18,51300184601,-1317.11,ALDERTON HOUSE,CARE ESTABLISHMENT,LD - East Locality,LD - East Cambs - Care,Residential Care
Cambridgeshire County Council,22-Jun-18,51300184671,-1317.11,ALDERTON HOUSE,CARE ESTABLISHMENT,LD - East Locality,LD - East Cambs - Care,Residential Care
Cambridgeshire County Council,22-Jun-18,51300184692,-1317.11,ALDERTON HOUSE,CARE ESTABLISHMENT,LD - East Locality,LD - East Cambs - Care,Residential Care
Cambridgeshire County Council,22-Jun-18,51300184615,-1317.11,ALDERTON HOUSE,CARE ESTABLISHMENT,LD - East Locality,LD - East Cambs - Care,Residential Care
Cambridgeshire County Council,22-Jun-18,51300184644,-1317.11,ALDERTON HOUSE,CARE ESTABLISHMENT,LD - East Locality,LD - East Cambs - Care,Residential Care
Cambridgeshire County Council,22-Jun-18,51300184609,-1317.11,ALDERTON HOUSE,CARE ESTABLISHMENT,LD - East Locality,LD - East Cambs - Care,Residential Care
Cambridgeshire County Council,22-Jun-18,51300184577,-1317.11,ALDERTON HOUSE,CARE ESTABLISHMENT,LD - East Locality,LD - East Cambs - Care,Residential Care
Cambridgeshire County Council,22-Jun-18,51300184674,-1317.11,ALDERTON HOUSE,CARE ESTABLISHMENT,LD - East Locality,LD - East Cambs - Care,Residential Care
Cambridgeshire County Council,22-Jun-18,51300184659,-1317.11,ALDERTON HOUSE,CARE ESTABLISHMENT,LD - East Locality,LD - East Cambs - Care,Residential Care
Cambridgeshire County Council,22-Jun-18,51300184595,-1317.11,ALDERTON HOUSE,CARE ESTABLISHMENT,LD - East Locality,LD - East Cambs - Care,Residential Care
Cambridgeshire County Council,22-Jun-18,51300159737,-1266.59,2 CHEVERIL LANE (VOYAGE),CARE ESTABLISHMENT,LD - Hunts Locality,LD - Huntigndonshire - Special Needs,Suppported Living
Cambridgeshire County Council,22-Jun-18,51300149833,-1266.59,2 CHEVERIL LANE (VOYAGE),CARE ESTABLISHMENT,LD - Hunts Locality,LD - Huntigndonshire - Special Needs,Suppported Living
Cambridgeshire County Council,22-Jun-18,51300170741,-1266.59,2 CHEVERIL LANE (VOYAGE),CARE ESTABLISHMENT,LD - Hunts Locality,LD - Huntigndonshire - Special Needs,Suppported Living
Cambridgeshire County Council,22-Jun-18,51300186219,-1266.59,2 CHEVERIL LANE (VOYAGE),CARE ESTABLISHMENT,LD - Hunts Locality,LD - Huntigndonshire - Care,Suppported Living
Cambridgeshire County Council,22-Jun-18,51300159724,-1266.59,2 CHEVERIL LANE (VOYAGE),CARE ESTABLISHMENT,LD - Hunts Locality,LD - Huntigndonshire - Care,Suppported Living
Cambridgeshire County Council,22-Jun-18,51300186228,-1266.59,2 CHEVERIL LANE (VOYAGE),CARE ESTABLISHMENT,LD - Hunts Locality,LD - Huntigndonshire - Care,Suppported Living
Cambridgeshire County Council,22-Jun-18,51300186231,-1266.59,2 CHEVERIL LANE (VOYAGE),CARE ESTABLISHMENT,LD - Hunts Locality,LD - Huntigndonshire - Care,Suppported Living
Cambridgeshire County Council,22-Jun-18,51300170730,-1266.59,2 CHEVERIL LANE (VOYAGE),CARE ESTABLISHMENT,LD - Hunts Locality,LD - Huntigndonshire - Care,Suppported Living
Cambridgeshire County Council,22-Jun-18,51300149837,-1266.59,2 CHEVERIL LANE (VOYAGE),CARE ESTABLISHMENT,LD - Hunts Locality,LD - Huntigndonshire - Care,Suppported Living
Cambridgeshire County Council,22-Jun-18,51300149836,-1266.59,2 CHEVERIL LANE (VOYAGE),CARE ESTABLISHMENT,LD - Hunts Locality,LD - Huntigndonshire - Care,Suppported Living
Cambridgeshire County Council,22-Jun-18,51300149827,-1266.59,2 CHEVERIL LANE (VOYAGE),CARE ESTABLISHMENT,LD - Hunts Locality,LD - Huntigndonshire - Care,Suppported Living
Cambridgeshire County Council,22-Jun-18,51300159735,-1266.59,2 CHEVERIL LANE (VOYAGE),CARE ESTABLISHMENT,LD - Hunts Locality,LD - Huntigndonshire - Care,Suppported Living
Cambridgeshire County Council,22-Jun-18,51300159723,-1266.59,2 CHEVERIL LANE (VOYAGE),CARE ESTABLISHMENT,LD - Hunts Locality,LD - Huntigndonshire - Care,Suppported Living
Cambridgeshire County Council,22-Jun-18,51300149835,-1266.59,2 CHEVERIL LANE (VOYAGE),CARE ESTABLISHMENT,LD - Hunts Locality,LD - Huntigndonshire - Care,Suppported Living
Cambridgeshire County Council,22-Jun-18,51300159732,-1266.59,2 CHEVERIL LANE (VOYAGE),CARE ESTABLISHMENT,LD - Hunts Locality,LD - Huntigndonshire - Care,Suppported Living
Cambridgeshire County Council,22-Jun-18,51300186205,-1266.59,2 CHEVERIL LANE (VOYAGE),CARE ESTABLISHMENT,LD - Hunts Locality,LD - Huntigndonshire - Care,Suppported Living
Cambridgeshire County Council,22-Jun-18,51300186212,-1266.59,2 CHEVERIL LANE (VOYAGE),CARE ESTABLISHMENT,LD - Hunts Locality,LD - Huntigndonshire - Care,Suppported Living
Cambridgeshire County Council,22-Jun-18,51300170746,-1266.59,2 CHEVERIL LANE (VOYAGE),CARE ESTABLISHMENT,LD - Hunts Locality,LD - Huntigndonshire - Care,Suppported Living
Cambridgeshire County Council,22-Jun-18,51300170735,-1266.59,2 CHEVERIL LANE (VOYAGE),CARE ESTABLISHMENT,LD - Hunts Locality,LD - Huntigndonshire - Care,Suppported Living
Cambridgeshire County Council,22-Jun-18,51300149825,-1266.59,2 CHEVERIL LANE (VOYAGE),CARE ESTABLISHMENT,LD - Hunts Locality,LD - Huntigndonshire - Care,Suppported Living
Cambridgeshire County Council,22-Jun-18,51300159722,-1266.59,2 CHEVERIL LANE (VOYAGE),CARE ESTABLISHMENT,LD - Hunts Locality,LD - Huntigndonshire - Care,Suppported Living
Cambridgeshire County Council,22-Jun-18,51300170743,-1266.59,2 CHEVERIL LANE (VOYAGE),CARE ESTABLISHMENT,LD - Hunts Locality,LD - Huntigndonshire - Special Needs,Suppported Living
Cambridgeshire County Council,22-Jun-18,51300159736,-1266.59,2 CHEVERIL LANE (VOYAGE),CARE ESTABLISHMENT,LD - Hunts Locality,LD - Huntigndonshire - Special Needs,Suppported Living
Cambridgeshire County Council,22-Jun-18,51300170731,-1266.59,2 CHEVERIL LANE (VOYAGE),CARE ESTABLISHMENT,LD - Hunts Locality,LD - Huntigndonshire - Special Needs,Suppported Living
Cambridgeshire County Council,22-Jun-18,51300186230,-1266.59,2 CHEVERIL LANE (VOYAGE),CARE ESTABLISHMENT,LD - Hunts Locality,LD - Huntigndonshire - Special Needs,Suppported Living
Cambridgeshire County Council,22-Jun-18,51300170737,-1266.59,2 CHEVERIL LANE (VOYAGE),CARE ESTABLISHMENT,LD - Hunts Locality,LD - Huntigndonshire - Special Needs,Suppported Living
Cambridgeshire County Council,22-Jun-18,51300186209,-1266.59,2 CHEVERIL LANE (VOYAGE),CARE ESTABLISHMENT,LD - Hunts Locality,LD - Huntigndonshire - Special Needs,Suppported Living
Cambridgeshire County Council,22-Jun-18,51300170742,-1266.59,2 CHEVERIL LANE (VOYAGE),CARE ESTABLISHMENT,LD - Hunts Locality,LD - Huntigndonshire - Special Needs,Suppported Living
Cambridgeshire County Council,22-Jun-18,51300159730,-1266.59,2 CHEVERIL LANE (VOYAGE),CARE ESTABLISHMENT,LD - Hunts Locality,LD - Huntigndonshire - Special Needs,Suppported Living
Cambridgeshire County Council,22-Jun-18,51300149830,-1266.59,2 CHEVERIL LANE (VOYAGE),CARE ESTABLISHMENT,LD - Hunts Locality,LD - Huntigndonshire - Special Needs,Suppported Living
Cambridgeshire County Council,22-Jun-18,51300159725,-1266.59,2 CHEVERIL LANE (VOYAGE),CARE ESTABLISHMENT,LD - Hunts Locality,LD - Huntigndonshire - Special Needs,Suppported Living
Cambridgeshire County Council,22-Jun-18,51300186222,-1266.59,2 CHEVERIL LANE (VOYAGE),CARE ESTABLISHMENT,LD - Hunts Locality,LD - Huntigndonshire - Special Needs,Suppported Living
Cambridgeshire County Council,22-Jun-18,51300170739,-1266.59,2 CHEVERIL LANE (VOYAGE),CARE ESTABLISHMENT,LD - Hunts Locality,LD - Huntigndonshire - Special Needs,Suppported Living
Cambridgeshire County Council,22-Jun-18,51300149821,-1266.59,2 CHEVERIL LANE (VOYAGE),CARE ESTABLISHMENT,LD - Hunts Locality,LD - Huntigndonshire - Special Needs,Suppported Living
Cambridgeshire County Council,22-Jun-18,51300149824,-1266.59,2 CHEVERIL LANE (VOYAGE),CARE ESTABLISHMENT,LD - Hunts Locality,LD - Huntigndonshire - Special Needs,Suppported Living
Cambridgeshire County Council,22-Jun-18,51300186216,-1266.59,2 CHEVERIL LANE (VOYAGE),CARE ESTABLISHMENT,LD - Hunts Locality,LD - Huntigndonshire - Special Needs,Suppported Living
Cambridgeshire County Council,03-Jun-18,65300006139,-1213.17,DEVON & CORNWALL AUTISTIC COMMUNITY TRUST T/A SPECTRUM,TRUST (OTHER),LD - City Locality,LD - City - Care,Residential Care
Cambridgeshire County Council,10-Jun-18,65300004257,-1213.17,DEVON & CORNWALL AUTISTIC COMMUNITY TRUST T/A SPECTRUM,TRUST (OTHER),LD - City Locality,LD - City - Care,Residential Care
Cambridgeshire County Council,17-Jun-18,65300003771,-1213.17,DEVON & CORNWALL AUTISTIC COMMUNITY TRUST T/A SPECTRUM,TRUST (OTHER),LD - City Locality,LD - City - Care,Residential Care
Cambridgeshire County Council,24-Jun-18,65300004482,-1213.17,DEVON & CORNWALL AUTISTIC COMMUNITY TRUST T/A SPECTRUM,TRUST (OTHER),LD - City Locality,LD - City - Care,Residential Care
Cambridgeshire County Council,07-Jun-18,51300125759,-1200,WOODLANDS CARE CENTRE (LD),CARE ESTABLISHMENT,LD - City Locality,LD - City - Care,Residential Care
Cambridgeshire County Council,07-Jun-18,51300125760,-1200,WOODLANDS CARE CENTRE (LD),CARE ESTABLISHMENT,LD - City Locality,LD - City - Care,Residential Care
Cambridgeshire County Council,07-Jun-18,51300125755,-1200,WOODLANDS CARE CENTRE (LD),CARE ESTABLISHMENT,LD - City Locality,LD - City - Care,Residential Care
Cambridgeshire County Council,07-Jun-18,51300125761,-1200,WOODLANDS CARE CENTRE (LD),CARE ESTABLISHMENT,LD - City Locality,LD - City - Care,Residential Care
Cambridgeshire County Council,07-Jun-18,51300125754,-1200,WOODLANDS CARE CENTRE (LD),CARE ESTABLISHMENT,LD - City Locality,LD - City - Care,Residential Care
Cambridgeshire County Council,07-Jun-18,51300164546,-1198.04,CARETECH COMMUNITY SERVICES#1,CARE ESTABLISHMENT,LD - South Locality,LD - South Cambs - Special Needs,Residential Care
Cambridgeshire County Council,07-Jun-18,51300164502,-1198.04,CARETECH COMMUNITY SERVICES#1,CARE ESTABLISHMENT,LD - South Locality,LD - South Cambs - Special Needs,Residential Care
Cambridgeshire County Council,07-Jun-18,51300164545,-1198.04,CARETECH COMMUNITY SERVICES#1,CARE ESTABLISHMENT,LD - South Locality,LD - South Cambs - Special Needs,Residential Care
Cambridgeshire County Council,07-Jun-18,51300164511,-1198.04,CARETECH COMMUNITY SERVICES#1,CARE ESTABLISHMENT,LD - South Locality,LD - South Cambs - Special Needs,Residential Care
Cambridgeshire County Council,07-Jun-18,51300154510,-1198.04,CARETECH COMMUNITY SERVICES#1,CARE ESTABLISHMENT,LD - South Locality,LD - South Cambs - Special Needs,Residential Care
Cambridgeshire County Council,07-Jun-18,51300154506,-1198.04,CARETECH COMMUNITY SERVICES#1,CARE ESTABLISHMENT,LD - South Locality,LD - South Cambs - Special Needs,Residential Care
Cambridgeshire County Council,07-Jun-18,51300164539,-1198.04,CARETECH COMMUNITY SERVICES#1,CARE ESTABLISHMENT,LD - South Locality,LD - South Cambs - Special Needs,Residential Care
Cambridgeshire County Council,07-Jun-18,51300154502,-1198.04,CARETECH COMMUNITY SERVICES#1,CARE ESTABLISHMENT,LD - South Locality,LD - South Cambs - Special Needs,Residential Care
Cambridgeshire County Council,07-Jun-18,51300154469,-1198.04,CARETECH COMMUNITY SERVICES#1,CARE ESTABLISHMENT,LD - South Locality,LD - South Cambs - Special Needs,Residential Care
Cambridgeshire County Council,07-Jun-18,51300154476,-1198.04,CARETECH COMMUNITY SERVICES#1,CARE ESTABLISHMENT,LD - South Locality,LD - South Cambs - Special Needs,Residential Care
Cambridgeshire County Council,07-Jun-18,51300154508,-1198.04,CARETECH COMMUNITY SERVICES#1,CARE ESTABLISHMENT,LD - South Locality,LD - South Cambs - Special Needs,Residential Care
Cambridgeshire County Council,07-Jun-18,51300154486,-1198.04,CARETECH COMMUNITY SERVICES#1,CARE ESTABLISHMENT,LD - South Locality,LD - South Cambs - Special Needs,Residential Care
Cambridgeshire County Council,07-Jun-18,51300164541,-1198.04,CARETECH COMMUNITY SERVICES#1,CARE ESTABLISHMENT,LD - South Locality,LD - South Cambs - Special Needs,Residential Care
Cambridgeshire County Council,07-Jun-18,51300154483,-1198.04,CARETECH COMMUNITY SERVICES#1,CARE ESTABLISHMENT,LD - South Locality,LD - South Cambs - Special Needs,Residential Care
Cambridgeshire County Council,07-Jun-18,51300154499,-1198.04,CARETECH COMMUNITY SERVICES#1,CARE ESTABLISHMENT,LD - South Locality,LD - South Cambs - Special Needs,Residential Care
Cambridgeshire County Council,07-Jun-18,51300154459,-1198.04,CARETECH COMMUNITY SERVICES#1,CARE ESTABLISHMENT,LD - South Locality,LD - South Cambs - Special Needs,Residential Care
Cambridgeshire County Council,07-Jun-18,51300154503,-1198.04,CARETECH COMMUNITY SERVICES#1,CARE ESTABLISHMENT,LD - South Locality,LD - South Cambs - Special Needs,Residential Care
Cambridgeshire County Council,07-Jun-18,51300164525,-1198.04,CARETECH COMMUNITY SERVICES#1,CARE ESTABLISHMENT,LD - South Locality,LD - South Cambs - Special Needs,Residential Care
Cambridgeshire County Council,07-Jun-18,51300164513,-1198.04,CARETECH COMMUNITY SERVICES#1,CARE ESTABLISHMENT,LD - South Locality,LD - South Cambs - Special Needs,Residential Care
Cambridgeshire County Council,07-Jun-18,51300164528,-1198.04,CARETECH COMMUNITY SERVICES#1,CARE ESTABLISHMENT,LD - South Locality,LD - South Cambs - Special Needs,Residential Care
Cambridgeshire County Council,07-Jun-18,51300154473,-1198.04,CARETECH COMMUNITY SERVICES#1,CARE ESTABLISHMENT,LD - South Locality,LD - South Cambs - Special Needs,Residential Care
Cambridgeshire County Council,07-Jun-18,51300164533,-1198.04,CARETECH COMMUNITY SERVICES#1,CARE ESTABLISHMENT,LD - South Locality,LD - South Cambs - Special Needs,Residential Care
Cambridgeshire County Council,07-Jun-18,51300154496,-1198.04,CARETECH COMMUNITY SERVICES#1,CARE ESTABLISHMENT,LD - South Locality,LD - South Cambs - Care,Residential Care
Cambridgeshire County Council,07-Jun-18,51300164514,-1198.04,CARETECH COMMUNITY SERVICES#1,CARE ESTABLISHMENT,LD - South Locality,LD - South Cambs - Care,Residential Care
Cambridgeshire County Council,07-Jun-18,51300164540,-1198.04,CARETECH COMMUNITY SERVICES#1,CARE ESTABLISHMENT,LD - South Locality,LD - South Cambs - Care,Residential Care
Cambridgeshire County Council,07-Jun-18,51300154457,-1198.04,CARETECH COMMUNITY SERVICES#1,CARE ESTABLISHMENT,LD - South Locality,LD - South Cambs - Care,Residential Care
Cambridgeshire County Council,07-Jun-18,51300154501,-1198.04,CARETECH COMMUNITY SERVICES#1,CARE ESTABLISHMENT,LD - South Locality,LD - South Cambs - Care,Residential Care
Cambridgeshire County Council,07-Jun-18,51300164505,-1198.04,CARETECH COMMUNITY SERVICES#1,CARE ESTABLISHMENT,LD - South Locality,LD - South Cambs - Care,Residential Care
Cambridgeshire County Council,07-Jun-18,51300164549,-1198.04,CARETECH COMMUNITY SERVICES#1,CARE ESTABLISHMENT,LD - South Locality,LD - South Cambs - Care,Residential Care
Cambridgeshire County Council,07-Jun-18,51300164534,-1198.04,CARETECH COMMUNITY SERVICES#1,CARE ESTABLISHMENT,LD - South Locality,LD - South Cambs - Care,Residential Care
Cambridgeshire County Council,07-Jun-18,51300164497,-1198.04,CARETECH COMMUNITY SERVICES#1,CARE ESTABLISHMENT,LD - South Locality,LD - South Cambs - Care,Residential Care
Cambridgeshire County Council,07-Jun-18,51300164523,-1198.04,CARETECH COMMUNITY SERVICES#1,CARE ESTABLISHMENT,LD - South Locality,LD - South Cambs - Care,Residential Care
Cambridgeshire County Council,07-Jun-18,51300164526,-1198.04,CARETECH COMMUNITY SERVICES#1,CARE ESTABLISHMENT,LD - South Locality,LD - South Cambs - Care,Residential Care
Cambridgeshire County Council,07-Jun-18,51300154471,-1198.04,CARETECH COMMUNITY SERVICES#1,CARE ESTABLISHMENT,LD - South Locality,LD - South Cambs - Care,Residential Care
Cambridgeshire County Council,07-Jun-18,51300164544,-1198.04,CARETECH COMMUNITY SERVICES#1,CARE ESTABLISHMENT,LD - South Locality,LD - South Cambs - Care,Residential Care
Cambridgeshire County Council,07-Jun-18,51300164550,-1198.04,CARETECH COMMUNITY SERVICES#1,CARE ESTABLISHMENT,LD - South Locality,LD - South Cambs - Care,Residential Care
Cambridgeshire County Council,07-Jun-18,51300164542,-1198.04,CARETECH COMMUNITY SERVICES#1,CARE ESTABLISHMENT,LD - South Locality,LD - South Cambs - Care,Residential Care
Cambridgeshire County Council,07-Jun-18,51300164510,-1198.04,CARETECH COMMUNITY SERVICES#1,CARE ESTABLISHMENT,LD - South Locality,LD - South Cambs - Care,Residential Care
Cambridgeshire County Council,07-Jun-18,51300154465,-1198.04,CARETECH COMMUNITY SERVICES#1,CARE ESTABLISHMENT,LD - South Locality,LD - South Cambs - Care,Residential Care
Cambridgeshire County Council,07-Jun-18,51300164495,-1198.04,CARETECH COMMUNITY SERVICES#1,CARE ESTABLISHMENT,LD - South Locality,LD - South Cambs - Care,Residential Care
Cambridgeshire County Council,07-Jun-18,51300154480,-1198.04,CARETECH COMMUNITY SERVICES#1,CARE ESTABLISHMENT,LD - South Locality,LD - South Cambs - Care,Residential Care
Cambridgeshire County Council,07-Jun-18,51300164496,-1198.04,CARETECH COMMUNITY SERVICES#1,CARE ESTABLISHMENT,LD - South Locality,LD - South Cambs - Care,Residential Care
Cambridgeshire County Council,07-Jun-18,51300164519,-1198.04,CARETECH COMMUNITY SERVICES#1,CARE ESTABLISHMENT,LD - South Locality,LD - South Cambs - Care,Residential Care
Cambridgeshire County Council,07-Jun-18,51300154507,-1198.04,CARETECH COMMUNITY SERVICES#1,CARE ESTABLISHMENT,LD - South Locality,LD - South Cambs - Care,Residential Care
Cambridgeshire County Council,07-Jun-18,51300154468,-1198.04,CARETECH COMMUNITY SERVICES#1,CARE ESTABLISHMENT,LD - South Locality,LD - South Cambs - Care,Residential Care
Cambridgeshire County Council,07-Jun-18,51300154495,-1198.04,CARETECH COMMUNITY SERVICES#1,CARE ESTABLISHMENT,LD - South Locality,LD - South Cambs - Care,Residential Care
Cambridgeshire County Council,07-Jun-18,51300154489,-1198.04,CARETECH COMMUNITY SERVICES#1,CARE ESTABLISHMENT,LD - South Locality,LD - South Cambs - Care,Residential Care
Cambridgeshire County Council,07-Jun-18,51300154485,-1198.04,CARETECH COMMUNITY SERVICES#1,CARE ESTABLISHMENT,LD - South Locality,LD - South Cambs - Care,Residential Care
Cambridgeshire County Council,07-Jun-18,51300154484,-1198.04,CARETECH COMMUNITY SERVICES#1,CARE ESTABLISHMENT,LD - South Locality,LD - South Cambs - Care,Residential Care
Cambridgeshire County Council,07-Jun-18,51300154487,-1198.04,CARETECH COMMUNITY SERVICES#1,CARE ESTABLISHMENT,LD - South Locality,LD - South Cambs - Care,Residential Care
Cambridgeshire County Council,07-Jun-18,51300164548,-1198.04,CARETECH COMMUNITY SERVICES#1,CARE ESTABLISHMENT,LD - South Locality,LD - South Cambs - Care,Residential Care
Cambridgeshire County Council,07-Jun-18,51300154463,-1198.04,CARETECH COMMUNITY SERVICES#1,CARE ESTABLISHMENT,LD - South Locality,LD - South Cambs - Care,Residential Care
Cambridgeshire County Council,07-Jun-18,51300154460,-1198.04,CARETECH COMMUNITY SERVICES#1,CARE ESTABLISHMENT,LD - South Locality,LD - South Cambs - Care,Residential Care
Cambridgeshire County Council,07-Jun-18,51300164536,-1198.04,CARETECH COMMUNITY SERVICES#1,CARE ESTABLISHMENT,LD - South Locality,LD - South Cambs - Care,Residential Care
Cambridgeshire County Council,13-Jun-18,51300175266,-1198.04,CARETECH COMMUNITY SERVICES#1,CARE ESTABLISHMENT,LD - South Locality,LD - South Cambs - Special Needs,Residential Care
Cambridgeshire County Council,13-Jun-18,51300175278,-1198.04,CARETECH COMMUNITY SERVICES#1,CARE ESTABLISHMENT,LD - South Locality,LD - South Cambs - Special Needs,Residential Care
Cambridgeshire County Council,13-Jun-18,51300175260,-1198.04,CARETECH COMMUNITY SERVICES#1,CARE ESTABLISHMENT,LD - South Locality,LD - South Cambs - Special Needs,Residential Care
Cambridgeshire County Council,13-Jun-18,51300175292,-1198.04,CARETECH COMMUNITY SERVICES#1,CARE ESTABLISHMENT,LD - South Locality,LD - South Cambs - Special Needs,Residential Care
Cambridgeshire County Council,13-Jun-18,51300175279,-1198.04,CARETECH COMMUNITY SERVICES#1,CARE ESTABLISHMENT,LD - South Locality,LD - South Cambs - Special Needs,Residential Care
Cambridgeshire County Council,13-Jun-18,51300175258,-1198.04,CARETECH COMMUNITY SERVICES#1,CARE ESTABLISHMENT,LD - South Locality,LD - South Cambs - Special Needs,Residential Care
Cambridgeshire County Council,13-Jun-18,51300175245,-1198.04,CARETECH COMMUNITY SERVICES#1,CARE ESTABLISHMENT,LD - South Locality,LD - South Cambs - Special Needs,Residential Care
Cambridgeshire County Council,13-Jun-18,51300175249,-1198.04,CARETECH COMMUNITY SERVICES#1,CARE ESTABLISHMENT,LD - South Locality,LD - South Cambs - Special Needs,Residential Care
Cambridgeshire County Council,13-Jun-18,51300175280,-1198.04,CARETECH COMMUNITY SERVICES#1,CARE ESTABLISHMENT,LD - South Locality,LD - South Cambs - Special Needs,Residential Care
Cambridgeshire County Council,13-Jun-18,51300175270,-1198.04,CARETECH COMMUNITY SERVICES#1,CARE ESTABLISHMENT,LD - South Locality,LD - South Cambs - Special Needs,Residential Care
Cambridgeshire County Council,13-Jun-18,51300175269,-1198.04,CARETECH COMMUNITY SERVICES#1,CARE ESTABLISHMENT,LD - South Locality,LD - South Cambs - Special Needs,Residential Care
Cambridgeshire County Council,13-Jun-18,51300175291,-1198.04,CARETECH COMMUNITY SERVICES#1,CARE ESTABLISHMENT,LD - South Locality,LD - South Cambs - Special Needs,Residential Care
Cambridgeshire County Council,13-Jun-18,51300175287,-1198.04,CARETECH COMMUNITY SERVICES#1,CARE ESTABLISHMENT,LD - South Locality,LD - South Cambs - Special Needs,Residential Care
Cambridgeshire County Council,13-Jun-18,51300175251,-1198.04,CARETECH COMMUNITY SERVICES#1,CARE ESTABLISHMENT,LD - South Locality,LD - South Cambs - Special Needs,Residential Care
Cambridgeshire County Council,13-Jun-18,51300175246,-1198.04,CARETECH COMMUNITY SERVICES#1,CARE ESTABLISHMENT,LD - South Locality,LD - South Cambs - Care,Residential Care
Cambridgeshire County Council,13-Jun-18,51300175273,-1198.04,CARETECH COMMUNITY SERVICES#1,CARE ESTABLISHMENT,LD - South Locality,LD - South Cambs - Care,Residential Care
Cambridgeshire County Council,13-Jun-18,51300175242,-1198.04,CARETECH COMMUNITY SERVICES#1,CARE ESTABLISHMENT,LD - South Locality,LD - South Cambs - Care,Residential Care
Cambridgeshire County Council,13-Jun-18,51300175286,-1198.04,CARETECH COMMUNITY SERVICES#1,CARE ESTABLISHMENT,LD - South Locality,LD - South Cambs - Care,Residential Care
Cambridgeshire County Council,13-Jun-18,51300175281,-1198.04,CARETECH COMMUNITY SERVICES#1,CARE ESTABLISHMENT,LD - South Locality,LD - South Cambs - Care,Residential Care
Cambridgeshire County Council,13-Jun-18,51300175296,-1198.04,CARETECH COMMUNITY SERVICES#1,CARE ESTABLISHMENT,LD - South Locality,LD - South Cambs - Care,Residential Care
